﻿Body_Name,Service_Label,Service_Code,Division_Code,Division_Description,Organisational_Unit,Expenditure_Category,Expenditure_Category_Code,Activity_Description,Activity_Code,Date_Received,Date_Paid,Reference,Net_Amount_in_Sterling,Capital_Revenue,Customer_Supplier_Description,Month,Year,FID
Tunbridge Wells Borough Council,Highways and Transport Services,107,PA,PARKING,PARKING ADMIN & ENFORCEMENT,PCN DEBT REGISTRATION,3335,-,-,2016/04/19 23:00:00+00,2016/04/19 23:00:00+00,144851,10000,Revenue,THE TRAFFIC ENFORCEMENT CENTRE,April,2016,1
Tunbridge Wells Borough Council,Planning Services,110,PS,PROPERTY SERVICES,JOHN STREET CAR PARK,"CONSTRUCTION, RENOVATION, ETC",8311,-,-,2016/04/19 23:00:00+00,2016/04/19 23:00:00+00,145143,9730.3203125,Capital,Atkins Limited,April,2016,2
Tunbridge Wells Borough Council,Planning Services,110,ED,ECONOMIC DEVELOPMENT,ECONOMIC DEVELOPMENT,PROJECTS & INITIATIVES,3910,RETAILERS CHRISTMAS CAMPAIGN,EV0250,2016/04/19 23:00:00+00,2016/04/19 23:00:00+00,145612,9374.9404296875,Revenue,This data has been redacted under the Data Protection Act,April,2016,3
Tunbridge Wells Borough Council,Planning Services,110,MU,MUSEUM,DEVELOPMENT PROGRAMME,PROPERTY CONSULTANTS,3290,CULTURAL & LEARNING HUB,PH0702,2016/04/19 23:00:00+00,2016/04/19 23:00:00+00,145206,7666,Revenue,DCA CONSULTANCY LTD,April,2016,4
Tunbridge Wells Borough Council,Cultural and Related Services,104,AH,ASSEMBLY HALL,A-HALL COUNCIL SHOWS,SHOW FEES,3380,160317 RUMOURS OF FLEETWOOD MA,A16C05,2016/04/19 23:00:00+00,2016/04/19 23:00:00+00,144718,7553.83984375,Revenue,Cole Music Productions (UK) Ltd,April,2016,5
Tunbridge Wells Borough Council,Cultural and Related Services,104,AH,ASSEMBLY HALL,A-HALL COUNCIL SHOWS,SHOW FEES,3380,160501 ERIC BIBB,A16E06,2016/04/19 23:00:00+00,2016/04/19 23:00:00+00,145443,6000,Revenue,Asgard Promotions Ltd Clients Account,April,2016,6
Tunbridge Wells Borough Council,Central Services,102,HR,HUMAN RESOURCES,HUMAN RESOURCES,SUBSCRIPTIONS S E EMPLOYERS,3732,-,-,2016/04/19 23:00:00+00,2016/04/19 23:00:00+00,144737,4998.81005859375,Revenue,South East Employers,April,2016,7
Tunbridge Wells Borough Council,Central Services,102,FM,FACILITIES MANAGEMENT,TOWN HALL,FURNITURE COSTS,3020,PROPERTY ACCOMMODATION,PH0602,2016/04/19 23:00:00+00,2016/04/19 23:00:00+00,145538,4699.75,Revenue,Kent County Council (KCS),April,2016,8
Tunbridge Wells Borough Council,Cultural and Related Services,104,AH,ASSEMBLY HALL,A-HALL MANAGEMENT,ELECTRICITY,2140,-,-,2016/04/19 23:00:00+00,2016/04/19 23:00:00+00,145535,4566.240234375,Revenue,Kent County Council (KCS),April,2016,9
Tunbridge Wells Borough Council,Cultural and Related Services,104,AH,ASSEMBLY HALL,A-HALL COUNCIL SHOWS,SHOW FEES,3380,160326 CHAMPIONS OF MAGIC,A16C11,2016/04/19 23:00:00+00,2016/04/19 23:00:00+00,145221,4307.93994140625,Revenue,RIP Productions LTD,April,2016,10
Tunbridge Wells Borough Council,Central Services,102,FI,FINANCE,SALARY SACRIFICES,LOANS - UNSECURED,8530,GYM SALARY SACRIFICE,GYM000,2016/04/19 23:00:00+00,2016/04/19 23:00:00+00,145107,3790.39990234375,Revenue,Fusion Lifestyle,April,2016,11
Tunbridge Wells Borough Council,Central Services,102,HR,HUMAN RESOURCES,HUMAN RESOURCES,IN HOUSE TRAINING,201,-,-,2016/04/19 23:00:00+00,2016/04/19 23:00:00+00,145084,3600,Revenue,London Business Forum Ltd,April,2016,12
Tunbridge Wells Borough Council,Planning Services,110,FI,FINANCE,DEVELOPMENT PROGRAMME,LEGAL FEES,3260,DEV PROG LEGAL RESOURCE,PH0716,2016/04/19 23:00:00+00,2016/04/19 23:00:00+00,145086,3120,Revenue,G-B LEGAL LIMITED,April,2016,13
Tunbridge Wells Borough Council,Central Services,102,HR,HUMAN RESOURCES,HUMAN RESOURCES,IN HOUSE TRAINING,201,-,-,2016/04/19 23:00:00+00,2016/04/19 23:00:00+00,144785,3064.60009765625,Revenue,People Lab,April,2016,14
Tunbridge Wells Borough Council,Housing Services,108,HO,HOUSING,HOUSING NEEDS SERVICE,PROJECTS & INITIATIVES,3910,-,-,2016/04/19 23:00:00+00,2016/04/19 23:00:00+00,145455,3000,Revenue,Tunbridge Wells Citizens Advice Bureau,April,2016,15
Tunbridge Wells Borough Council,Environmental and regulatory services ,105,EH,ENVIRONMENTAL HEALTH,HEAD OF ENVIRONMENT & SS,EXTERNAL TRAINING,204,-,-,2016/04/19 23:00:00+00,2016/04/19 23:00:00+00,145498,3000,Revenue,Ricardo-AEA,April,2016,16
Tunbridge Wells Borough Council,Housing Services,108,HO,HOUSING,HOUSING NEEDS SERVICE,PROJECTS & INITIATIVES,3910,-,-,2016/04/19 23:00:00+00,2016/04/19 23:00:00+00,145453,2507.13989257813,Revenue,Silver Street Consulting,April,2016,17
Tunbridge Wells Borough Council,Housing Services,108,HP,HOUSING (PRIVATE SECTOR),PRIVATE SECTOR HOUSING,WORKS IN DEFAULT - COSTS,3801,-,-,2016/04/19 23:00:00+00,2016/04/19 23:00:00+00,145454,2500,Revenue,This data has been redacted under the Data Protection Act,April,2016,18
Tunbridge Wells Borough Council,Central Services,102,LG,LEGAL SERVICES,ACCOUNTANCY,COUNSEL FEES,3261,-,-,2016/04/19 23:00:00+00,2016/04/19 23:00:00+00,145539,2500,Revenue,Mishcon de Reya,April,2016,19
Tunbridge Wells Borough Council,Housing Services,108,HO,HOUSING,RENT DEPOSIT SCHEME,DEBTORS,8510,-,-,2016/04/19 23:00:00+00,2016/04/19 23:00:00+00,145613,2262.68994140625,Revenue,This data has been redacted under the Data Protection Act,April,2016,20
Tunbridge Wells Borough Council,Highways and Transport Services,107,PA,PARKING,CRESCENT ROAD CAR PARK,RESPONSIVE REPAIRS BUILDINGS,2020,-,-,2016/04/05 23:00:00+00,2016/04/05 23:00:00+00,144780,644,Revenue,B R Holland & Sons Ltd,April,2016,21
Tunbridge Wells Borough Council,Environmental and regulatory services ,105,CS,CLIENT SERVICES (DEPOT),REFUSE COLLECTION SERVICES,EXTERNAL CONTRACT PAYMENTS,3220,-,-,2016/04/03 23:00:00+00,2016/04/05 23:00:00+00,144939,145687.859375,Revenue,Cory Environmental Municipal Services Ltd,April,2016,22
Tunbridge Wells Borough Council,Central Services,102,FI,FINANCE,D OF FINANCE & CORP SERVICES,SUBS TO ORGANISATIONS,3730,-,-,2016/04/19 23:00:00+00,2016/04/19 23:00:00+00,145073,1850,Revenue,North Kesteven District Council,April,2016,23
Tunbridge Wells Borough Council,Cultural and Related Services,104,MU,MUSEUM,MUSEUM & ART GALLERY,MAINT/SERVICING PLANT,2030,-,-,2016/04/19 23:00:00+00,2016/04/19 23:00:00+00,144854,1833.33996582031,Revenue,Kent County Council,April,2016,24
Tunbridge Wells Borough Council,Environmental and regulatory services ,105,CR,CREMATORIUM,CREMATORIUM,Medical Fees,3340,-,-,2016/04/17 23:00:00+00,2016/04/19 23:00:00+00,145061,1702.19995117188,Revenue,This data has been redacted under the Data Protection Act,April,2016,25
Tunbridge Wells Borough Council,Central Services,102,FM,FACILITIES MANAGEMENT,POSTAL CHARGES ACCOUNT,CASH TRANSFERS,9100,-,-,2016/04/19 23:00:00+00,2016/04/19 23:00:00+00,145442,1521.96997070313,Revenue,Royal Mail Group plc,April,2016,26
Tunbridge Wells Borough Council,Highways and Transport Services,107,PA,PARKING,TORRINGTON CAR PARK,ELECTRICITY,2140,-,-,2016/04/05 23:00:00+00,2016/04/19 23:00:00+00,144827,1470.18005371094,Revenue,Kent County Council (KCS),April,2016,27
Tunbridge Wells Borough Council,Central Services,102,FM,FACILITIES MANAGEMENT,TOWN HALL,FURNITURE COSTS,3020,-,-,2016/04/19 23:00:00+00,2016/04/19 23:00:00+00,145485,1425.38000488281,Revenue,Straight Manufacturing Ltd,April,2016,28
Tunbridge Wells Borough Council,Cultural and Related Services,104,AH,ASSEMBLY HALL,A-HALL COUNCIL SHOWS,SHOW FEES,3380,160401 BUDDY HOLLY AND CRICKET,A16D13,2016/04/19 23:00:00+00,2016/04/19 23:00:00+00,145491,1417.41003417969,Revenue,Individual Entertainment Ltd,April,2016,29
Tunbridge Wells Borough Council,Highways and Transport Services,107,PA,PARKING,PARKING REGULATION,SIGNING & LINING WORKS,3920,-,-,2016/04/17 23:00:00+00,2016/04/19 23:00:00+00,145439,1205.09997558594,Revenue,Local World Limited,April,2016,30
Tunbridge Wells Borough Council,Highways and Transport Services,107,PA,PARKING,TORRINGTON CAR PARK,ELECTRICITY,2140,-,-,2016/04/05 23:00:00+00,2016/04/19 23:00:00+00,144829,1043.0400390625,Revenue,Kent County Council (KCS),April,2016,31
Tunbridge Wells Borough Council,Cultural and Related Services,104,AM,ASSEMBLY HALL MARKETING,A-HALL MKTG & SALES,PROMOTION,3450,-,-,2016/04/19 23:00:00+00,2016/04/19 23:00:00+00,145240,1000,Revenue,One Media Ltd,April,2016,32
Tunbridge Wells Borough Council,Housing Services,108,HO,HOUSING,HOUSING NEEDS SERVICE,HOMELESSNESS EXPENSES,3912,SYRIAN REFUGEES,EV0587,2016/04/19 23:00:00+00,2016/04/19 23:00:00+00,145614,967,Revenue,This data has been redacted under the Data Protection Act,April,2016,33
Tunbridge Wells Borough Council,Environmental and regulatory services ,105,CR,CREMATORIUM,CREMATORIUM,Medical Fees,3340,-,-,2016/04/17 23:00:00+00,2016/04/19 23:00:00+00,145062,963.340026855469,Revenue,This data has been redacted under the Data Protection Act,April,2016,34
Tunbridge Wells Borough Council,Cultural and Related Services,104,PK,PARKS,GROSVENOR AND HILBERT PARK,"CONSTRUCTION, RENOVATION, ETC",8311,-,-,2016/04/19 23:00:00+00,2016/04/19 23:00:00+00,145504,915.400024414063,Capital,Palmstead Nurseries Ltd,April,2016,35
Tunbridge Wells Borough Council,Cultural and Related Services,104,PK,PARKS,PARKS & GROUNDS,Horticulture,2061,BRITAIN IN BLOOM,PL0395,2016/04/17 23:00:00+00,2016/04/19 23:00:00+00,145421,915,Revenue,Baginton Nurseries Ltd,April,2016,36
Tunbridge Wells Borough Council,Cultural and Related Services,104,PK,PARKS,DUNORLAN PARK,Horticulture,2061,-,-,2016/04/17 23:00:00+00,2016/04/19 23:00:00+00,145503,888.299987792969,Revenue,Palmstead Nurseries Limited,April,2016,37
Tunbridge Wells Borough Council,Central Services,102,PU,PUBLICATIONS,BUILDING ADMINISTRATION,PRINTING,3150,-,-,2016/04/17 23:00:00+00,2016/04/19 23:00:00+00,145145,826.099975585938,Revenue,Corporate Document Services Limited,April,2016,38
Tunbridge Wells Borough Council,Cultural and Related Services,104,PK,PARKS,PARKS & GROUNDS,Horticulture,2061,-,-,2016/04/17 23:00:00+00,2016/04/19 23:00:00+00,145501,777,Revenue,Palmstead Nurseries Limited,April,2016,39
Tunbridge Wells Borough Council,Cultural and Related Services,104,AM,ASSEMBLY HALL MARKETING,A-HALL MKTG & SALES,PROMOTION - WHATS ON MAG,3456,-,-,2016/04/19 23:00:00+00,2016/04/19 23:00:00+00,145422,720,Revenue,London Calling Arts Ltd,April,2016,40
Tunbridge Wells Borough Council,Cultural and Related Services,104,AH,ASSEMBLY HALL,A-HALL TECH OPS,FIRE & SECURITY COSTS,2080,-,-,2016/04/17 23:00:00+00,2016/04/19 23:00:00+00,145252,704,Revenue,Colt Service,April,2016,41
Tunbridge Wells Borough Council,Environmental and regulatory services ,105,CU,COMMUNITY SAFTY UNIT,CCTV,ELECTRICITY,2140,-,-,2016/04/19 23:00:00+00,2016/04/19 23:00:00+00,145118,632.929992675781,Revenue,EDF Energy,April,2016,42
Tunbridge Wells Borough Council,Central Services,102,HR,HUMAN RESOURCES,TOWN HALL,FURNITURE COSTS,3020,PROPERTY ACCOMMODATION,PH0602,2016/04/19 23:00:00+00,2016/04/19 23:00:00+00,145224,620.369995117188,Revenue,Posturite (UK) Ltd,April,2016,43
Tunbridge Wells Borough Council,Planning Services,110,PL,PLANNING,DEVELOPMENT MANAGEMENT,PLANNING CONSULTANT FEES,3270,-,-,2016/04/19 23:00:00+00,2016/04/19 23:00:00+00,144804,609.400024414063,Revenue,Dixon Searle LLP,April,2016,44
Tunbridge Wells Borough Council,Cultural and Related Services,104,PK,PARKS,PARKS & GROUNDS,GROUND MAINT NON CONTRACT,2060,-,-,2016/04/17 23:00:00+00,2016/04/19 23:00:00+00,145440,600,Revenue,Clarke Consultancy Limited,April,2016,45
Tunbridge Wells Borough Council,Planning Services,110,ED,ECONOMIC DEVELOPMENT,ECONOMIC DEVELOPMENT,PROJECTS & INITIATIVES,3910,-,-,2016/04/19 23:00:00+00,2016/04/19 23:00:00+00,144746,575,Revenue,West Kent Chamber Of Commerce,April,2016,46
Tunbridge Wells Borough Council,Cultural and Related Services,104,PK,PARKS,DUNORLAN PARK,Horticulture,2061,-,-,2016/04/17 23:00:00+00,2016/04/19 23:00:00+00,145500,563.650024414063,Revenue,Palmstead Nurseries Limited,April,2016,47
Tunbridge Wells Borough Council,Planning Services,110,GI,GIS,GIS SYSTEM,SUBS TO ORGANISATIONS,3730,-,-,2016/04/19 23:00:00+00,2016/04/19 23:00:00+00,144756,540,Revenue,Association for Geographic Information,April,2016,48
Tunbridge Wells Borough Council,Cultural and Related Services,104,CC,CAMDEN CENTRE,CAMDEN CENTRE,ELECTRICITY,2140,-,-,2016/04/19 23:00:00+00,2016/04/19 23:00:00+00,145545,537.760009765625,Revenue,Kent County Council (KCS),April,2016,49
Tunbridge Wells Borough Council,Cultural and Related Services,104,AM,ASSEMBLY HALL MARKETING,A-HALL MANAGEMENT,SUBS TO ORGANISATIONS,3730,-,-,2016/04/19 23:00:00+00,2016/04/19 23:00:00+00,144873,510,Revenue,Arts Marketing Association,April,2016,50
Tunbridge Wells Borough Council,Central Services,102,HR,HUMAN RESOURCES,HUMAN RESOURCES,IN HOUSE TRAINING,201,-,-,2016/04/19 23:00:00+00,2016/04/19 23:00:00+00,145526,500,Revenue,Eventus Training & Events Ltd,April,2016,51
Tunbridge Wells Borough Council,Cultural and Related Services,104,CC,CAMDEN CENTRE,CAMDEN CENTRE,GAS,2120,-,-,2016/04/19 23:00:00+00,2016/04/19 23:00:00+00,145562,494.100006103516,Revenue,Kent County Council (KCS),April,2016,52
Tunbridge Wells Borough Council,Housing Services,108,HO,HOUSING,BED & BREAKFAST COSTS,RENTS/HIRE OF PREMISES,2200,-,-,2016/04/19 23:00:00+00,2016/04/19 23:00:00+00,145493,490,Revenue,This data has been redacted under the Data Protection Act,April,2016,53
Tunbridge Wells Borough Council,Housing Services,108,HO,HOUSING,RENT DEPOSIT SCHEME,DEBTORS,8510,-,-,2016/04/05 23:00:00+00,2016/04/05 23:00:00+00,144697,620,Revenue,This data has been redacted under the Data Protection Act,April,2016,54
Tunbridge Wells Borough Council,Cultural and Related Services,104,PK,PARKS,PARKS & GROUNDS,WASTEWATER & DRAINAGE,2340,-,-,2016/04/19 23:00:00+00,2016/04/19 23:00:00+00,145487,483.019989013672,Revenue,Southern Water,April,2016,55
Tunbridge Wells Borough Council,Central Services,102,RB,REVS & BENS,REVS & BENS ADMINISTRATION,CONSULTANTS FEES,3292,-,-,2016/04/05 23:00:00+00,2016/04/05 23:00:00+00,144885,620,Revenue,Inform CPI Limited,April,2016,56
Tunbridge Wells Borough Council,Cultural and Related Services,104,MU,MUSEUM,MUSEUM & ART GALLERY,COGS - SOUVENIRS,3087,-,-,2016/04/17 23:00:00+00,2016/04/19 23:00:00+00,145082,474,Revenue,Keycraft,April,2016,57
Tunbridge Wells Borough Council,Housing Services,108,HO,HOUSING,BED & BREAKFAST COSTS,RENTS/HIRE OF PREMISES,2200,-,-,2016/04/05 23:00:00+00,2016/04/05 23:00:00+00,144876,598,Revenue,Spa Caffe Ltd,April,2016,58
Tunbridge Wells Borough Council,Cultural and Related Services,104,PK,PARKS,GROSVENOR AND HILBERT PARK,"CONSTRUCTION, RENOVATION, ETC",8311,-,-,2016/04/14 23:00:00+00,2016/04/19 23:00:00+00,145475,430.5,Capital,British Wild Flower Plants,April,2016,59
Tunbridge Wells Borough Council,Planning Services,110,PS,PROPERTY SERVICES,JOHN STREET CAR PARK,"CONSTRUCTION, RENOVATION, ETC",8311,-,-,2016/04/05 23:00:00+00,2016/04/05 23:00:00+00,144803,116240.453125,Capital,Buxton Building Contractors,April,2016,60
Tunbridge Wells Borough Council,Housing Services,108,HO,HOUSING,RENT DEPOSIT SCHEME,L&T OPERATIONS MGT CEC,7510,-,-,2016/04/05 23:00:00+00,2016/04/05 23:00:00+00,144935,575,Revenue,Andrews Letting Management,April,2016,61
Tunbridge Wells Borough Council,Cultural and Related Services,104,PK,PARKS,GROSVENOR AND HILBERT PARK,"CONSTRUCTION, RENOVATION, ETC",8311,-,-,2016/04/05 23:00:00+00,2016/04/05 23:00:00+00,144825,113810,Capital,Blakedown Landscapes (SE) Ltd,April,2016,62
Tunbridge Wells Borough Council,Housing Services,108,HO,HOUSING,BED & BREAKFAST COSTS,RENTS/HIRE OF PREMISES,2200,-,-,2016/04/05 23:00:00+00,2016/04/05 23:00:00+00,144748,570,Revenue,Grapevine Estates Ltd,April,2016,63
Tunbridge Wells Borough Council,Environmental and regulatory services ,105,CS,CLIENT SERVICES (DEPOT),STREET SWEEPING,EXTERNAL CONTRACT PAYMENTS,3220,-,-,2016/04/05 23:00:00+00,2016/04/05 23:00:00+00,144940,91552.2265625,Revenue,Cory Environmental Municipal Services Ltd,April,2016,64
Tunbridge Wells Borough Council,Environmental and regulatory services ,105,PK,PARKS,CREMATORIUM,Grounds Maint. Sodexo Contract,2054,-,-,2016/04/05 23:00:00+00,2016/04/05 23:00:00+00,144713,69048.71875,Revenue,Sodexo Ltd,April,2016,65
Tunbridge Wells Borough Council,Central Services,102,FI,FINANCE,S106 -USEABLE RECEIPTS,CREDITORS,9009,1-36 Ropers Gate 11/03812,RV0760,2016/04/05 23:00:00+00,2016/04/05 23:00:00+00,144922,45306.44921875,Capital,Town and Country Housing Group,April,2016,66
Tunbridge Wells Borough Council,Central Services,102,FI,FINANCE,CORPORATE COSTS,AUDIT & ACCOUNTING FEES,3280,-,-,2016/04/05 23:00:00+00,2016/04/05 23:00:00+00,144847,12807.5,Revenue,Grant Thornton UK LLP,April,2016,67
Tunbridge Wells Borough Council,Planning Services,110,SH,SHERWOOD,SHERWOOD COMMISSIONING POT,PROJECTS & INITIATIVES,3910,-,-,2016/04/05 23:00:00+00,2016/04/05 23:00:00+00,144794,7254,Revenue,Empowering-communities,April,2016,68
Tunbridge Wells Borough Council,Housing Services,108,HP,HOUSING (PRIVATE SECTOR),DISABLED FACILITIES GRANTS,CAPITAL GRANTS PAYABLE,8355,-,-,2016/04/05 23:00:00+00,2016/04/05 23:00:00+00,144759,7000,Capital,Batchelor Construction Ltd,April,2016,69
Tunbridge Wells Borough Council,Central Services,102,FI,FINANCE,GATEWAY,EXTERNAL CONTRACT PAYMENTS,3220,GATEWAY (NON KCC),EV0344,2016/04/03 23:00:00+00,2016/04/05 23:00:00+00,142162,6463.02001953125,Revenue,Contract Security Services Ltd,April,2016,70
Tunbridge Wells Borough Council,Central Services,102,IT,INFORMATION & COMMUNICATIONS TECHNOLOGY,I T SERVICE,IT SOFTWARE,3590,SOFTWARE MAINTENANCE,EV0328,2016/04/05 23:00:00+00,2016/04/05 23:00:00+00,144896,5776,Revenue,Insight Direct (UK) Ltd,April,2016,71
Tunbridge Wells Borough Council,Environmental and regulatory services ,105,CS,CLIENT SERVICES (DEPOT),CLEANER BOROUGH,OTHER FEES,3330,LITTERING ENFORCEMENT,EV0464,2016/04/05 23:00:00+00,2016/04/05 23:00:00+00,144776,4788.2001953125,Revenue,Kingdom Security Limited,April,2016,72
Tunbridge Wells Borough Council,Cultural and Related Services,104,AH,ASSEMBLY HALL,A-HALL COUNCIL SHOWS,SHOW FEES,3380,160318 THINK FLOYD,A16C12,2016/04/05 23:00:00+00,2016/04/05 23:00:00+00,144788,4039.78002929688,Revenue,Sweeney Entertainments Ltd,April,2016,73
Tunbridge Wells Borough Council,Cultural and Related Services,104,PK,PARKS,PARKS & GROUNDS,Horticulture,2061,BRITAIN IN BLOOM,PL0395,2016/04/05 23:00:00+00,2016/04/05 23:00:00+00,144920,3694,Revenue,JAMI Q'S (WREXHAM) LTD,April,2016,74
Tunbridge Wells Borough Council,Cultural and Related Services,104,PK,PARKS,PARKS & GROUNDS,EQUIPMENT PURCHASE/MTCE,3000,-,-,2016/04/05 23:00:00+00,2016/04/05 23:00:00+00,144927,3550,Revenue,THE PLAY INSPECTION COMPANY,April,2016,75
Tunbridge Wells Borough Council,Cultural and Related Services,104,PK,PARKS,PARKS & GROUNDS,Grounds Maint. Sodexo Contract,2054,-,-,2016/04/05 23:00:00+00,2016/04/05 23:00:00+00,144120,3363.71997070313,Revenue,Sodexo Ltd,April,2016,76
Tunbridge Wells Borough Council,Environmental and regulatory services ,105,PK,PARKS,CREMATORIUM,GROUNDS MAINT CONTRACTS,2050,-,-,2016/04/05 23:00:00+00,2016/04/05 23:00:00+00,144862,3308.18994140625,Revenue,Sodexo Ltd,April,2016,77
Tunbridge Wells Borough Council,Environmental and regulatory services ,105,CS,CLIENT SERVICES (DEPOT),REFUSE COLLECTION SERVICES,SPECIAL COLLECTIONS,3244,-,-,2016/04/05 23:00:00+00,2016/04/05 23:00:00+00,144941,3118.09008789063,Revenue,Cory Environmental Municipal Services Ltd,April,2016,78
Tunbridge Wells Borough Council,Cultural and Related Services,104,AH,ASSEMBLY HALL,A-HALL COUNCIL SHOWS,SHOW FEES,3380,160327 LETS HANG ON,A16C08,2016/04/05 23:00:00+00,2016/04/05 23:00:00+00,144919,2840.47998046875,Revenue,Riviera Entertainments Ltd,April,2016,79
Tunbridge Wells Borough Council,Cultural and Related Services,104,PK,PARKS,PARKS & GROUNDS,ELECTRICITY,2140,-,-,2016/04/05 23:00:00+00,2016/04/05 23:00:00+00,144720,2578.2900390625,Revenue,EDF Energy,April,2016,80
Tunbridge Wells Borough Council,Environmental and regulatory services ,105,CS,CLIENT SERVICES (DEPOT),REFUSE COLLECTION SERVICES,RECYCLING EXPENSES-CARDBOARD,3241,-,-,2016/04/05 23:00:00+00,2016/04/05 23:00:00+00,144735,2431.55004882813,Revenue,Biffa Waste Services Ltd,April,2016,81
Tunbridge Wells Borough Council,Environmental and regulatory services ,105,PK,PARKS,TUNBRIDGE WELLS-CEMETERIES,Grounds Maint. Sodexo Contract,2054,-,-,2016/04/05 23:00:00+00,2016/04/05 23:00:00+00,144861,2000,Revenue,Sodexo Ltd,April,2016,82
Tunbridge Wells Borough Council,Housing Services,108,HO,HOUSING,BED & BREAKFAST COSTS,RENTS/HIRE OF PREMISES,2200,-,-,2016/04/19 23:00:00+00,2016/04/19 23:00:00+00,145494,420,Revenue,This data has been redacted under the Data Protection Act,April,2016,83
Tunbridge Wells Borough Council,Cultural and Related Services,104,MU,MUSEUM,MUSEUM & ART GALLERY,PROJECTS & INITIATIVES,3910,MUSEUM IN SCHOOLS,EV0061,2016/04/05 23:00:00+00,2016/04/05 23:00:00+00,144774,1780,Revenue,This data has been redacted under the Data Protection Act,April,2016,84
Tunbridge Wells Borough Council,Cultural and Related Services,104,PK,PARKS,PARKS & GROUNDS,Horticulture,2061,-,-,2016/04/05 23:00:00+00,2016/04/05 23:00:00+00,144710,1568.05004882813,Revenue,Palmstead Nurseries Ltd,April,2016,85
Tunbridge Wells Borough Council,Cultural and Related Services,104,MU,MUSEUM,MUSEUM & ART GALLERY,ELECTRICITY,2140,-,-,2016/04/05 23:00:00+00,2016/04/05 23:00:00+00,144853,1552.15002441406,Revenue,Kent County Council,April,2016,86
Tunbridge Wells Borough Council,Cultural and Related Services,104,PK,PARKS,WOODLANDS,MANAGEMENT FEES,3310,-,-,2016/04/05 23:00:00+00,2016/04/05 23:00:00+00,144800,1475,Revenue,Tilhill Forestry Limited,April,2016,87
Tunbridge Wells Borough Council,Housing Services,108,HO,HOUSING,BED & BREAKFAST COSTS,RENTS/HIRE OF PREMISES,2200,-,-,2016/04/05 23:00:00+00,2016/04/05 23:00:00+00,144878,1425,Revenue,Spa Caffe Ltd,April,2016,88
Tunbridge Wells Borough Council,Cultural and Related Services,104,PK,PARKS,PARKS & GROUNDS,Horticulture,2061,-,-,2016/04/05 23:00:00+00,2016/04/05 23:00:00+00,144890,1310.59997558594,Revenue,Palmstead Nurseries Limited,April,2016,89
Tunbridge Wells Borough Council,Cultural and Related Services,104,PK,PARKS,PARKS & GROUNDS,GROUND MAINT NON CONTRACT,2060,-,-,2016/04/05 23:00:00+00,2016/04/05 23:00:00+00,144731,1240,Revenue,IOG,April,2016,90
Tunbridge Wells Borough Council,Cultural and Related Services,104,PK,PARKS,PARKS & GROUNDS,PROJECTS & INITIATIVES,3910,GREEN FLAG AWARD,EV0270,2016/04/05 23:00:00+00,2016/04/05 23:00:00+00,144928,1201.01000976563,Revenue,Ryedale Printing Works Ltd T/A Hortipak,April,2016,91
Tunbridge Wells Borough Council,Housing Services,108,HP,HOUSING (PRIVATE SECTOR),DISABLED FACILITIES GRANTS,CAPITAL GRANTS PAYABLE,8355,-,-,2016/04/05 23:00:00+00,2016/04/05 23:00:00+00,144793,1102.71997070313,Capital,Family Mosaic Housing,April,2016,92
Tunbridge Wells Borough Council,Environmental and regulatory services ,105,PK,PARKS,TUNBRIDGE WELLS-CEMETERIES,Grounds Maint. Sodexo Contract,2054,-,-,2016/04/05 23:00:00+00,2016/04/05 23:00:00+00,144849,1092.31994628906,Revenue,Sodexo Ltd,April,2016,93
Tunbridge Wells Borough Council,Cultural and Related Services,104,PK,PARKS,PARKS & GROUNDS,Horticulture,2061,-,-,2016/04/05 23:00:00+00,2016/04/05 23:00:00+00,144709,1081,Revenue,Palmstead Nurseries Ltd,April,2016,94
Tunbridge Wells Borough Council,Cultural and Related Services,104,AH,ASSEMBLY HALL,A-HALL COUNCIL SHOWS,SHOW FEES,3380,160322 MARK BEAUMONT,A16C10,2016/04/05 23:00:00+00,2016/04/05 23:00:00+00,144770,1039.43994140625,Revenue,Speakers from the Edge Ltd,April,2016,95
Tunbridge Wells Borough Council,Highways and Transport Services,107,PA,PARKING,TORRINGTON CAR PARK,CONTRACT CLEANING,2510,-,-,2016/04/05 23:00:00+00,2016/04/05 23:00:00+00,144845,1000,Revenue,D R M Rowswell,April,2016,96
Tunbridge Wells Borough Council,Housing Services,108,HO,HOUSING,HOUSING NEEDS SERVICE,SUBS TO ORGANISATIONS,3730,-,-,2016/04/03 23:00:00+00,2016/04/05 23:00:00+00,144931,1000,Revenue,Canterbury City Council,April,2016,97
Tunbridge Wells Borough Council,Cultural and Related Services,104,PS,PROPERTY SERVICES,SHARED AMENITY MAINTENANCE,FOOTPATHS,2062,-,-,2016/04/05 23:00:00+00,2016/04/05 23:00:00+00,144894,940,Revenue,Treework,April,2016,98
Tunbridge Wells Borough Council,Housing Services,108,HO,HOUSING,BED & BREAKFAST COSTS,RENTS/HIRE OF PREMISES,2200,-,-,2016/04/05 23:00:00+00,2016/04/05 23:00:00+00,144875,912,Revenue,Spa Caffe Ltd,April,2016,99
Tunbridge Wells Borough Council,Housing Services,108,HO,HOUSING,RENT DEPOSIT SCHEME,DEBTORS,8510,-,-,2016/04/05 23:00:00+00,2016/04/05 23:00:00+00,144936,825,Revenue,This data has been redacted under the Data Protection Act,April,2016,100
Tunbridge Wells Borough Council,Central Services,102,HO,HOUSING,SUPPORTING PEOPLE FUND,DEBTORS,8510,-,-,2016/04/05 23:00:00+00,2016/04/05 23:00:00+00,144811,795,Revenue,Alastair Stuart Ltd,April,2016,101
Tunbridge Wells Borough Council,Highways and Transport Services,107,PA,PARKING,PARKING ADMIN & ENFORCEMENT,AGENCY STAFF,100,-,-,2016/04/05 23:00:00+00,2016/04/05 23:00:00+00,144787,793.799987792969,Revenue,Unity Recruitment Ltd,April,2016,102
Tunbridge Wells Borough Council,Planning Services,110,PL,PLANNING,DEVELOPMENT MANAGEMENT,PLANNING CONSULTANT FEES,3270,-,-,2016/04/05 23:00:00+00,2016/04/05 23:00:00+00,144815,775,Revenue,Rural Planning Limited,April,2016,103
Tunbridge Wells Borough Council,Housing Services,108,HO,HOUSING,BED & BREAKFAST COSTS,RENTS/HIRE OF PREMISES,2200,-,-,2016/04/05 23:00:00+00,2016/04/05 23:00:00+00,144747,770,Revenue,Grapevine Estates Ltd,April,2016,104
Tunbridge Wells Borough Council,Planning Services,110,SH,SHERWOOD,SHERWOOD COMMISSIONING POT,PROJECTS & INITIATIVES,3910,-,-,2016/04/05 23:00:00+00,2016/04/05 23:00:00+00,144781,760,Revenue,Rubicon Cares,April,2016,105
Tunbridge Wells Borough Council,Cultural and Related Services,104,PK,PARKS,PARKS & GROUNDS,EQUIPMENT PURCHASE/MTCE,3000,-,-,2016/04/05 23:00:00+00,2016/04/05 23:00:00+00,144832,758,Revenue,JRB ENTERPRISE LTD,April,2016,106
Tunbridge Wells Borough Council,Central Services,102,RB,REVS & BENS,REVS & BENS ADMINISTRATION,CONSULTANTS FEES,3292,-,-,2016/04/05 23:00:00+00,2016/04/05 23:00:00+00,144751,740,Revenue,Inform CPI Limited,April,2016,107
Tunbridge Wells Borough Council,Housing Services,108,HO,HOUSING,BED & BREAKFAST COSTS,RENTS/HIRE OF PREMISES,2200,-,-,2016/04/05 23:00:00+00,2016/04/05 23:00:00+00,144877,690,Revenue,Spa Caffe Ltd,April,2016,108
Tunbridge Wells Borough Council,Cultural and Related Services,104,HO,HOUSING,MUSEUM & ART GALLERY,PROJECTS & INITIATIVES,3910,-,-,2016/04/03 23:00:00+00,2016/04/05 23:00:00+00,144822,660,Revenue,Hays Montrose,April,2016,109
Tunbridge Wells Borough Council,Environmental and regulatory services ,105,CS,CLIENT SERVICES (DEPOT),REFUSE COLLECTION SERVICES,EXTNLL CONTRACT/CLINICAL WASTE,3224,-,-,2016/04/05 23:00:00+00,2016/04/05 23:00:00+00,144942,650.510009765625,Revenue,OCS Group UK Limited t/a Cannon,April,2016,110
Tunbridge Wells Borough Council,Cultural and Related Services,104,PK,PARKS,GROSVENOR AND HILBERT PARK,"CONSTRUCTION, RENOVATION, ETC",8311,-,-,2016/04/05 23:00:00+00,2016/04/05 23:00:00+00,144701,645,Capital,Streetmaster (South Wales) Ltd,April,2016,111
Tunbridge Wells Borough Council,Highways and Transport Services,107,PA,PARKING,CRESCENT ROAD CAR PARK,MAINT/SERVICING PLANT,2030,-,-,2016/04/05 23:00:00+00,2016/04/05 23:00:00+00,144886,555.299987792969,Revenue,SFS Fire Service Ltd ta Chubb Fire Mechanical,April,2016,112
Tunbridge Wells Borough Council,Environmental and regulatory services ,105,PK,PARKS,CREMATORIUM,GROUNDS MAINT CONTRACTS,2050,-,-,2016/04/05 23:00:00+00,2016/04/05 23:00:00+00,144711,550.140014648438,Revenue,Palmstead Nurseries Limited,April,2016,113
Tunbridge Wells Borough Council,Cultural and Related Services,104,ED,ECONOMIC DEVELOPMENT,TW TIC,ELECTRICITY,2140,-,-,2016/04/05 23:00:00+00,2016/04/05 23:00:00+00,144176,539.900024414063,Revenue,British Gas Business,April,2016,114
Tunbridge Wells Borough Council,Highways and Transport Services,107,PA,PARKING,PARKING REGULATION,SIGNING & LINING WORKS,3920,-,-,2016/04/05 23:00:00+00,2016/04/05 23:00:00+00,144887,500,Revenue,S K F Contractors Ltd,April,2016,115
Tunbridge Wells Borough Council,Housing Services,108,HO,HOUSING,RENT DEPOSIT SCHEME,DEBTORS,8510,-,-,2016/04/05 23:00:00+00,2016/04/05 23:00:00+00,144938,500,Revenue,Martin and Co,April,2016,116
Tunbridge Wells Borough Council,Cultural and Related Services,104,PK,PARKS,PARKS & GROUNDS,ELECTRICITY,2140,-,-,2016/04/05 23:00:00+00,2016/04/05 23:00:00+00,144813,497.869995117188,Revenue,EDF Energy,April,2016,117
Tunbridge Wells Borough Council,Housing Services,108,HO,HOUSING,BED & BREAKFAST COSTS,RENTS/HIRE OF PREMISES,2200,-,-,2016/04/05 23:00:00+00,2016/04/05 23:00:00+00,144752,490,Revenue,Grapevine Estates Ltd,April,2016,118
Tunbridge Wells Borough Council,Housing Services,108,HO,HOUSING,BED & BREAKFAST COSTS,RENTS/HIRE OF PREMISES,2200,-,-,2016/04/05 23:00:00+00,2016/04/05 23:00:00+00,144753,490,Revenue,Grapevine Estates Ltd,April,2016,119
Tunbridge Wells Borough Council,Housing Services,108,HO,HOUSING,BED & BREAKFAST COSTS,RENTS/HIRE OF PREMISES,2200,-,-,2016/04/05 23:00:00+00,2016/04/05 23:00:00+00,144923,490,Revenue,This data has been redacted under the Data Protection Act,April,2016,120
Tunbridge Wells Borough Council,Cultural and Related Services,104,PK,PARKS,PARKS & GROUNDS,ELECTRICITY,2140,-,-,2016/04/05 23:00:00+00,2016/04/05 23:00:00+00,144717,437.869995117188,Revenue,EDF Energy,April,2016,121
Tunbridge Wells Borough Council,Central Services,102,ST,STATIONERY ORDERS,ACCOUNTANCY,PHOTOCOPYING EXPENSES,3180,PHOTOCOPYING BULK PAPER,EV0314,2016/04/17 23:00:00+00,2016/04/19 23:00:00+00,145463,389,Revenue,Premier Paper Group Ltd,April,2016,122
Tunbridge Wells Borough Council,Housing Services,108,HO,HOUSING,BED & BREAKFAST COSTS,RENTS/HIRE OF PREMISES,2200,-,-,2016/04/05 23:00:00+00,2016/04/05 23:00:00+00,144925,420,Revenue,This data has been redacted under the Data Protection Act,April,2016,123
Tunbridge Wells Borough Council,Cultural and Related Services,104,PK,PARKS,PARKS & GROUNDS,GROUND MAINT NON CONTRACT,2060,-,-,2016/04/19 23:00:00+00,2016/04/19 23:00:00+00,145445,380,Revenue,Treework,April,2016,124
Tunbridge Wells Borough Council,Environmental and regulatory services ,105,CS,CLIENT SERVICES (DEPOT),NORTH FARM DEPOT,FIRE & SECURITY COSTS,2080,-,-,2016/04/05 23:00:00+00,2016/04/05 23:00:00+00,144834,383.339996337891,Revenue,Emprise Services plc,April,2016,125
Tunbridge Wells Borough Council,Housing Services,108,HO,HOUSING,BED & BREAKFAST COSTS,RENTS/HIRE OF PREMISES,2200,-,-,2016/04/05 23:00:00+00,2016/04/05 23:00:00+00,144880,368,Revenue,Spa Caffe Ltd,April,2016,126
Tunbridge Wells Borough Council,Highways and Transport Services,107,PA,PARKING,PARKING ADMIN & ENFORCEMENT,AGENCY STAFF,100,-,-,2016/04/05 23:00:00+00,2016/04/05 23:00:00+00,144836,358.5,Revenue,Robson Newman Ltd,April,2016,127
Tunbridge Wells Borough Council,Environmental and regulatory services ,105,PK,PARKS,DISUSED CEMETERIES,GROUND MAINT NON CONTRACT,2060,-,-,2016/04/05 23:00:00+00,2016/04/05 23:00:00+00,144698,340,Revenue,A Burslem & Son Ltd (Burslem Memorials),April,2016,128
Tunbridge Wells Borough Council,Housing Services,108,HO,HOUSING,BED & BREAKFAST COSTS,RENTS/HIRE OF PREMISES,2200,-,-,2016/04/05 23:00:00+00,2016/04/05 23:00:00+00,144882,322,Revenue,Spa Caffe Ltd,April,2016,129
Tunbridge Wells Borough Council,Central Services,102,PS,PROPERTY SERVICES,BUILDING SERVICES,BOOKS & PUBLICATIONS,3190,-,-,2016/04/05 23:00:00+00,2016/04/05 23:00:00+00,144866,317,Revenue,Sweet & Maxwell Ltd,April,2016,130
Tunbridge Wells Borough Council,Cultural and Related Services,104,PK,PARKS,PARKS & GROUNDS,ELECTRICITY,2140,-,-,2016/04/05 23:00:00+00,2016/04/05 23:00:00+00,144721,312.399993896484,Revenue,EDF Energy,April,2016,131
Tunbridge Wells Borough Council,Cultural and Related Services,104,AH,ASSEMBLY HALL,A-HALL COUNCIL SHOWS,PROMOTION,3450,160301-05 ANNIE,A16C03,2016/04/05 23:00:00+00,2016/04/05 23:00:00+00,144714,300,Revenue,This data has been redacted under the Data Protection Act,April,2016,132
Tunbridge Wells Borough Council,Central Services,102,FI,FINANCE,ACCOUNTANCY,AGENCY STAFF,100,-,-,2016/04/05 23:00:00+00,2016/04/05 23:00:00+00,144864,294,Revenue,Globetask Ltd,April,2016,133
Tunbridge Wells Borough Council,Central Services,102,RB,REVS & BENS,REVS & BENS ADMINISTRATION,BAILIFFS FEES,3300,-,-,2016/04/05 23:00:00+00,2016/04/05 23:00:00+00,144739,284.070007324219,Revenue,DUKES BAILIFFS LIMITED,April,2016,134
Tunbridge Wells Borough Council,Housing Services,108,HO,HOUSING,TEMPORARY ACCOMMODATION,WATER SUPPLY,2300,-,-,2016/04/05 23:00:00+00,2016/04/05 23:00:00+00,144773,256.829986572266,Revenue,South East Water Plc,April,2016,135
Tunbridge Wells Borough Council,Environmental and regulatory services ,105,CR,CREMATORIUM,CREMATORIUM,COGS - URNS,3081,-,-,2016/04/05 23:00:00+00,2016/04/05 23:00:00+00,144778,256.549987792969,Revenue,Ashdown Supplies,April,2016,136
Tunbridge Wells Borough Council,Environmental and regulatory services ,105,CS,CLIENT SERVICES (DEPOT),REFUSE COLLECTION SERVICES,EXTNLL CONTRACT/CLINICAL WASTE,3224,-,-,2016/04/05 23:00:00+00,2016/04/05 23:00:00+00,144859,252.630004882813,Revenue,OCS Group UK Limited t/a Cannon,April,2016,137
Tunbridge Wells Borough Council,Housing Services,108,FI,FINANCE,RENT DEPOSIT SCHEME,DEBTORS,8510,-,-,2016/04/05 23:00:00+00,2016/04/11 23:00:00+00,144812,5100,Revenue,This data has been redacted under the Data Protection Act,April,2016,138
Tunbridge Wells Borough Council,Central Services,102,FI,FINANCE,TELEPHONY UPGRADES,COMPUTER HARDWARE,8329,-,-,2016/04/07 23:00:00+00,2016/04/12 23:00:00+00,144783,79502.0625,Capital,Maidstone Borough Council,April,2016,139
Tunbridge Wells Borough Council,Planning Services,110,PS,PROPERTY SERVICES,DEVELOPMENT PROGRAMME,PROPERTY CONSULTANTS,3290,NEW THEATRE CIVIC COMPLEX,PH0717,2016/04/11 23:00:00+00,2016/04/12 23:00:00+00,145132,50265,Revenue,GVA Grimley Ltd,April,2016,140
Tunbridge Wells Borough Council,Planning Services,110,PS,PROPERTY SERVICES,DEVELOPMENT PROGRAMME,PROPERTY CONSULTANTS,3290,MASTERPLAN CIVIC COMPLEX,PH0709,2016/04/11 23:00:00+00,2016/04/12 23:00:00+00,145131,32833.25,Revenue,GVA Grimley Ltd,April,2016,141
Tunbridge Wells Borough Council,Planning Services,110,PS,PROPERTY SERVICES,DEVELOPMENT PROGRAMME,PROPERTY CONSULTANTS,3290,MPA CAR PARK CIVIC COMPLEX,PH0701,2016/04/11 23:00:00+00,2016/04/12 23:00:00+00,145130,21500,Revenue,GVA Grimley Ltd,April,2016,142
Tunbridge Wells Borough Council,Housing Services,108,PS,PROPERTY SERVICES,TEMPORARY ACCOMMODATION,RESPONSIVE REPAIRS BUILDINGS,2020,PROPERTY CONTRACTS,PH0600,2016/04/12 23:00:00+00,2016/04/12 23:00:00+00,145234,19882.810546875,Revenue,DCB (Kent) Ltd,April,2016,143
Tunbridge Wells Borough Council,Central Services,102,TR,TRANSFORMATION AND DELIVERY,DATA ANALYIS SOFTWARE,COMPUTER SOFTWARE,8341,-,-,2016/04/11 23:00:00+00,2016/04/12 23:00:00+00,145208,19200,Capital,CONNEXICA LIMITED,April,2016,144
Tunbridge Wells Borough Council,Central Services,102,FM,FACILITIES MANAGEMENT,NON TWBC ELECTIONS,POSTAGE,3500,POLICE COMM ELECTION 160505,CS0396,2016/04/11 23:00:00+00,2016/04/12 23:00:00+00,144841,18848.7109375,Revenue,Royal Mail Group plc,April,2016,145
Tunbridge Wells Borough Council,Housing Services,108,PS,PROPERTY SERVICES,TEMPORARY ACCOMMODATION,FIRE & SECURITY COSTS,2080,PROPERTY CONTRACTS,PH0600,2016/04/11 23:00:00+00,2016/04/12 23:00:00+00,145087,17980.69921875,Revenue,G M Monk Ltd,April,2016,146
Tunbridge Wells Borough Council,Planning Services,110,PS,PROPERTY SERVICES,DEVELOPMENT PROGRAMME,PROPERTY CONSULTANTS,3290,CAR PARKING CIVIC COMPLEX,PH0718,2016/04/11 23:00:00+00,2016/04/12 23:00:00+00,145133,17250,Revenue,GVA Grimley Ltd,April,2016,147
Tunbridge Wells Borough Council,Central Services,102,FM,FACILITIES MANAGEMENT,TOWN HALL,CONTRACT CLEANING,2510,-,-,2016/04/07 23:00:00+00,2016/04/12 23:00:00+00,144901,14032.0302734375,Revenue,CORDANT CLEANING LTD,April,2016,148
Tunbridge Wells Borough Council,Cultural and Related Services,104,AM,ASSEMBLY HALL MARKETING,A-HALL MKTG & SALES,PROMOTION,3450,-,-,2016/04/11 23:00:00+00,2016/04/12 23:00:00+00,145147,11008.4599609375,Revenue,Corporate Document Services Limited,April,2016,149
Tunbridge Wells Borough Council,Environmental and regulatory services ,105,PS,PROPERTY SERVICES,CREMATORIUM,MAINT/SERVICING PLANT,2030,PROPERTY CONTRACTS,PH0600,2016/04/11 23:00:00+00,2016/04/12 23:00:00+00,145115,7935.3798828125,Revenue,OCO Limited,April,2016,150
Tunbridge Wells Borough Council,Central Services,102,TR,TRANSFORMATION AND DELIVERY,DATA ANALYIS SOFTWARE,COMPUTER SOFTWARE,8341,-,-,2016/04/11 23:00:00+00,2016/04/12 23:00:00+00,145207,7800,Capital,CONNEXICA LIMITED,April,2016,151
Tunbridge Wells Borough Council,Central Services,102,PS,PROPERTY SERVICES,BUILDING SERVICES,PROPERTY CONSULTANTS,3290,-,-,2016/04/11 23:00:00+00,2016/04/12 23:00:00+00,145243,7500,Revenue,GL HEARN LIMITED,April,2016,152
Tunbridge Wells Borough Council,Housing Services,108,PS,PROPERTY SERVICES,TEMPORARY ACCOMMODATION,RESPONSIVE REPAIRS BUILDINGS,2020,PROPERTY CONTRACTS,PH0600,2016/04/11 23:00:00+00,2016/04/12 23:00:00+00,145113,7249.580078125,Revenue,OCO Limited,April,2016,153
Tunbridge Wells Borough Council,Environmental and regulatory services ,105,PS,PROPERTY SERVICES,NORTH FARM DEPOT,MAINT/SERVICING PLANT,2030,PROPERTY CONTRACTS,PH0600,2016/04/11 23:00:00+00,2016/04/12 23:00:00+00,145114,7012.919921875,Revenue,OCO Limited,April,2016,154
Tunbridge Wells Borough Council,Environmental and regulatory services ,105,CR,CREMATORIUM,CREMATORIUM,OTHER FEES,3330,-,-,2016/04/11 23:00:00+00,2016/04/12 23:00:00+00,144779,6426.41015625,Revenue,The Yaboo Company Ltd,April,2016,155
Tunbridge Wells Borough Council,Housing Services,108,HO,HOUSING,RENT DEPOSIT SCHEME,DEBTORS,8510,-,-,2016/04/11 23:00:00+00,2016/04/12 23:00:00+00,145280,5300,Revenue,STEVENS PROPERTY MANAGEMENT,April,2016,156
Tunbridge Wells Borough Council,Cultural and Related Services,104,PK,PARKS,PARKS & GROUNDS,GROUND MAINT NON CONTRACT,2060,-,-,2016/04/12 23:00:00+00,2016/04/12 23:00:00+00,145161,5123.580078125,Revenue,Sodexo Ltd,April,2016,157
Tunbridge Wells Borough Council,Cultural and Related Services,104,AH,ASSEMBLY HALL,A-HALL TECH OPS,TRADE REFUSE CHARGES,2520,-,-,2016/04/19 23:00:00+00,2016/04/19 23:00:00+00,145175,378.700012207031,Revenue,Veolia ES (UK) Ltd,April,2016,158
Tunbridge Wells Borough Council,Cultural and Related Services,104,AM,ASSEMBLY HALL MARKETING,A-HALL MKTG & SALES,PROMOTION,3450,-,-,2016/04/19 23:00:00+00,2016/04/19 23:00:00+00,145236,350,Revenue,IND Media Limited,April,2016,159
Tunbridge Wells Borough Council,Central Services,102,RB,REVS & BENS,BENEFITS,OTHER FEES,3330,-,-,2016/04/19 23:00:00+00,2016/04/19 23:00:00+00,145452,350,Revenue,Tunbridge Wells Citizens Advice Bureau,April,2016,160
Tunbridge Wells Borough Council,Housing Services,108,HO,HOUSING,BED & BREAKFAST COSTS,RENTS/HIRE OF PREMISES,2200,-,-,2016/04/19 23:00:00+00,2016/04/19 23:00:00+00,145448,347.140014648438,Revenue,This data has been redacted under the Data Protection Act,April,2016,161
Tunbridge Wells Borough Council,Central Services,102,RB,REVS & BENS,REVS & BENS ADMINISTRATION,CONSULTANTS FEES,3292,-,-,2016/04/19 23:00:00+00,2016/04/19 23:00:00+00,145519,340,Revenue,Inform CPI Limited,April,2016,162
Tunbridge Wells Borough Council,Cultural and Related Services,104,PS,PROPERTY SERVICES,MUSEUM & ART GALLERY,PROJECTS & INITIATIVES,3910,-,-,2016/04/19 23:00:00+00,2016/04/19 23:00:00+00,145551,330,Revenue,Hays Montrose,April,2016,163
Tunbridge Wells Borough Council,Cultural and Related Services,104,PK,PARKS,PARKS & GROUNDS,GAS,2120,-,-,2016/04/19 23:00:00+00,2016/04/19 23:00:00+00,145563,317.410003662109,Revenue,Kent County Council (KCS),April,2016,164
Tunbridge Wells Borough Council,Highways and Transport Services,107,PA,PARKING,PARKING ADMIN & ENFORCEMENT,SIGNING & LINING WORKS,3920,-,-,2016/04/14 23:00:00+00,2016/04/19 23:00:00+00,145511,299,Revenue,Olympic Signs Limited,April,2016,165
Tunbridge Wells Borough Council,Environmental and regulatory services ,105,HE,HEALTHY COMMUNITIES,CHOOSING HEALTH,PROJECTS & INITIATIVES,3910,CHSG HEALTH MENTAL HEALTH COHE,EV0952,2016/04/14 23:00:00+00,2016/04/19 23:00:00+00,145529,291.200012207031,Revenue,Fusion Lifestyle,April,2016,166
Tunbridge Wells Borough Council,Planning Services,110,PL,PLANNING,HERITAGE PARTNER GRANTS,CAPITAL GRANTS PAYABLE,8355,-,-,2016/04/19 23:00:00+00,2016/04/19 23:00:00+00,145524,255,Capital,John Bullock Associates Ltd,April,2016,167
Tunbridge Wells Borough Council,Central Services,102,HR,HUMAN RESOURCES,STAFF WELFARE,Medical Fees,3340,-,-,2016/04/19 23:00:00+00,2016/04/19 23:00:00+00,145228,250.919998168945,Revenue,The Preventative Healthcare Company Ltd,April,2016,168
Tunbridge Wells Borough Council,Central Services,102,HR,HUMAN RESOURCES,STAFF WELFARE,Medical Fees,3340,-,-,2016/04/19 23:00:00+00,2016/04/19 23:00:00+00,145230,250.919998168945,Revenue,The Preventative Healthcare Company Ltd,April,2016,169
Tunbridge Wells Borough Council,Central Services,102,FI,FINANCE,LLOYDS CREDIT CARD CREDITOR,CREDITORS,9009,-,-,2016/04/25 23:00:00+00,2016/04/25 23:00:00+00,145826,5116.4599609375,Revenue,Lloyds TSB,April,2016,170
Tunbridge Wells Borough Council,Planning Services,110,HE,HEALTHY COMMUNITIES,COMMUNITY & GRANTS,GRANTS,3750,-,-,2016/04/25 23:00:00+00,2016/04/26 23:00:00+00,145781,35000,Revenue,Tunbridge Wells Citizens Advice Bureau,April,2016,171
Tunbridge Wells Borough Council,Central Services,102,FI,FINANCE,EXCHEQUER SERVICES,MISC INSURANCE,3850,MMI DAMAGES,MM0001,2016/04/25 23:00:00+00,2016/04/26 23:00:00+00,145594,18259,Revenue,Municipal Mutual Insurance Limited,April,2016,172
Tunbridge Wells Borough Council,Central Services,102,RB,REVS & BENS,REVS & BENS ADMINISTRATION,"PRINTING - NDR, CNCL TX & INST",3153,-,-,2016/04/25 23:00:00+00,2016/04/26 23:00:00+00,145510,13906.1103515625,Revenue,Maidstone Borough Council,April,2016,173
Tunbridge Wells Borough Council,Central Services,102,CA,CUSTOMER ACCESS,I T SERVICE,IT SOFTWARE,3590,-,-,2016/04/20 23:00:00+00,2016/04/26 23:00:00+00,145556,13173.990234375,Revenue,Limehouse Software Ltd,April,2016,174
Tunbridge Wells Borough Council,Central Services,102,FI,FINANCE,ACCOUNTANCY,PHOTOCOPYING EXPENSES,3180,PHOTOCOPYING RENTAL,EV0311,2016/04/25 23:00:00+00,2016/04/26 23:00:00+00,145869,12318.400390625,Revenue,Sharp Business Systems UK Plc,April,2016,175
Tunbridge Wells Borough Council,Environmental and regulatory services ,105,EN,ENVIRONMENT & STREET SCENE,LICENSING,PARTNERSHIP AGREEMENT,202,-,-,2016/04/25 23:00:00+00,2016/04/26 23:00:00+00,145765,10353,Revenue,Sevenoaks District Council,April,2016,176
Tunbridge Wells Borough Council,Central Services,102,HR,HUMAN RESOURCES,HUMAN RESOURCES,ADVERTISING STAFF,230,-,-,2016/04/20 23:00:00+00,2016/04/26 23:00:00+00,145216,9300,Revenue,LinkedIn Ireland,April,2016,177
Tunbridge Wells Borough Council,Cultural and Related Services,104,PK,PARKS,PARKS & GROUNDS,Grounds Maint. Sodexo Contract,2054,-,-,2016/04/26 23:00:00+00,2016/04/26 23:00:00+00,145876,7874.93017578125,Revenue,Sodexo Ltd,April,2016,178
Tunbridge Wells Borough Council,Central Services,102,PP,POLICY AND PERFORMANCE,PERFORMANCE MANAGEMENT,OTHER FEES,3330,-,-,2016/04/25 23:00:00+00,2016/04/26 23:00:00+00,144856,6535.490234375,Revenue,Covalent Software Limited,April,2016,179
Tunbridge Wells Borough Council,Central Services,102,FM,FACILITIES MANAGEMENT,TOWN HALL,CONTRACT CLEANING,2510,-,-,2016/04/25 23:00:00+00,2016/04/26 23:00:00+00,145576,6003.75,Revenue,Kent County Council (KCS),April,2016,180
Tunbridge Wells Borough Council,Central Services,102,GW,GATEWAY CUSTOMER SERVICES,GATEWAY,TELEPHONE COSTS,3510,CALL CENTRE,EV0341,2016/04/26 23:00:00+00,2016/04/26 23:00:00+00,145069,5193.22998046875,Revenue,Daisy Telecoms Ltd,April,2016,181
Tunbridge Wells Borough Council,Central Services,102,FI,FINANCE,FINANCIAL MANAGEMENT SYSTEM,COMPUTER SOFTWARE,8341,-,-,2016/04/20 23:00:00+00,2016/04/26 23:00:00+00,145255,4750,Capital,Advanced Business Solutions,April,2016,182
Tunbridge Wells Borough Council,Planning Services,110,PU,PUBLICATIONS,ECONOMIC DEVELOPMENT,PRINTING,3150,-,-,2016/04/26 23:00:00+00,2016/04/26 23:00:00+00,145149,4199.7998046875,Revenue,Corporate Document Services Limited,April,2016,183
Tunbridge Wells Borough Council,Environmental and regulatory services ,105,CS,CLIENT SERVICES (DEPOT),CLEANER BOROUGH,OTHER FEES,3330,LITTERING ENFORCEMENT,EV0464,2016/04/26 23:00:00+00,2016/04/26 23:00:00+00,145050,3941.39990234375,Revenue,Kingdom Security Limited,April,2016,184
Tunbridge Wells Borough Council,Housing Services,108,HP,HOUSING (PRIVATE SECTOR),DISABLED FACILITIES GRANTS,CAPITAL GRANTS PAYABLE,8355,-,-,2016/04/25 23:00:00+00,2016/04/26 23:00:00+00,145793,3780,Capital,Town and Country Housing Group,April,2016,185
Tunbridge Wells Borough Council,Planning Services,110,ED,ECONOMIC DEVELOPMENT,ECONOMIC DEVELOPMENT,SUBS TO ORGANISATIONS,3730,-,-,2016/04/25 23:00:00+00,2016/04/26 23:00:00+00,145873,3725.98999023438,Revenue,Visit Kent Limited,April,2016,186
Tunbridge Wells Borough Council,Highways and Transport Services,107,PA,PARKING,TORRINGTON CAR PARK,ELECTRICITY,2140,-,-,2016/04/25 23:00:00+00,2016/04/26 23:00:00+00,145852,3546.1298828125,Revenue,Kent County Council (KCS),April,2016,187
Tunbridge Wells Borough Council,Environmental and regulatory services ,105,FI,FINANCE,SUSTAINABILITY,LEASE OF VEHICLES,1090,Tunbridge Wells Car Club,PG0731,2016/04/25 23:00:00+00,2016/04/26 23:00:00+00,145461,3544,Revenue,Co-wheels Car Club,April,2016,188
Tunbridge Wells Borough Council,Cultural and Related Services,104,PS,PROPERTY SERVICES,TUNBRIDGE WELLS SPORTS CENTRE,PLANNED MAINTENANCE BUILDINGS,2000,PROPERTY NON CONTRACT,PH0605,2016/04/24 23:00:00+00,2016/04/26 23:00:00+00,145600,3335,Revenue,SYSTEM HYGIENICS LTD,April,2016,189
Tunbridge Wells Borough Council,Environmental and regulatory services ,105,CR,CREMATORIUM,CREMATORIUM,GROUNDS MAINT CONTRACTS,2050,-,-,2016/04/25 23:00:00+00,2016/04/26 23:00:00+00,145905,3318.75,Revenue,A Burslem & Son Ltd (Burslem Memorials),April,2016,190
Tunbridge Wells Borough Council,Cultural and Related Services,104,PK,PARKS,PUTLANDS SPORTS & LEISURE CENT,RESPONSIVE REPAIRS BUILDINGS,2020,-,-,2016/04/25 23:00:00+00,2016/04/26 23:00:00+00,145757,3100,Revenue,Fusion Lifestyle,April,2016,191
Tunbridge Wells Borough Council,Cultural and Related Services,104,AH,ASSEMBLY HALL,A-HALL COUNCIL SHOWS,SHOW FEES,3380,160408 TOSCA,A16D04,2016/04/25 23:00:00+00,2016/04/26 23:00:00+00,145616,3027.09008789063,Revenue,Opera & Ballet International Limited,April,2016,192
Tunbridge Wells Borough Council,Highways and Transport Services,107,PA,PARKING,PARKING ADMIN & ENFORCEMENT,NATNL PARKING ADJUDCTN SERVICE,3331,-,-,2016/04/25 23:00:00+00,2016/04/26 23:00:00+00,145854,3001.94995117188,Revenue,Patrol,April,2016,193
Tunbridge Wells Borough Council,Highways and Transport Services,107,PA,PARKING,CRESCENT ROAD CAR PARK,ELECTRICITY,2140,-,-,2016/04/25 23:00:00+00,2016/04/26 23:00:00+00,145796,2609.05004882813,Revenue,Kent County Council (KCS),April,2016,194
Tunbridge Wells Borough Council,Environmental and regulatory services ,105,CU,COMMUNITY SAFTY UNIT,COMMUNITY SAFETY,PROJECTS & INITIATIVES,3910,COMM.SAFETY PARTNE,EV0088,2016/04/25 23:00:00+00,2016/04/26 23:00:00+00,145767,2500,Revenue,TUNBRIDGE WELLS STREET PASTORS,April,2016,195
Tunbridge Wells Borough Council,Housing Services,108,HP,HOUSING (PRIVATE SECTOR),DISABLED FACILITIES GRANTS,CAPITAL GRANTS PAYABLE,8355,-,-,2016/04/25 23:00:00+00,2016/04/26 23:00:00+00,145150,2391,Capital,Ascendit Lifts Ltd,April,2016,196
Tunbridge Wells Borough Council,Environmental and regulatory services ,105,CU,COMMUNITY SAFTY UNIT,CCTV,PARTNERSHIP AGREEMENT,202,-,-,2016/04/25 23:00:00+00,2016/04/26 23:00:00+00,145891,2334.44995117188,Revenue,Sevenoaks District Council,April,2016,197
Tunbridge Wells Borough Council,Cultural and Related Services,104,AH,ASSEMBLY HALL,A-HALL HIRE SHOWS,TICKET REPAYMENT,5421,160409 ALL ENGLAND BOXING,A16R03,2016/04/25 23:00:00+00,2016/04/26 23:00:00+00,145617,2290.71997070313,Revenue,This data has been redacted under the Data Protection Act,April,2016,198
Tunbridge Wells Borough Council,Environmental and regulatory services ,105,CR,CREMATORIUM,CREMATORIUM,GAS/CREMATORS,2121,-,-,2016/04/25 23:00:00+00,2016/04/26 23:00:00+00,145466,2211.17993164063,Revenue,Kent County Council (KCS),April,2016,199
Tunbridge Wells Borough Council,Environmental and regulatory services ,105,EH,ENVIRONMENTAL HEALTH,FOOTWAY LIGHTING-TW & RUSTHALL,ELECTRICITY,2140,-,-,2016/04/25 23:00:00+00,2016/04/26 23:00:00+00,145586,2104.71997070313,Revenue,Kent County Council (KCS),April,2016,200
Tunbridge Wells Borough Council,Highways and Transport Services,107,PA,PARKING,SURFACE CAR PARKS,RESPONSIVE REPAIRS BUILDINGS,2020,NORTH GROVE,PT0120,2016/04/25 23:00:00+00,2016/04/26 23:00:00+00,145420,470,Revenue,S K F Contractors Ltd,April,2016,201
Tunbridge Wells Borough Council,Cultural and Related Services,104,AH,ASSEMBLY HALL,A-HALL FRONT OF HOUSE,ELECTRICITY,2140,-,-,2016/04/26 23:00:00+00,2016/04/26 23:00:00+00,145817,462.670013427734,Revenue,Kent County Council (KCS),April,2016,202
Tunbridge Wells Borough Council,Highways and Transport Services,107,PA,PARKING,PARKING ADMIN & ENFORCEMENT,AGENCY STAFF,100,-,-,2016/04/25 23:00:00+00,2016/04/26 23:00:00+00,145561,442.149993896484,Revenue,Robson Newman Ltd,April,2016,203
Tunbridge Wells Borough Council,Highways and Transport Services,107,PA,PARKING,PARKING ADMIN & ENFORCEMENT,AGENCY STAFF,100,-,-,2016/04/25 23:00:00+00,2016/04/26 23:00:00+00,145853,442.149993896484,Revenue,Robson Newman Ltd,April,2016,204
Tunbridge Wells Borough Council,Housing Services,108,HO,HOUSING,BED & BREAKFAST COSTS,RENTS/HIRE OF PREMISES,2200,-,-,2016/04/25 23:00:00+00,2016/04/26 23:00:00+00,145822,420,Revenue,This data has been redacted under the Data Protection Act,April,2016,205
Tunbridge Wells Borough Council,Cultural and Related Services,104,PK,PARKS,PARKS & GROUNDS,Horticulture,2061,BRITAIN IN BLOOM,PL0395,2016/04/26 23:00:00+00,2016/04/26 23:00:00+00,145879,420,Revenue,Sodexo Ltd,April,2016,206
Tunbridge Wells Borough Council,Environmental and regulatory services ,105,CR,CREMATORIUM,CREMATORIUM,GROUNDS MAINT CONTRACTS,2050,-,-,2016/04/25 23:00:00+00,2016/04/26 23:00:00+00,145415,419.220001220703,Revenue,Veolia ES (UK) Ltd,April,2016,207
Tunbridge Wells Borough Council,Cultural and Related Services,104,PK,PARKS,GROSVENOR AND HILBERT PARK,"CONSTRUCTION, RENOVATION, ETC",8311,-,-,2016/04/25 23:00:00+00,2016/04/26 23:00:00+00,145741,411.410003662109,Capital,Waste Way (Southern) Limited,April,2016,208
Tunbridge Wells Borough Council,Planning Services,110,DS,Sundry Customer,COMMUNITY & GRANTS,GRANTS,3750,THE QUEEN'S 90TH BIRTHDAY,EV0145,2016/04/11 23:00:00+00,2016/04/26 23:00:00+00,145256,400,Revenue,GROSVENOR PARK RESIDENTS ASSOCIATION,April,2016,209
Tunbridge Wells Borough Council,Cultural and Related Services,104,MU,MUSEUM,MUSEUM & ART GALLERY,EVENTS,3420,-,-,2016/04/25 23:00:00+00,2016/04/26 23:00:00+00,145558,400,Revenue,This data has been redacted under the Data Protection Act,April,2016,210
Tunbridge Wells Borough Council,Planning Services,110,HE,HEALTHY COMMUNITIES,COMMUNITY & GRANTS,GRANTS,3750,THE QUEEN'S 90TH BIRTHDAY,EV0145,2016/04/25 23:00:00+00,2016/04/26 23:00:00+00,145758,400,Revenue,Horsmonden Parish Council,April,2016,211
Tunbridge Wells Borough Council,Planning Services,110,HE,HEALTHY COMMUNITIES,COMMUNITY & GRANTS,GRANTS,3750,THE QUEEN'S 90TH BIRTHDAY,EV0145,2016/04/25 23:00:00+00,2016/04/26 23:00:00+00,145774,400,Revenue,BRENCHLEY PARISH COUNCIL,April,2016,212
Tunbridge Wells Borough Council,Planning Services,110,HE,HEALTHY COMMUNITIES,COMMUNITY & GRANTS,GRANTS,3750,THE QUEEN'S 90TH BIRTHDAY,EV0145,2016/04/25 23:00:00+00,2016/04/26 23:00:00+00,145776,400,Revenue,Pembury Parish Council,April,2016,213
Tunbridge Wells Borough Council,Planning Services,110,HE,HEALTHY COMMUNITIES,COMMUNITY & GRANTS,GRANTS,3750,THE QUEEN'S 90TH BIRTHDAY,EV0145,2016/04/25 23:00:00+00,2016/04/26 23:00:00+00,145777,400,Revenue,Frittenden Parish Council,April,2016,214
Tunbridge Wells Borough Council,Environmental and regulatory services ,105,EH,ENVIRONMENTAL HEALTH,FOOD & COMMERCIAL,COURSE FEES & EXPENSES,3410,-,-,2016/04/25 23:00:00+00,2016/04/26 23:00:00+00,145847,388.950012207031,Revenue,Chartered Institute Of Environmental Health,April,2016,215
Tunbridge Wells Borough Council,Housing Services,108,TN,TN2 CENTRE,TN2 COMMUNITY CENTRE,GAS,2120,-,-,2016/04/25 23:00:00+00,2016/04/26 23:00:00+00,145865,386.700012207031,Revenue,Kent County Council (KCS),April,2016,216
Tunbridge Wells Borough Council,Cultural and Related Services,104,MU,MUSEUM,MUSEUM & ART GALLERY,SUBS TO ORGANISATIONS,3730,-,-,2016/04/25 23:00:00+00,2016/04/26 23:00:00+00,145611,385,Revenue,Modes Users Association,April,2016,217
Tunbridge Wells Borough Council,Cultural and Related Services,104,PK,PARKS,DUNORLAN PARK,Horticulture,2061,-,-,2016/04/25 23:00:00+00,2016/04/26 23:00:00+00,145875,380,Revenue,Treework,April,2016,218
Tunbridge Wells Borough Council,Highways and Transport Services,107,PA,PARKING,PARKING ADMIN & ENFORCEMENT,AGENCY STAFF,100,-,-,2016/04/25 23:00:00+00,2016/04/26 23:00:00+00,145513,358.5,Revenue,Robson Newman Ltd,April,2016,219
Tunbridge Wells Borough Council,Cultural and Related Services,104,AB,ASSEMBLY HALL BAR,A-HALL FRONT OF HOUSE,COGS - ICE CREAMS,3093,-,-,2016/04/20 23:00:00+00,2016/04/26 23:00:00+00,145783,357.540008544922,Revenue,Taywell Ice Creams Limited,April,2016,220
Tunbridge Wells Borough Council,Cultural and Related Services,104,AB,ASSEMBLY HALL BAR,A-HALL FRONT OF HOUSE,COGS - ICE CREAMS,3093,-,-,2016/04/26 23:00:00+00,2016/04/26 23:00:00+00,145784,357.540008544922,Revenue,Taywell Ice Creams Limited,April,2016,221
Tunbridge Wells Borough Council,Cultural and Related Services,104,AB,ASSEMBLY HALL BAR,A-HALL FRONT OF HOUSE,COGS - DRINK,3091,-,-,2016/04/24 23:00:00+00,2016/04/26 23:00:00+00,145249,352.739990234375,Revenue,Westerham Brewery,April,2016,222
Tunbridge Wells Borough Council,Cultural and Related Services,104,PK,PARKS,PARKS & GROUNDS,Grounds Maint. Sodexo Contract,2054,-,-,2016/04/26 23:00:00+00,2016/04/26 23:00:00+00,145878,350,Revenue,Sodexo Ltd,April,2016,223
Tunbridge Wells Borough Council,Environmental and regulatory services ,105,CR,CREMATORIUM,CREMATORIUM,GROUNDS MAINT CONTRACTS,2050,-,-,2016/04/25 23:00:00+00,2016/04/26 23:00:00+00,145595,330,Revenue,D C Jordan,April,2016,224
Tunbridge Wells Borough Council,Cultural and Related Services,104,HO,HOUSING,MUSEUM & ART GALLERY,PROJECTS & INITIATIVES,3910,-,-,2016/04/25 23:00:00+00,2016/04/26 23:00:00+00,145809,330,Revenue,Hays Montrose,April,2016,225
Tunbridge Wells Borough Council,Central Services,102,FI,FINANCE,EXCHEQUER SERVICES,PROJECTS & INITIATIVES,3910,-,-,2016/04/20 23:00:00+00,2016/04/26 23:00:00+00,145486,323.690002441406,Revenue,Civica UK Ltd,April,2016,226
Tunbridge Wells Borough Council,Cultural and Related Services,104,AB,ASSEMBLY HALL BAR,A-HALL FRONT OF HOUSE,COGS - DRINK,3091,-,-,2016/04/25 23:00:00+00,2016/04/26 23:00:00+00,145523,295.200012207031,Revenue,Adrian Mecklenburgh Ltd,April,2016,227
Tunbridge Wells Borough Council,Environmental and regulatory services ,105,CR,CREMATORIUM,CREMATORIUM,GAS/CREMATORS,2121,-,-,2016/04/25 23:00:00+00,2016/04/26 23:00:00+00,145467,294.619995117188,Revenue,Kent County Council (KCS),April,2016,228
Tunbridge Wells Borough Council,Cultural and Related Services,104,AB,ASSEMBLY HALL BAR,A-HALL FRONT OF HOUSE,COGS - ICE CREAMS,3093,-,-,2016/04/20 23:00:00+00,2016/04/26 23:00:00+00,145782,292.529998779297,Revenue,Taywell Ice Creams Limited,April,2016,229
Tunbridge Wells Borough Council,Central Services,102,ST,STATIONERY ORDERS,ACCOUNTANCY,PHOTOCOPYING EXPENSES,3180,PHOTOCOPYING PAPER,EV0312,2016/04/26 23:00:00+00,2016/04/26 23:00:00+00,145895,289.799987792969,Revenue,Graphics Direct Ltd,April,2016,230
Tunbridge Wells Borough Council,Planning Services,110,PL,PLANNING,HERITAGE PARTNER GRANTS,"CONSTRUCTION, RENOVATION, ETC",8311,-,-,2016/04/24 23:00:00+00,2016/04/26 23:00:00+00,145768,288.619995117188,Capital,Leander Architectural,April,2016,231
Tunbridge Wells Borough Council,Planning Services,110,HE,HEALTHY COMMUNITIES,COMMUNITY & GRANTS,GRANTS,3750,THE QUEEN'S 90TH BIRTHDAY,EV0145,2016/04/25 23:00:00+00,2016/04/26 23:00:00+00,145906,280,Revenue,This data has been redacted under the Data Protection Act,April,2016,232
Tunbridge Wells Borough Council,Highways and Transport Services,107,PA,PARKING,PARKING ADMIN & ENFORCEMENT,EXTERNAL TRAINING,204,-,-,2016/04/25 23:00:00+00,2016/04/26 23:00:00+00,145861,250,Revenue,Buchanan Computing Ltd,April,2016,233
Tunbridge Wells Borough Council,Planning Services,110,PS,PROPERTY SERVICES,JOHN STREET CAR PARK,"CONSTRUCTION, RENOVATION, ETC",8311,-,-,2016/05/03 23:00:00+00,2016/05/03 23:00:00+00,146121,159882.625,Capital,Buxton Building Contractors,May,2016,234
Tunbridge Wells Borough Council,Environmental and regulatory services ,105,CS,CLIENT SERVICES (DEPOT),REFUSE COLLECTION SERVICES,EXTERNAL CONTRACT PAYMENTS,3220,-,-,2016/05/02 23:00:00+00,2016/05/03 23:00:00+00,145582,145687.859375,Revenue,Cory Environmental Municipal Services Ltd,May,2016,235
Tunbridge Wells Borough Council,Environmental and regulatory services ,105,CS,CLIENT SERVICES (DEPOT),STREET SWEEPING,EXTERNAL CONTRACT PAYMENTS,3220,-,-,2016/05/02 23:00:00+00,2016/05/03 23:00:00+00,145583,91368.7421875,Revenue,Cory Environmental Municipal Services Ltd,May,2016,236
Tunbridge Wells Borough Council,Cultural and Related Services,104,PK,PARKS,PARKS & GROUNDS,Grounds Maint. Sodexo Contract,2054,-,-,2016/05/02 23:00:00+00,2016/05/03 23:00:00+00,146097,69048.71875,Revenue,Sodexo Ltd,May,2016,237
Tunbridge Wells Borough Council,Cultural and Related Services,104,PK,PARKS,GROSVENOR AND HILBERT PARK,"CONSTRUCTION, RENOVATION, ETC",8311,-,-,2016/05/02 23:00:00+00,2016/05/03 23:00:00+00,146200,31217,Capital,Blakedown Landscapes (SE) Ltd,May,2016,238
Tunbridge Wells Borough Council,Cultural and Related Services,104,AH,ASSEMBLY HALL,A-HALL COUNCIL SHOWS,SHOW FEES,3380,160513 RUSSELL WATSON,A16E04,2016/05/03 23:00:00+00,2016/05/03 23:00:00+00,146256,17000,Revenue,Handshake Ltd,May,2016,239
Tunbridge Wells Borough Council,Environmental and regulatory services ,105,CS,CLIENT SERVICES (DEPOT),REFUSE COLLECTION SERVICES,EQUIPMENT PURCHASE/MTCE,3000,-,-,2016/05/02 23:00:00+00,2016/05/03 23:00:00+00,145105,9122.400390625,Revenue,Straight Manufacturing Ltd,May,2016,240
Tunbridge Wells Borough Council,Cultural and Related Services,104,AH,ASSEMBLY HALL,A-HALL COUNCIL SHOWS,SHOW FEES,3380,150413-14 PEPPA PIG,A16D02,2016/05/03 23:00:00+00,2016/05/03 23:00:00+00,146152,7514.27001953125,Revenue,FIERY LIGHT PPS LTD,May,2016,241
Tunbridge Wells Borough Council,Environmental and regulatory services ,105,PS,PROPERTY SERVICES,CREMATORS,"CONSTRUCTION, RENOVATION, ETC",8311,-,-,2016/05/03 23:00:00+00,2016/05/03 23:00:00+00,146074,7000,Capital,DCB (Kent) Ltd,May,2016,242
Tunbridge Wells Borough Council,Central Services,102,FI,FINANCE,S106 -USEABLE RECEIPTS,CREDITORS,9009,Greggs Wood Rd Sherwd 12/00201,RV0759,2016/05/02 23:00:00+00,2016/05/03 23:00:00+00,146101,6200,Capital,Kent County Council (H & T Income),May,2016,243
Tunbridge Wells Borough Council,Central Services,102,ED,ECONOMIC DEVELOPMENT,S106 -USEABLE RECEIPTS,CREDITORS,9009,FORMER GOODS YARD 06/01969,RV0715,2016/04/28 23:00:00+00,2016/05/03 23:00:00+00,145744,6000,Capital,Arriva Kent & Surrey Ltd,May,2016,244
Tunbridge Wells Borough Council,Housing Services,108,HP,HOUSING (PRIVATE SECTOR),DISABLED FACILITIES GRANTS,CAPITAL GRANTS PAYABLE,8355,-,-,2016/05/02 23:00:00+00,2016/05/03 23:00:00+00,146146,4885.509765625,Capital,Acorn Maintenance Services,May,2016,245
Tunbridge Wells Borough Council,Central Services,102,PS,PROPERTY SERVICES,BUILDING SERVICES,PROPERTY CONSULTANTS,3290,-,-,2016/05/03 23:00:00+00,2016/05/03 23:00:00+00,145731,4500,Revenue,Caxtons Commercial Ltd,May,2016,246
Tunbridge Wells Borough Council,Environmental and regulatory services ,105,CS,CLIENT SERVICES (DEPOT),REFUSE COLLECTION SERVICES,RECYCLING EXPENSES,3240,-,-,2016/04/27 23:00:00+00,2016/05/03 23:00:00+00,146056,4158,Revenue,Straight Manufacturing Ltd,May,2016,247
Tunbridge Wells Borough Council,Cultural and Related Services,104,AH,ASSEMBLY HALL,A-HALL COUNCIL SHOWS,SHOW FEES,3380,160416 A NIGHT OF DIRTY DANCIN,A16D07,2016/05/03 23:00:00+00,2016/05/03 23:00:00+00,146122,3921.64990234375,Revenue,Entertainers Show Providers Ltd,May,2016,248
Tunbridge Wells Borough Council,Cultural and Related Services,104,PK,PARKS,GROSVENOR AND HILBERT PARK,"CONSTRUCTION, RENOVATION, ETC",8311,-,-,2016/05/02 23:00:00+00,2016/05/03 23:00:00+00,146120,3609.43994140625,Capital,Community First Partnership Ltd,May,2016,249
Tunbridge Wells Borough Council,Housing Services,108,HO,HOUSING,HOUSING NEEDS SERVICE,SUBS TO ORGANISATIONS,3730,-,-,2016/05/03 23:00:00+00,2016/05/03 23:00:00+00,145756,3500,Revenue,Ashford Borough Council,May,2016,250
Tunbridge Wells Borough Council,Planning Services,110,PS,PROPERTY SERVICES,DEVELOPMENT PROGRAMME,LEGAL FEES,3260,CULTURAL & LEARNING HUB,PH0702,2016/04/07 23:00:00+00,2016/04/12 23:00:00+00,144807,5080,Revenue,Beachcroft LLP,April,2016,251
Tunbridge Wells Borough Council,Cultural and Related Services,104,AH,ASSEMBLY HALL,A-HALL COUNCIL SHOWS,SHOW FEES,3380,160415 TELL ME ON SUNDAY,A16D01,2016/04/11 23:00:00+00,2016/04/12 23:00:00+00,145170,5000,Revenue,TELL ME ON A SUNDAY LIMITED,April,2016,252
Tunbridge Wells Borough Council,Planning Services,110,MU,MUSEUM,DEVELOPMENT PROGRAMME,PROPERTY CONSULTANTS,3290,CULTURAL & LEARNING HUB,PH0702,2016/04/11 23:00:00+00,2016/04/12 23:00:00+00,145171,5000,Revenue,Kent County Council,April,2016,253
Tunbridge Wells Borough Council,Housing Services,108,HO,HOUSING,RENT DEPOSIT SCHEME,DEBTORS,8510,-,-,2016/04/11 23:00:00+00,2016/04/12 23:00:00+00,145278,4860,Revenue,The Letting Company,April,2016,254
Tunbridge Wells Borough Council,Planning Services,110,PL,PLANNING,PLANNING MANAGEMENT & SUPPORT,PARTNERSHIP AGREEMENT,202,-,-,2016/04/07 23:00:00+00,2016/04/12 23:00:00+00,141850,4682.27001953125,Revenue,Kent County Council,April,2016,255
Tunbridge Wells Borough Council,Housing Services,108,HO,HOUSING,RENT DEPOSIT SCHEME,DEBTORS,8510,-,-,2016/04/11 23:00:00+00,2016/04/12 23:00:00+00,145134,4500,Revenue,JORDAN ESTATES LTD T/A LLOYD MARTIN,April,2016,256
Tunbridge Wells Borough Council,Highways and Transport Services,107,PA,PARKING,CRESCENT ROAD CAR PARK,MAINT/SERVICING PLANT,2030,-,-,2016/04/11 23:00:00+00,2016/04/12 23:00:00+00,145100,4467.60009765625,Revenue,Metric Group Limited,April,2016,257
Tunbridge Wells Borough Council,Cultural and Related Services,104,PS,PROPERTY SERVICES,TUNBRIDGE WELLS SPORTS CENTRE,PLANNED MAINTENANCE BUILDINGS,2000,PROPERTY NON CONTRACT,PH0605,2016/04/07 23:00:00+00,2016/04/12 23:00:00+00,144921,4401.669921875,Revenue,Fairs & Green (MS) Ltd,April,2016,258
Tunbridge Wells Borough Council,Planning Services,110,SH,SHERWOOD,SHERWOOD COMMUNITY PILOT,AGENCY STAFF,100,-,-,2016/04/11 23:00:00+00,2016/04/12 23:00:00+00,145152,4355,Revenue,West Kent Housing Association,April,2016,259
Tunbridge Wells Borough Council,Housing Services,108,PS,PROPERTY SERVICES,TEMPORARY ACCOMMODATION,MAINT/SERVICING PLANT,2030,PROPERTY CONTRACTS,PH0600,2016/04/11 23:00:00+00,2016/04/12 23:00:00+00,145116,4221.259765625,Revenue,OCO Limited,April,2016,260
Tunbridge Wells Borough Council,Planning Services,110,ED,ECONOMIC DEVELOPMENT,ECONOMIC DEVELOPMENT,COURIER SERVICE,3540,-,-,2016/04/11 23:00:00+00,2016/04/12 23:00:00+00,145124,4115,Revenue,London Calling Arts Ltd,April,2016,261
Tunbridge Wells Borough Council,Cultural and Related Services,104,AH,ASSEMBLY HALL,A-HALL COUNCIL SHOWS,SHOW FEES,3380,160325 TORTOISE AND THE HARE,A16C06,2016/04/11 23:00:00+00,2016/04/12 23:00:00+00,145168,4073.94995117188,Revenue,Northern Ballet Ltd,April,2016,262
Tunbridge Wells Borough Council,Cultural and Related Services,104,AH,ASSEMBLY HALL,A-HALL COUNCIL SHOWS,SHOW FEES,3380,160408 TOSCA,A16D04,2016/04/11 23:00:00+00,2016/04/12 23:00:00+00,145110,3614.57006835938,Revenue,Opera & Ballet International Limited,April,2016,263
Tunbridge Wells Borough Council,Cultural and Related Services,104,PK,PARKS,GROSVENOR AND HILBERT PARK,"CONSTRUCTION, RENOVATION, ETC",8311,-,-,2016/04/11 23:00:00+00,2016/04/12 23:00:00+00,145051,3468.80004882813,Capital,Community First Partnership Ltd,April,2016,264
Tunbridge Wells Borough Council,Housing Services,108,HP,HOUSING (PRIVATE SECTOR),DISABLED FACILITIES GRANTS,CAPITAL GRANTS PAYABLE,8355,-,-,2016/04/11 23:00:00+00,2016/04/12 23:00:00+00,145088,3166.53002929688,Capital,Town and Country Housing Group,April,2016,265
Tunbridge Wells Borough Council,Planning Services,110,PL,PLANNING,DEVELOPMENT MANAGEMENT,GRANTS,3750,PLANNING DELIVERY,EV0568,2016/04/07 23:00:00+00,2016/04/12 23:00:00+00,144930,3000,Revenue,Medway Council,April,2016,266
Tunbridge Wells Borough Council,Housing Services,108,HO,HOUSING,HOUSING NEEDS SERVICE,SUBS TO ORGANISATIONS,3730,-,-,2016/04/11 23:00:00+00,2016/04/12 23:00:00+00,145058,3000,Revenue,Action with Communities in Rural Kent,April,2016,267
Tunbridge Wells Borough Council,Planning Services,110,DS,Sundry Customer,COMMUNITY CAPITAL GRANTS,CAPITAL GRANTS PAYABLE,8355,SISSINGHURST CRICK CLUB 15/16,PG0736,2016/04/11 23:00:00+00,2016/04/12 23:00:00+00,145251,3000,Capital,SISSINGHURST CRICKET CLUB,April,2016,268
Tunbridge Wells Borough Council,Environmental and regulatory services ,105,FM,FACILITIES MANAGEMENT,CREMATORIUM,HYGIENE SUPPLIES,2530,-,-,2016/04/11 23:00:00+00,2016/04/12 23:00:00+00,145108,2991.02001953125,Revenue,PHS Group plc,April,2016,269
Tunbridge Wells Borough Council,Housing Services,108,HO,HOUSING,RENT DEPOSIT SCHEME,DEBTORS,8510,-,-,2016/04/11 23:00:00+00,2016/04/12 23:00:00+00,145277,2570.25,Revenue,Martin and Co,April,2016,270
Tunbridge Wells Borough Council,Cultural and Related Services,104,AH,ASSEMBLY HALL,A-HALL COUNCIL SHOWS,SHOW FEES,3380,160309 THE HOLLIES,A16C07,2016/04/11 23:00:00+00,2016/04/12 23:00:00+00,145083,2396.38989257813,Revenue,The Hollies Ltd,April,2016,271
Tunbridge Wells Borough Council,Housing Services,108,HP,HOUSING (PRIVATE SECTOR),DISABLED FACILITIES GRANTS,CAPITAL GRANTS PAYABLE,8355,-,-,2016/04/11 23:00:00+00,2016/04/12 23:00:00+00,145089,2301.60009765625,Capital,Town and Country Housing Group,April,2016,272
Tunbridge Wells Borough Council,Central Services,102,FI,FINANCE,CHILDCARE VOUCHERS SCHEME,CREDITORS,9009,-,-,2016/04/12 23:00:00+00,2016/04/12 23:00:00+00,145085,2286.89990234375,Revenue,Fideliti Ltd,April,2016,273
Tunbridge Wells Borough Council,Central Services,102,FM,FACILITIES MANAGEMENT,POSTAL CHARGES ACCOUNT,CASH TRANSFERS,9100,-,-,2016/04/11 23:00:00+00,2016/04/12 23:00:00+00,145079,2183.36010742188,Revenue,Royal Mail Group plc,April,2016,274
Tunbridge Wells Borough Council,Central Services,102,PS,PROPERTY SERVICES,BUILDING SERVICES,AGENCY STAFF,100,-,-,2016/04/07 23:00:00+00,2016/04/12 23:00:00+00,144860,1819.16003417969,Revenue,Hays Montrose,April,2016,275
Tunbridge Wells Borough Council,Environmental and regulatory services ,105,CR,CREMATORIUM,CREMATORIUM,Medical Fees,3340,-,-,2016/04/07 23:00:00+00,2016/04/12 23:00:00+00,145090,1784.57995605469,Revenue,This data has been redacted under the Data Protection Act,April,2016,276
Tunbridge Wells Borough Council,Central Services,102,FM,FACILITIES MANAGEMENT,POSTAL CHARGES ACCOUNT,CASH TRANSFERS,9100,-,-,2016/04/11 23:00:00+00,2016/04/12 23:00:00+00,144802,1740.13000488281,Revenue,Royal Mail Group plc,April,2016,277
Tunbridge Wells Borough Council,Cultural and Related Services,104,AH,ASSEMBLY HALL,A-HALL COUNCIL SHOWS,SHOW FEES,3380,160319 PURPLE ZEPPELIN,A16C04,2016/04/11 23:00:00+00,2016/04/12 23:00:00+00,144719,1718.76000976563,Revenue,Purple Zeppelin,April,2016,278
Tunbridge Wells Borough Council,Housing Services,108,HO,HOUSING,RENT DEPOSIT SCHEME,DEBTORS,8510,-,-,2016/04/11 23:00:00+00,2016/04/12 23:00:00+00,145135,1700,Revenue,KING AND CHASEMORE LETTING AGENTS,April,2016,279
Tunbridge Wells Borough Council,Central Services,102,PS,PROPERTY SERVICES,BUILDING SERVICES,AGENCY STAFF,100,-,-,2016/04/07 23:00:00+00,2016/04/12 23:00:00+00,144819,1691,Revenue,Hays Montrose,April,2016,280
Tunbridge Wells Borough Council,Central Services,102,FI,FINANCE,MOBILE PHONE CREDITOR,CREDITORS,9009,-,-,2016/04/12 23:00:00+00,2016/04/12 23:00:00+00,145071,1608.7900390625,Revenue,O2 UK Limited,April,2016,281
Tunbridge Wells Borough Council,Central Services,102,PS,PROPERTY SERVICES,BUILDING SERVICES,AGENCY STAFF,100,-,-,2016/04/11 23:00:00+00,2016/04/12 23:00:00+00,145259,1602,Revenue,Hays Montrose,April,2016,282
Tunbridge Wells Borough Council,Environmental and regulatory services ,105,EH,ENVIRONMENTAL HEALTH,FOOTWAY LIGHTING-TW & RUSTHALL,STREET LIGHTING MTCE CONTRACT,2035,-,-,2016/04/11 23:00:00+00,2016/04/12 23:00:00+00,145067,1597,Revenue,PSR LIGHTING & SIGNS LTD,April,2016,283
Tunbridge Wells Borough Council,Central Services,102,FM,FACILITIES MANAGEMENT,TOWN HALL,FURNITURE COSTS,3020,-,-,2016/04/11 23:00:00+00,2016/04/12 23:00:00+00,144881,1470.71997070313,Revenue,Straight Manufacturing Ltd,April,2016,284
Tunbridge Wells Borough Council,Housing Services,108,HO,HOUSING,BED & BREAKFAST COSTS,RENTS/HIRE OF PREMISES,2200,-,-,2016/04/11 23:00:00+00,2016/04/12 23:00:00+00,145036,1380,Revenue,LESSHOMELESS LIMITED,April,2016,285
Tunbridge Wells Borough Council,Housing Services,108,HO,HOUSING,HOUSING NEEDS SERVICE,PROJECTS & INITIATIVES,3910,-,-,2016/04/11 23:00:00+00,2016/04/12 23:00:00+00,145076,1300,Revenue,Wenham O'Brien Limited,April,2016,286
Tunbridge Wells Borough Council,Environmental and regulatory services ,105,PK,PARKS,CREMATORIUM,Horticulture,2061,-,-,2016/04/11 23:00:00+00,2016/04/12 23:00:00+00,145099,1270,Revenue,Treework,April,2016,287
Tunbridge Wells Borough Council,Central Services,102,PS,PROPERTY SERVICES,BUILDING SERVICES,AGENCY STAFF,100,-,-,2016/04/11 23:00:00+00,2016/04/12 23:00:00+00,145260,1208.61999511719,Revenue,Hays Montrose,April,2016,288
Tunbridge Wells Borough Council,Housing Services,108,HO,HOUSING,BED & BREAKFAST COSTS,RENTS/HIRE OF PREMISES,2200,-,-,2016/04/11 23:00:00+00,2016/04/12 23:00:00+00,145054,1195.7099609375,Revenue,This data has been redacted under the Data Protection Act,April,2016,289
Tunbridge Wells Borough Council,Housing Services,108,HO,HOUSING,BED & BREAKFAST COSTS,RENTS/HIRE OF PREMISES,2200,-,-,2016/04/11 23:00:00+00,2016/04/12 23:00:00+00,145052,1062.85998535156,Revenue,This data has been redacted under the Data Protection Act,April,2016,290
Tunbridge Wells Borough Council,Housing Services,108,HO,HOUSING,BED & BREAKFAST COSTS,RENTS/HIRE OF PREMISES,2200,-,-,2016/04/11 23:00:00+00,2016/04/12 23:00:00+00,145055,1062.85998535156,Revenue,This data has been redacted under the Data Protection Act,April,2016,291
Tunbridge Wells Borough Council,Housing Services,108,HO,HOUSING,BED & BREAKFAST COSTS,RENTS/HIRE OF PREMISES,2200,-,-,2016/04/11 23:00:00+00,2016/04/12 23:00:00+00,145057,1062.85998535156,Revenue,This data has been redacted under the Data Protection Act,April,2016,292
Tunbridge Wells Borough Council,Central Services,102,PS,PROPERTY SERVICES,BUILDING SERVICES,AGENCY STAFF,100,-,-,2016/04/07 23:00:00+00,2016/04/12 23:00:00+00,144792,1055.88000488281,Revenue,Hays Montrose,April,2016,293
Tunbridge Wells Borough Council,Environmental and regulatory services ,105,LI,LICENSING,LICENSING,COGS-NON FOOD,3080,VEHICLE LICENSING - PH,EV0421,2016/04/12 23:00:00+00,2016/04/12 23:00:00+00,145063,1050,Revenue,Tunbridge Wells MOT Centre Ltd,April,2016,294
Tunbridge Wells Borough Council,Housing Services,108,HP,HOUSING (PRIVATE SECTOR),PRIVATE SECTOR HOUSING,OTHER FEES,3330,-,-,2016/04/11 23:00:00+00,2016/04/12 23:00:00+00,145117,1033.90002441406,Revenue,Advanced Legal Solutions Ltd,April,2016,295
Tunbridge Wells Borough Council,Central Services,102,FM,FACILITIES MANAGEMENT,TOWN HALL,FURNITURE COSTS,3020,-,-,2016/04/11 23:00:00+00,2016/04/12 23:00:00+00,145098,1030.16003417969,Revenue,Straight Manufacturing Ltd,April,2016,296
Tunbridge Wells Borough Council,Housing Services,108,DS,Sundry Customer,TEMPORARY ACCOMMODATION,PLANNED MAINTENANCE BUILDINGS,2000,-,-,2016/04/11 23:00:00+00,2016/04/12 23:00:00+00,145188,1000,Revenue,This data has been redacted under the Data Protection Act,April,2016,297
Tunbridge Wells Borough Council,Cultural and Related Services,104,PS,PROPERTY SERVICES,TW TIC,RENTS,5620,-,-,2016/04/07 23:00:00+00,2016/04/12 23:00:00+00,144929,985.200012207031,Revenue,Lower Pantiles LLP,April,2016,298
Tunbridge Wells Borough Council,Housing Services,108,HO,HOUSING,BED & BREAKFAST COSTS,RENTS/HIRE OF PREMISES,2200,-,-,2016/04/11 23:00:00+00,2016/04/12 23:00:00+00,145053,964.289978027344,Revenue,This data has been redacted under the Data Protection Act,April,2016,299
Tunbridge Wells Borough Council,Planning Services,110,PS,PROPERTY SERVICES,DEVELOPMENT PROGRAMME,LEGAL FEES,3260,-,-,2016/04/07 23:00:00+00,2016/04/12 23:00:00+00,144808,920,Revenue,Beachcroft LLP,April,2016,300
Tunbridge Wells Borough Council,Planning Services,110,GI,GIS,GIS SYSTEM,LICENCES (INC PRS/PPL),3390,-,-,2016/04/20 23:00:00+00,2016/04/26 23:00:00+00,145210,2060,Revenue,ESRI(UK) Ltd,April,2016,301
Tunbridge Wells Borough Council,Housing Services,108,HO,HOUSING,BED & BREAKFAST COSTS,RENTS/HIRE OF PREMISES,2200,-,-,2016/04/11 23:00:00+00,2016/04/12 23:00:00+00,145056,885.710021972656,Revenue,This data has been redacted under the Data Protection Act,April,2016,302
Tunbridge Wells Borough Council,Cultural and Related Services,104,PK,PARKS,DUNORLAN PARK,GROUND MAINT NON CONTRACT,2060,-,-,2016/04/07 23:00:00+00,2016/04/12 23:00:00+00,144889,879.25,Revenue,Palmstead Nurseries Limited,April,2016,303
Tunbridge Wells Borough Council,Environmental and regulatory services ,105,LI,LICENSING,LICENSING,COGS-NON FOOD,3080,VEHICLE LICENSING - PH,EV0421,2016/04/12 23:00:00+00,2016/04/12 23:00:00+00,144810,840,Revenue,Matfield MOT Centre,April,2016,304
Tunbridge Wells Borough Council,Housing Services,108,HO,HOUSING,RENT DEPOSIT SCHEME,DEBTORS,8510,-,-,2016/04/11 23:00:00+00,2016/04/12 23:00:00+00,145281,796,Revenue,Edbury Estates Limited,April,2016,305
Tunbridge Wells Borough Council,Central Services,102,PS,PROPERTY SERVICES,BUILDING SERVICES,AGENCY STAFF,100,-,-,2016/04/07 23:00:00+00,2016/04/12 23:00:00+00,144858,791.909973144531,Revenue,Hays Montrose,April,2016,306
Tunbridge Wells Borough Council,Environmental and regulatory services ,105,PK,PARKS,CHOOSING HEALTH,"CONSTRUCTION, RENOVATION, ETC",8311,CHSG HEALTH OUTDOOR GYM,EV0955,2016/04/12 23:00:00+00,2016/04/12 23:00:00+00,145157,760,Revenue,Sodexo Ltd,April,2016,307
Tunbridge Wells Borough Council,Highways and Transport Services,107,PA,PARKING,PARKING ADMIN & ENFORCEMENT,AGENCY STAFF,100,-,-,2016/04/11 23:00:00+00,2016/04/12 23:00:00+00,145187,694.580017089844,Revenue,Unity Recruitment Ltd,April,2016,308
Tunbridge Wells Borough Council,Environmental and regulatory services ,105,FI,FINANCE,PUBLIC CONVENIENCES,WASTEWATER & DRAINAGE,2340,-,-,2016/04/12 23:00:00+00,2016/04/12 23:00:00+00,145231,670.530029296875,Revenue,Southern Water,April,2016,309
Tunbridge Wells Borough Council,Environmental and regulatory services ,105,CR,CREMATORIUM,CREMATORIUM,GROUNDS MAINT CONTRACTS,2050,-,-,2016/04/11 23:00:00+00,2016/04/12 23:00:00+00,144727,660,Revenue,D C Jordan,April,2016,310
Tunbridge Wells Borough Council,Cultural and Related Services,104,HO,HOUSING,MUSEUM & ART GALLERY,PROJECTS & INITIATIVES,3910,-,-,2016/04/11 23:00:00+00,2016/04/12 23:00:00+00,145181,660,Revenue,Hays Montrose,April,2016,311
Tunbridge Wells Borough Council,Housing Services,108,HO,HOUSING,RENT DEPOSIT SCHEME,DEBTORS,8510,-,-,2016/04/11 23:00:00+00,2016/04/12 23:00:00+00,145279,650,Revenue,KSDB Properties Ltd,April,2016,312
Tunbridge Wells Borough Council,Central Services,102,FI,FINANCE,I T SERVICE,COMPUTER SOFTWARE,8341,-,-,2016/04/12 23:00:00+00,2016/04/12 23:00:00+00,145184,630,Revenue,NCC Services Limited,April,2016,313
Tunbridge Wells Borough Council,Environmental and regulatory services ,105,FM,FACILITIES MANAGEMENT,NORTH FARM DEPOT,RESPONSIVE REPAIRS BUILDINGS,2020,-,-,2016/04/07 23:00:00+00,2016/04/12 23:00:00+00,144742,626,Revenue,Jackson Lift Services Limited,April,2016,314
Tunbridge Wells Borough Council,Housing Services,108,TN,TN2 CENTRE,TN2 COMMUNITY CENTRE,WASTEWATER & DRAINAGE,2340,-,-,2016/04/11 23:00:00+00,2016/04/12 23:00:00+00,145266,605.890014648438,Revenue,Southern Water,April,2016,315
Tunbridge Wells Borough Council,Highways and Transport Services,107,PA,PARKING,SURFACE CAR PARKS,SERVICE CHARGES,2240,UNION HOUSE,PT0108,2016/04/25 23:00:00+00,2016/04/26 23:00:00+00,145553,2030.26000976563,Revenue,Mellersh & Harding LLP,April,2016,316
Tunbridge Wells Borough Council,Cultural and Related Services,104,PK,PARKS,DUNORLAN PARK,Horticulture,2061,-,-,2016/04/07 23:00:00+00,2016/04/12 23:00:00+00,144833,575.900024414063,Revenue,Palmstead Nurseries Ltd,April,2016,317
Tunbridge Wells Borough Council,Central Services,102,PS,PROPERTY SERVICES,BUILDING SERVICES,AGENCY STAFF,100,-,-,2016/04/25 23:00:00+00,2016/04/26 23:00:00+00,145550,2006.06005859375,Revenue,Hays Montrose,April,2016,318
Tunbridge Wells Borough Council,Environmental and regulatory services ,105,CR,CREMATORIUM,HEAD OF ENVIRONMENT & SS,EXTERNAL TRAINING,204,-,-,2016/04/25 23:00:00+00,2016/04/26 23:00:00+00,145444,2000,Revenue,ICCM,April,2016,319
Tunbridge Wells Borough Council,Environmental and regulatory services ,105,CR,CREMATORIUM,CREMATORIUM,ELECTRICITY,2140,-,-,2016/04/25 23:00:00+00,2016/04/26 23:00:00+00,145241,1899.66003417969,Revenue,Kent County Council (KCS),April,2016,320
Tunbridge Wells Borough Council,Central Services,102,FM,FACILITIES MANAGEMENT,POSTAL CHARGES ACCOUNT,CASH TRANSFERS,9100,-,-,2016/04/25 23:00:00+00,2016/04/26 23:00:00+00,145761,1893.43994140625,Revenue,Royal Mail Group plc,April,2016,321
Tunbridge Wells Borough Council,Central Services,102,PS,PROPERTY SERVICES,BUILDING SERVICES,AGENCY STAFF,100,-,-,2016/04/25 23:00:00+00,2016/04/26 23:00:00+00,145549,1780,Revenue,Hays Montrose,April,2016,322
Tunbridge Wells Borough Council,Cultural and Related Services,104,PK,PARKS,PARKS & GROUNDS,GROUND MAINT.infrastructure,2063,-,-,2016/04/24 23:00:00+00,2016/04/26 23:00:00+00,145736,1770,Revenue,EASY - LOO,April,2016,323
Tunbridge Wells Borough Council,Highways and Transport Services,107,PA,PARKING,GREAT HALL CAR PARK,ELECTRICITY,2140,-,-,2016/04/25 23:00:00+00,2016/04/26 23:00:00+00,145773,1736.84997558594,Revenue,Kent County Council (KCS),April,2016,324
Tunbridge Wells Borough Council,Central Services,102,FM,FACILITIES MANAGEMENT,TOWN HALL,CONTRACT CLEANING,2510,-,-,2016/04/25 23:00:00+00,2016/04/26 23:00:00+00,145575,1725.35998535156,Revenue,Kent County Council (KCS),April,2016,325
Tunbridge Wells Borough Council,Housing Services,108,TN,TN2 CENTRE,TN2 COMMUNITY CENTRE,ELECTRICITY,2140,-,-,2016/04/25 23:00:00+00,2016/04/26 23:00:00+00,145810,1667.5400390625,Revenue,Kent County Council (KCS),April,2016,326
Tunbridge Wells Borough Council,Cultural and Related Services,104,PK,PARKS,PARKS & GROUNDS,GROUND MAINT NON CONTRACT,2060,-,-,2016/04/25 23:00:00+00,2016/04/26 23:00:00+00,145780,1640,Revenue,Treework,April,2016,327
Tunbridge Wells Borough Council,Housing Services,108,TN,TN2 CENTRE,TN2 COMMUNITY CENTRE,ELECTRICITY,2140,-,-,2016/04/25 23:00:00+00,2016/04/26 23:00:00+00,145811,1582.68994140625,Revenue,Kent County Council (KCS),April,2016,328
Tunbridge Wells Borough Council,Cultural and Related Services,104,PK,PARKS,PARKS & GROUNDS,Grounds Maint. Sodexo Contract,2054,-,-,2016/04/19 23:00:00+00,2016/04/26 23:00:00+00,144119,1510.56005859375,Revenue,Sodexo Ltd,April,2016,329
Tunbridge Wells Borough Council,Planning Services,110,PL,PLANNING,PLANNING POLICY,SUBS TO ORGANISATIONS,3730,-,-,2016/04/25 23:00:00+00,2016/04/26 23:00:00+00,145185,1450,Revenue,POS ENTERPRISES LTD,April,2016,330
Tunbridge Wells Borough Council,Housing Services,108,HP,HOUSING (PRIVATE SECTOR),CINDERHILL WOOD CARAVAN SITE,ELECTRICITY,2140,-,-,2016/04/25 23:00:00+00,2016/04/26 23:00:00+00,145814,1314.68005371094,Revenue,Kent County Council (KCS),April,2016,331
Tunbridge Wells Borough Council,Environmental and regulatory services ,105,CR,CREMATORIUM,PUBLIC HEALTH ACT FUNERALS,GENERAL EXPENSES,3950,-,-,2016/04/25 23:00:00+00,2016/04/26 23:00:00+00,145182,1266,Revenue,FUNERAL PARTNERS LTD,April,2016,332
Tunbridge Wells Borough Council,Cultural and Related Services,104,AH,ASSEMBLY HALL,A-HALL HIRE SHOWS,TICKET REPAYMENT,5421,160407 BANFF FLIM 2016,A16R01,2016/04/25 23:00:00+00,2016/04/26 23:00:00+00,145615,1224.21997070313,Revenue,Snowline Media Ltd,April,2016,333
Tunbridge Wells Borough Council,Environmental and regulatory services ,105,PK,PARKS,TUNBRIDGE WELLS-CEMETERIES,Grounds Maint. Sodexo Contract,2054,-,-,2016/04/25 23:00:00+00,2016/04/26 23:00:00+00,145877,1221.02001953125,Revenue,Sodexo Ltd,April,2016,334
Tunbridge Wells Borough Council,Central Services,102,GW,GATEWAY CUSTOMER SERVICES,GATEWAY,ELECTRICITY,2140,GATEWAY,EV0340,2016/04/26 23:00:00+00,2016/04/26 23:00:00+00,145239,1143.42004394531,Revenue,Kent County Council (KCS),April,2016,335
Tunbridge Wells Borough Council,Cultural and Related Services,104,PK,PARKS,GROSVENOR AND HILBERT PARK,"CONSTRUCTION, RENOVATION, ETC",8311,-,-,2016/04/25 23:00:00+00,2016/04/26 23:00:00+00,145884,1109.5,Capital,Sodexo Ltd,April,2016,336
Tunbridge Wells Borough Council,Cultural and Related Services,104,PK,PARKS,GROSVENOR AND HILBERT PARK,"CONSTRUCTION, RENOVATION, ETC",8311,-,-,2016/04/25 23:00:00+00,2016/04/26 23:00:00+00,145885,1109.5,Capital,Sodexo Ltd,April,2016,337
Tunbridge Wells Borough Council,Environmental and regulatory services ,105,EH,ENVIRONMENTAL HEALTH,LAND DRAINAGE,GROUND MAINT-CULVERT & DITCHES,2066,-,-,2016/04/25 23:00:00+00,2016/04/26 23:00:00+00,145797,1040,Revenue,S K F Contractors Ltd,April,2016,338
Tunbridge Wells Borough Council,Planning Services,110,PL,PLANNING,HERITAGE & SPECIALISTS,PROJECTS & INITIATIVES,3910,LOCAL NATURE RESERVES,EV0066,2016/04/25 23:00:00+00,2016/04/26 23:00:00+00,145870,1000,Revenue,Kent County Council,April,2016,339
Tunbridge Wells Borough Council,Central Services,102,PS,PROPERTY SERVICES,BUILDING SERVICES,AGENCY STAFF,100,-,-,2016/04/25 23:00:00+00,2016/04/26 23:00:00+00,145517,953.909973144531,Revenue,Hays Montrose,April,2016,340
Tunbridge Wells Borough Council,Cultural and Related Services,104,AH,ASSEMBLY HALL,WEST END THEATRE TOKENS CRED,CREDITORS,9009,-,-,2016/04/25 23:00:00+00,2016/04/26 23:00:00+00,145720,942.400024414063,Revenue,West End Theatre Managers Ltd,April,2016,341
Tunbridge Wells Borough Council,Cultural and Related Services,104,MU,MUSEUM,MUSEUM & ART GALLERY,EXHIBITION FEES,3400,-,-,2016/04/20 23:00:00+00,2016/04/26 23:00:00+00,145790,906.960021972656,Revenue,This data has been redacted under the Data Protection Act,April,2016,342
Tunbridge Wells Borough Council,Environmental and regulatory services ,105,EH,ENVIRONMENTAL HEALTH,LAND DRAINAGE,GROUND MAINT-CULVERT & DITCHES,2066,-,-,2016/04/25 23:00:00+00,2016/04/26 23:00:00+00,145559,900,Revenue,S K F Contractors Ltd,April,2016,343
Tunbridge Wells Borough Council,Highways and Transport Services,107,PA,PARKING,PARKING ADMIN & ENFORCEMENT,AGENCY STAFF,100,-,-,2016/04/25 23:00:00+00,2016/04/26 23:00:00+00,145801,833.489990234375,Revenue,Unity Recruitment Ltd,April,2016,344
Tunbridge Wells Borough Council,Environmental and regulatory services ,105,PK,PARKS,DISUSED CEMETERIES,GROUND MAINT NON CONTRACT,2060,-,-,2016/04/26 23:00:00+00,2016/04/26 23:00:00+00,145880,821.320007324219,Revenue,Sodexo Ltd,April,2016,345
Tunbridge Wells Borough Council,Highways and Transport Services,107,PA,PARKING,CRESCENT ROAD CAR PARK,CONTRACT CLEANING,2510,-,-,2016/04/25 23:00:00+00,2016/04/26 23:00:00+00,145429,810,Revenue,W B Stanley,April,2016,346
Tunbridge Wells Borough Council,Cultural and Related Services,104,PK,PARKS,PARKS & GROUNDS,GROUND MAINT NON CONTRACT,2060,-,-,2016/04/26 23:00:00+00,2016/04/26 23:00:00+00,145881,793.429992675781,Revenue,Sodexo Ltd,April,2016,347
Tunbridge Wells Borough Council,Highways and Transport Services,107,PA,PARKING,CRESCENT ROAD CAR PARK,CONTRACT CLEANING,2510,-,-,2016/04/25 23:00:00+00,2016/04/26 23:00:00+00,145772,760,Revenue,W B Stanley,April,2016,348
Tunbridge Wells Borough Council,Environmental and regulatory services ,105,EH,ENVIRONMENTAL HEALTH,FOOD & COMMERCIAL,OTHER FEES,3330,-,-,2016/04/25 23:00:00+00,2016/04/26 23:00:00+00,144786,722.5,Revenue,Eurofins Environmental Testing Uk Limited,April,2016,349
Tunbridge Wells Borough Council,Highways and Transport Services,107,PA,PARKING,PARKING ADMIN & ENFORCEMENT,AGENCY STAFF,100,-,-,2016/04/25 23:00:00+00,2016/04/26 23:00:00+00,145581,694.580017089844,Revenue,Unity Recruitment Ltd,April,2016,350
Tunbridge Wells Borough Council,Central Services,102,PS,PROPERTY SERVICES,BUILDING SERVICES,AGENCY STAFF,100,-,-,2016/04/25 23:00:00+00,2016/04/26 23:00:00+00,145516,675.75,Revenue,Hays Montrose,April,2016,351
Tunbridge Wells Borough Council,Central Services,102,RB,REVS & BENS,REVS & BENS ADMINISTRATION,CONSULTANTS FEES,3292,-,-,2016/04/25 23:00:00+00,2016/04/26 23:00:00+00,145815,664,Revenue,Inform CPI Limited,April,2016,352
Tunbridge Wells Borough Council,Cultural and Related Services,104,PK,PARKS,DUNORLAN PARK,Horticulture,2061,-,-,2016/04/26 23:00:00+00,2016/04/26 23:00:00+00,145868,640.72998046875,Revenue,Palmstead Nurseries Ltd,April,2016,353
Tunbridge Wells Borough Council,Central Services,102,FI,FINANCE,I T SERVICE,IT SOFTWARE,3590,SOFTWARE MAINTENANCE,EV0328,2016/04/20 23:00:00+00,2016/04/26 23:00:00+00,145066,625,Revenue,Bottomline Technologies Europe Limited,April,2016,354
Tunbridge Wells Borough Council,Cultural and Related Services,104,AB,ASSEMBLY HALL BAR,A-HALL FRONT OF HOUSE,COGS - DRINK,3091,-,-,2016/04/24 23:00:00+00,2016/04/26 23:00:00+00,145458,607.650024414063,Revenue,H T White & Co Ltd,April,2016,355
Tunbridge Wells Borough Council,Cultural and Related Services,104,PK,PARKS,PARKS & GROUNDS,EQUIPMENT PURCHASE/MTCE,3000,-,-,2016/04/20 23:00:00+00,2016/04/26 23:00:00+00,145484,585.419982910156,Revenue,Premier Alarms Ltd,April,2016,356
Tunbridge Wells Borough Council,Highways and Transport Services,107,PA,PARKING,PARKING ADMIN & ENFORCEMENT,NATNL PARKING ADJUDCTN SERVICE,3331,-,-,2016/04/25 23:00:00+00,2016/04/26 23:00:00+00,145802,557.549987792969,Revenue,Patrol Bus,April,2016,357
Tunbridge Wells Borough Council,Cultural and Related Services,104,PK,PARKS,DUNORLAN PARK,Horticulture,2061,-,-,2016/04/20 23:00:00+00,2016/04/26 23:00:00+00,145603,552.359985351563,Revenue,Palmstead Nurseries Ltd,April,2016,358
Tunbridge Wells Borough Council,Cultural and Related Services,104,PK,PARKS,DUNORLAN PARK,Horticulture,2061,-,-,2016/04/20 23:00:00+00,2016/04/26 23:00:00+00,145601,510.619995117188,Revenue,Palmstead Nurseries Ltd,April,2016,359
Tunbridge Wells Borough Council,Cultural and Related Services,104,AB,ASSEMBLY HALL BAR,A-HALL FRONT OF HOUSE,COGS - DRINK,3091,-,-,2016/04/24 23:00:00+00,2016/04/26 23:00:00+00,145456,508.600006103516,Revenue,H T White & Co Ltd,April,2016,360
Tunbridge Wells Borough Council,Housing Services,108,HO,HOUSING,BED & BREAKFAST COSTS,RENTS/HIRE OF PREMISES,2200,-,-,2016/04/25 23:00:00+00,2016/04/26 23:00:00+00,145821,490,Revenue,This data has been redacted under the Data Protection Act,April,2016,361
Tunbridge Wells Borough Council,Housing Services,108,HO,HOUSING,BED & BREAKFAST COSTS,RENTS/HIRE OF PREMISES,2200,-,-,2016/04/25 23:00:00+00,2016/04/26 23:00:00+00,145899,490,Revenue,Grapevine Estates Ltd,April,2016,362
Tunbridge Wells Borough Council,Housing Services,108,HO,HOUSING,BED & BREAKFAST COSTS,RENTS/HIRE OF PREMISES,2200,-,-,2016/04/25 23:00:00+00,2016/04/26 23:00:00+00,145900,490,Revenue,Grapevine Estates Ltd,April,2016,363
Tunbridge Wells Borough Council,Housing Services,108,HO,HOUSING,BED & BREAKFAST COSTS,RENTS/HIRE OF PREMISES,2200,-,-,2016/04/25 23:00:00+00,2016/04/26 23:00:00+00,145902,490,Revenue,Grapevine Estates Ltd,April,2016,364
Tunbridge Wells Borough Council,Housing Services,108,HO,HOUSING,BED & BREAKFAST COSTS,RENTS/HIRE OF PREMISES,2200,-,-,2016/04/25 23:00:00+00,2016/04/26 23:00:00+00,145903,490,Revenue,Grapevine Estates Ltd,April,2016,365
Tunbridge Wells Borough Council,Cultural and Related Services,104,PK,PARKS,PARKS & GROUNDS,Grounds Maint. Sodexo Contract,2054,-,-,2016/04/12 23:00:00+00,2016/04/12 23:00:00+00,145153,565.619995117188,Revenue,Sodexo Ltd,April,2016,366
Tunbridge Wells Borough Council,Central Services,102,FM,FACILITIES MANAGEMENT,TOWN HALL,TRADE REFUSE CHARGES,2520,-,-,2016/04/11 23:00:00+00,2016/04/12 23:00:00+00,145195,552.75,Revenue,Veolia ES (UK) Ltd,April,2016,367
Tunbridge Wells Borough Council,Central Services,102,FI,FINANCE,I T SERVICE,IT SOFTWARE,3590,SOFTWARE MAINTENANCE,EV0328,2016/04/10 23:00:00+00,2016/04/12 23:00:00+00,144883,550,Revenue,NCC Services Limited,April,2016,368
Tunbridge Wells Borough Council,Central Services,102,PS,PROPERTY SERVICES,BUILDING SERVICES,AGENCY STAFF,100,-,-,2016/04/07 23:00:00+00,2016/04/12 23:00:00+00,144791,540.599975585938,Revenue,Hays Montrose,April,2016,369
Tunbridge Wells Borough Council,Central Services,102,PS,PROPERTY SERVICES,BUILDING SERVICES,AGENCY STAFF,100,-,-,2016/04/11 23:00:00+00,2016/04/12 23:00:00+00,145211,540.599975585938,Revenue,Hays Montrose,April,2016,370
Tunbridge Wells Borough Council,Highways and Transport Services,107,PA,PARKING,OFF STREET PARKING,MAINT/SERVICING PLANT,2030,-,-,2016/04/11 23:00:00+00,2016/04/12 23:00:00+00,145101,538.97998046875,Revenue,Metric Group Limited,April,2016,371
Tunbridge Wells Borough Council,Cultural and Related Services,104,PK,PARKS,PARKS & GROUNDS,GROUND MAINT NON CONTRACT,2060,-,-,2016/04/12 23:00:00+00,2016/04/12 23:00:00+00,145154,508.429992675781,Revenue,Sodexo Ltd,April,2016,372
Tunbridge Wells Borough Council,Central Services,102,PU,PUBLICATIONS,I T SERVICE,PHOTOCOPYING EXPENSES,3180,-,-,2016/04/07 23:00:00+00,2016/04/12 23:00:00+00,144801,479,Revenue,Premier Paper Group Ltd,April,2016,373
Tunbridge Wells Borough Council,Highways and Transport Services,107,PA,PARKING,PARKING ADMIN & ENFORCEMENT,AGENCY STAFF,100,-,-,2016/04/11 23:00:00+00,2016/04/12 23:00:00+00,145092,442.149993896484,Revenue,Robson Newman Ltd,April,2016,374
Tunbridge Wells Borough Council,Central Services,102,FI,FINANCE,REVENUES,PROJECTS & INITIATIVES,3910,-,-,2016/04/12 23:00:00+00,2016/04/12 23:00:00+00,144933,440,Revenue,Ashford Borough Council,April,2016,375
Tunbridge Wells Borough Council,Central Services,102,FM,FACILITIES MANAGEMENT,CATERING,EQUIPMENT - FLAVIA SUPPLIES,3002,-,-,2016/04/11 23:00:00+00,2016/04/12 23:00:00+00,145248,430.040008544922,Revenue,Cherrybean Ltd,April,2016,376
Tunbridge Wells Borough Council,Planning Services,110,DS,Sundry Customer,COMMUNITY & GRANTS,GRANTS,3750,THE QUEEN'S 90TH BIRTHDAY,EV0145,2016/04/11 23:00:00+00,2016/04/12 23:00:00+00,145258,400,Revenue,SHERBORNE CLOSE HOUSING SOCIETY LIMITED,April,2016,377
Tunbridge Wells Borough Council,Cultural and Related Services,104,PK,PARKS,GROSVENOR AND HILBERT PARK,"CONSTRUCTION, RENOVATION, ETC",8311,-,-,2016/04/12 23:00:00+00,2016/04/12 23:00:00+00,145276,400,Capital,Greenspace Ecological Solutions Ltd,April,2016,378
Tunbridge Wells Borough Council,Cultural and Related Services,104,PK,PARKS,DUNORLAN PARK,GROUND MAINT NON CONTRACT,2060,-,-,2016/04/07 23:00:00+00,2016/04/12 23:00:00+00,144891,376.989990234375,Revenue,Palmstead Nurseries Limited,April,2016,379
Tunbridge Wells Borough Council,Housing Services,108,HO,HOUSING,TEMPORARY ACCOMMODATION,RESPONSIVE REPAIRS BUILDINGS,2020,-,-,2016/04/11 23:00:00+00,2016/04/12 23:00:00+00,145122,328.200012207031,Revenue,D R M Rowswell,April,2016,380
Tunbridge Wells Borough Council,Cultural and Related Services,104,AB,ASSEMBLY HALL BAR,A-HALL FRONT OF HOUSE,COGS - ICE CREAMS,3093,-,-,2016/04/11 23:00:00+00,2016/04/12 23:00:00+00,144707,325.029998779297,Revenue,Taywell Ice Creams Limited,April,2016,381
Tunbridge Wells Borough Council,Central Services,102,IT,INFORMATION & COMMUNICATIONS TECHNOLOGY,EXECUTIVE SECRETARIAT,EQUIPMENT PURCHASE/MTCE,3000,-,-,2016/04/11 23:00:00+00,2016/04/12 23:00:00+00,145192,322.309997558594,Revenue,Insight Direct (UK) Ltd,April,2016,382
Tunbridge Wells Borough Council,Housing Services,108,FI,FINANCE,RENT DEPOSIT SCHEME,DEBTORS,8510,-,-,2016/04/12 23:00:00+00,2016/04/12 23:00:00+00,145064,318.220001220703,Revenue,This data has been redacted under the Data Protection Act,April,2016,383
Tunbridge Wells Borough Council,Cultural and Related Services,104,PK,PARKS,DUNORLAN PARK,WASTEWATER & DRAINAGE,2340,-,-,2016/04/11 23:00:00+00,2016/04/12 23:00:00+00,145214,310.440002441406,Revenue,Southern Water,April,2016,384
Tunbridge Wells Borough Council,Cultural and Related Services,104,PK,PARKS,PARKS & GROUNDS,GROUND MAINT.infrastructure,2063,-,-,2016/04/11 23:00:00+00,2016/04/12 23:00:00+00,145198,305,Revenue,D S Restoration,April,2016,385
Tunbridge Wells Borough Council,Housing Services,108,HO,HOUSING,BED & BREAKFAST COSTS,RENTS/HIRE OF PREMISES,2200,-,-,2016/04/11 23:00:00+00,2016/04/12 23:00:00+00,145126,280,Revenue,This data has been redacted under the Data Protection Act,April,2016,386
Tunbridge Wells Borough Council,Cultural and Related Services,104,PK,PARKS,PARKS & GROUNDS,GROUND MAINT NON CONTRACT,2060,-,-,2016/04/11 23:00:00+00,2016/04/12 23:00:00+00,145200,280,Revenue,D S Restoration,April,2016,387
Tunbridge Wells Borough Council,Highways and Transport Services,107,PS,PROPERTY SERVICES,SURFACE CAR PARKS,RENTS/HIRE OF PREMISES,2200,-,-,2016/04/11 23:00:00+00,2016/04/12 23:00:00+00,144814,250,Revenue,Co-operative Group Property Division,April,2016,388
Tunbridge Wells Borough Council,Planning Services,110,HE,HEALTHY COMMUNITIES,COMMUNITY & GRANTS,GRANTS,3750,THE QUEEN'S 90TH BIRTHDAY,EV0145,2016/04/11 23:00:00+00,2016/04/12 23:00:00+00,145204,250,Revenue,This data has been redacted under the Data Protection Act,April,2016,389
Tunbridge Wells Borough Council,Planning Services,110,DS,Sundry Customer,COMMUNITY & GRANTS,GRANTS,3750,THE QUEEN'S 90TH BIRTHDAY,EV0145,2016/04/11 23:00:00+00,2016/04/12 23:00:00+00,145205,250,Revenue,This data has been redacted under the Data Protection Act,April,2016,390
Tunbridge Wells Borough Council,Central Services,102,FI,FINANCE,I T SERVICE,PARTNERSHIP AGREEMENT,202,-,-,2016/04/19 23:00:00+00,2016/04/19 23:00:00+00,145094,120560,Revenue,Maidstone Borough Council,April,2016,391
Tunbridge Wells Borough Council,Central Services,102,FI,FINANCE,INTERNAL AUDIT & RISK MGT,PARTNERSHIP AGREEMENT,202,-,-,2016/04/19 23:00:00+00,2016/04/19 23:00:00+00,145095,32822.5,Revenue,Maidstone Borough Council,April,2016,392
Tunbridge Wells Borough Council,Environmental and regulatory services ,105,CU,COMMUNITY SAFTY UNIT,CCTV,TELEPHONES - CCTV TRANS LINKS,3512,-,-,2016/04/19 23:00:00+00,2016/04/19 23:00:00+00,145222,29081.48046875,Revenue,British Telecommunications plc,April,2016,393
Tunbridge Wells Borough Council,Planning Services,110,PL,PLANNING,HERITAGE & SPECIALISTS,PROJECTS & INITIATIVES,3910,GREEN ACTION,EV0058,2016/04/19 23:00:00+00,2016/04/19 23:00:00+00,145183,28000,Revenue,Kent County Council,April,2016,394
Tunbridge Wells Borough Council,Planning Services,110,PL,PLANNING,DEVELOPMENT MANAGEMENT,PLANNING CONSULTANT FEES,3270,-,-,2016/04/19 23:00:00+00,2016/04/19 23:00:00+00,145530,23704,Revenue,Goddard Hester Ltd,April,2016,395
Tunbridge Wells Borough Council,Cultural and Related Services,104,AH,ASSEMBLY HALL,A-HALL COUNCIL SHOWS,SHOW FEES,3380,160519 JOOL HOLLAND,A16E05,2016/04/19 23:00:00+00,2016/04/19 23:00:00+00,145138,18000,Revenue,Helicon Mountain Ltd,April,2016,396
Tunbridge Wells Borough Council,Housing Services,108,HO,HOUSING,HOUSING NEEDS SERVICE,PROJECTS & INITIATIVES,3910,-,-,2016/04/19 23:00:00+00,2016/04/19 23:00:00+00,144487,15000,Revenue,CTTW Winter Shelter,April,2016,397
Tunbridge Wells Borough Council,Cultural and Related Services,104,AH,ASSEMBLY HALL,A-HALL COUNCIL SHOWS,SHOW FEES,3380,150413-14 PEPPA PIG,A16D02,2016/04/19 23:00:00+00,2016/04/19 23:00:00+00,144784,15000,Revenue,FIERY LIGHT PPS LTD,April,2016,398
Tunbridge Wells Borough Council,Planning Services,110,HO,HOUSING,COMMUNITY & GRANTS,GRANTS,3750,-,-,2016/04/19 23:00:00+00,2016/04/19 23:00:00+00,145499,11250,Revenue,Trinity Theatre & Arts Ctr Ltd,April,2016,399
Tunbridge Wells Borough Council,Central Services,102,CE,CHIEF EXECUTIVE,CHIEF EXECUTIVE,SUBS TO ORGANISATIONS,3730,-,-,2016/04/17 23:00:00+00,2016/04/19 23:00:00+00,145237,10450,Revenue,Local Government Association,April,2016,400
Tunbridge Wells Borough Council,Central Services,102,PS,PROPERTY SERVICES,BUILDING SERVICES,PROPERTY CONSULTANTS,3290,-,-,2016/05/10 23:00:00+00,2016/05/10 23:00:00+00,146489,1829,Revenue,David Barden Creative Ltd,May,2016,401
Tunbridge Wells Borough Council,Central Services,102,EL,ELECTIONS,NON TWBC ELECTIONS,PRINTING,3150,POLICE COMM ELECTION 160505,CS0396,2016/05/05 23:00:00+00,2016/05/10 23:00:00+00,146147,1755,Revenue,Document Technology Limited,May,2016,402
Tunbridge Wells Borough Council,Housing Services,108,HO,HOUSING,BED & BREAKFAST COSTS,RENTS/HIRE OF PREMISES,2200,-,-,2016/05/05 23:00:00+00,2016/05/10 23:00:00+00,146445,1710,Revenue,Spa Caffe Ltd,May,2016,403
Tunbridge Wells Borough Council,Central Services,102,PL,PLANNING,TOWN HALL,FURNITURE COSTS,3020,PROPERTY ACCOMMODATION,PH0602,2016/05/09 23:00:00+00,2016/05/10 23:00:00+00,145858,1609.5,Revenue,Kent County Council (KCS),May,2016,404
Tunbridge Wells Borough Council,Central Services,102,HR,HUMAN RESOURCES,HUMAN RESOURCES,IN HOUSE TRAINING,201,-,-,2016/05/08 23:00:00+00,2016/05/10 23:00:00+00,146135,1500,Revenue,Eventus Training & Events Ltd,May,2016,405
Tunbridge Wells Borough Council,Cultural and Related Services,104,AM,ASSEMBLY HALL MARKETING,A-HALL COUNCIL SHOWS,PROMOTION,3450,160408 TOSCA,A16D04,2016/05/10 23:00:00+00,2016/05/10 23:00:00+00,144857,1448.59997558594,Revenue,Local World Limited,May,2016,406
Tunbridge Wells Borough Council,Housing Services,108,HO,HOUSING,BED & BREAKFAST COSTS,RENTS/HIRE OF PREMISES,2200,-,-,2016/05/05 23:00:00+00,2016/05/10 23:00:00+00,146443,1394,Revenue,Spa Caffe Ltd,May,2016,407
Tunbridge Wells Borough Council,Housing Services,108,HO,HOUSING,BED & BREAKFAST COSTS,RENTS/HIRE OF PREMISES,2200,-,-,2016/05/05 23:00:00+00,2016/05/10 23:00:00+00,146447,1334,Revenue,Spa Caffe Ltd,May,2016,408
Tunbridge Wells Borough Council,Central Services,102,PS,PROPERTY SERVICES,BUILDING SERVICES,PROPERTY CONSULTANTS,3290,-,-,2016/05/10 23:00:00+00,2016/05/10 23:00:00+00,146254,1250,Revenue,Silva Woodland Management Ltd,May,2016,409
Tunbridge Wells Borough Council,Central Services,102,PK,PARKS,BUILDING SERVICES,PROPERTY CONSULTANTS,3290,-,-,2016/05/08 23:00:00+00,2016/05/10 23:00:00+00,146271,1245,Revenue,IOG,May,2016,410
Tunbridge Wells Borough Council,Planning Services,110,HE,HEALTHY COMMUNITIES,COMMUNITY & GRANTS,GRANTS,3750,-,-,2016/05/08 23:00:00+00,2016/05/10 23:00:00+00,146377,1187.5,Revenue,Cranbrook&District Local History Museum Fund,May,2016,411
Tunbridge Wells Borough Council,Housing Services,108,HO,HOUSING,BED & BREAKFAST COSTS,RENTS/HIRE OF PREMISES,2200,-,-,2016/05/10 23:00:00+00,2016/05/10 23:00:00+00,146233,1157.14001464844,Revenue,This data has been redacted under the Data Protection Act,May,2016,412
Tunbridge Wells Borough Council,Cultural and Related Services,104,AM,ASSEMBLY HALL MARKETING,A-HALL HIRE SHOWS,PROMOTION,3450,160528 CLARE TEAL,A16S01,2016/05/10 23:00:00+00,2016/05/10 23:00:00+00,146410,1141,Revenue,Local World Limited,May,2016,413
Tunbridge Wells Borough Council,Housing Services,108,HO,HOUSING,BED & BREAKFAST COSTS,RENTS/HIRE OF PREMISES,2200,-,-,2016/05/10 23:00:00+00,2016/05/10 23:00:00+00,146255,1028.56994628906,Revenue,This data has been redacted under the Data Protection Act,May,2016,414
Tunbridge Wells Borough Council,Central Services,102,MA,MAYORAL,MAYORAL,EQUIPMENT PURCHASE/MTCE,3000,-,-,2016/05/09 23:00:00+00,2016/05/10 23:00:00+00,145565,1004.44000244141,Revenue,Thomas Fattorini Ltd,May,2016,415
Tunbridge Wells Borough Council,Highways and Transport Services,107,PA,PARKING,TORRINGTON CAR PARK,CONTRACT CLEANING,2510,-,-,2016/05/05 23:00:00+00,2016/05/10 23:00:00+00,146224,1000,Revenue,D R M Rowswell,May,2016,416
Tunbridge Wells Borough Council,Cultural and Related Services,104,IT,INFORMATION & COMMUNICATIONS TECHNOLOGY,MUSEUM & ART GALLERY,PROJECTS & INITIATIVES,3910,MUSEUM IN SCHOOLS,EV0061,2016/05/08 23:00:00+00,2016/05/10 23:00:00+00,146059,900,Revenue,CCS Media Limited,May,2016,417
Tunbridge Wells Borough Council,Environmental and regulatory services ,105,CS,CLIENT SERVICES (DEPOT),REFUSE COLLECTION SERVICES,EXTNLL CONTRACT/CLINICAL WASTE,3224,-,-,2016/05/08 23:00:00+00,2016/05/10 23:00:00+00,146425,841.130004882813,Revenue,OCS Group UK Limited t/a Cannon,May,2016,418
Tunbridge Wells Borough Council,Cultural and Related Services,104,AB,ASSEMBLY HALL BAR,A-HALL FRONT OF HOUSE,COGS - DRINK,3091,-,-,2016/05/08 23:00:00+00,2016/05/10 23:00:00+00,145727,836.760009765625,Revenue,H T White & Co Ltd,May,2016,419
Tunbridge Wells Borough Council,Environmental and regulatory services ,105,LI,LICENSING,LICENSING,PARTNERSHIP AGREEMENT,202,-,-,2016/05/05 23:00:00+00,2016/05/10 23:00:00+00,145543,836,Revenue,Sevenoaks District Council,May,2016,420
Tunbridge Wells Borough Council,Highways and Transport Services,107,PA,PARKING,PARKING ADMIN & ENFORCEMENT,AGENCY STAFF,100,-,-,2016/05/05 23:00:00+00,2016/05/10 23:00:00+00,146186,833.489990234375,Revenue,Unity Recruitment Ltd,May,2016,421
Tunbridge Wells Borough Council,Housing Services,108,HP,HOUSING (PRIVATE SECTOR),DISABLED FACILITIES GRANTS,CAPITAL GRANTS PAYABLE,8355,-,-,2016/05/08 23:00:00+00,2016/05/10 23:00:00+00,146159,813.659973144531,Capital,Family Mosaic Housing,May,2016,422
Tunbridge Wells Borough Council,Cultural and Related Services,104,PK,PARKS,GROSVENOR AND HILBERT PARK,"CONSTRUCTION, RENOVATION, ETC",8311,-,-,2016/05/08 23:00:00+00,2016/05/10 23:00:00+00,146269,800,Capital,CLIMB HIRE LTD,May,2016,423
Tunbridge Wells Borough Council,Highways and Transport Services,107,PA,PARKING,CRESCENT ROAD CAR PARK,CONTRACT CLEANING,2510,-,-,2016/05/08 23:00:00+00,2016/05/10 23:00:00+00,146457,800,Revenue,W B Stanley,May,2016,424
Tunbridge Wells Borough Council,Housing Services,108,HO,HOUSING,BED & BREAKFAST COSTS,RENTS/HIRE OF PREMISES,2200,-,-,2016/05/10 23:00:00+00,2016/05/10 23:00:00+00,146232,788.570007324219,Revenue,This data has been redacted under the Data Protection Act,May,2016,425
Tunbridge Wells Borough Council,Environmental and regulatory services ,105,LI,LICENSING,LICENSING,COGS-NON FOOD,3080,VEHICLE LICENSING - HC,EV0443,2016/05/10 23:00:00+00,2016/05/10 23:00:00+00,146264,780,Revenue,Matfield MOT Centre,May,2016,426
Tunbridge Wells Borough Council,Cultural and Related Services,104,PK,PARKS,DUNORLAN PARK,Horticulture,2061,-,-,2016/05/08 23:00:00+00,2016/05/10 23:00:00+00,146451,775.390014648438,Revenue,Palmstead Nurseries Ltd,May,2016,427
Tunbridge Wells Borough Council,Cultural and Related Services,104,PK,PARKS,PARKS & GROUNDS,GROUND MAINT NON CONTRACT,2060,-,-,2016/05/05 23:00:00+00,2016/05/10 23:00:00+00,146404,736,Revenue,D S Restoration,May,2016,428
Tunbridge Wells Borough Council,Cultural and Related Services,104,PK,PARKS,GROSVENOR AND HILBERT PARK,"CONSTRUCTION, RENOVATION, ETC",8311,-,-,2016/05/09 23:00:00+00,2016/05/10 23:00:00+00,146399,680,Capital,LEPPARDS,May,2016,429
Tunbridge Wells Borough Council,Central Services,102,FI,FINANCE,SALARY SACRIFICES,LOANS - UNSECURED,8530,COMPUTER SALARY SACRIFICE,CSS000,2016/05/10 23:00:00+00,2016/05/10 23:00:00+00,146237,608.940002441406,Revenue,CDW Limited,May,2016,430
Tunbridge Wells Borough Council,Environmental and regulatory services ,105,CS,CLIENT SERVICES (DEPOT),CLEANER BOROUGH,EXTERNAL CONTRACT PAYMENTS,3220,-,-,2016/05/08 23:00:00+00,2016/05/10 23:00:00+00,146187,600.599975585938,Revenue,Viking Oak Kennels,May,2016,431
Tunbridge Wells Borough Council,Central Services,102,FI,FINANCE,ACCOUNTANCY,AGENCY STAFF,100,-,-,2016/05/08 23:00:00+00,2016/05/10 23:00:00+00,146265,588,Revenue,Globetask Ltd,May,2016,432
Tunbridge Wells Borough Council,Housing Services,108,HO,HOUSING,BED & BREAKFAST COSTS,RENTS/HIRE OF PREMISES,2200,-,-,2016/05/10 23:00:00+00,2016/05/10 23:00:00+00,146235,571.429992675781,Revenue,This data has been redacted under the Data Protection Act,May,2016,433
Tunbridge Wells Borough Council,Cultural and Related Services,104,PK,PARKS,GROSVENOR AND HILBERT PARK,"CONSTRUCTION, RENOVATION, ETC",8311,-,-,2016/05/05 23:00:00+00,2016/05/10 23:00:00+00,146408,563,Capital,D S Restoration,May,2016,434
Tunbridge Wells Borough Council,Environmental and regulatory services ,105,CR,CREMATORIUM,TUNBRIDGE WELLS-CEMETERIES,COGS - PLAQUES,3082,-,-,2016/05/08 23:00:00+00,2016/05/10 23:00:00+00,145557,561.200012207031,Revenue,A Burslem & Son Ltd (Burslem Memorials),May,2016,435
Tunbridge Wells Borough Council,Housing Services,108,HO,HOUSING,BED & BREAKFAST COSTS,RENTS/HIRE OF PREMISES,2200,-,-,2016/05/05 23:00:00+00,2016/05/10 23:00:00+00,146446,552,Revenue,Spa Caffe Ltd,May,2016,436
Tunbridge Wells Borough Council,Housing Services,108,HO,HOUSING,BED & BREAKFAST COSTS,RENTS/HIRE OF PREMISES,2200,-,-,2016/05/10 23:00:00+00,2016/05/10 23:00:00+00,146234,548.570007324219,Revenue,This data has been redacted under the Data Protection Act,May,2016,437
Tunbridge Wells Borough Council,Environmental and regulatory services ,105,CS,CLIENT SERVICES (DEPOT),CLEANER BOROUGH,EXTERNAL CONTRACT PAYMENTS,3220,-,-,2016/05/08 23:00:00+00,2016/05/10 23:00:00+00,146374,504,Revenue,Viking Oak Kennels,May,2016,438
Tunbridge Wells Borough Council,Planning Services,110,FM,FACILITIES MANAGEMENT,BUILDING CONTROL,WORKS IN DEFAULT - COSTS,3801,-,-,2016/05/05 23:00:00+00,2016/05/10 23:00:00+00,145753,491.980010986328,Revenue,Travis Perkins Trading Co Ltd,May,2016,439
Tunbridge Wells Borough Council,Central Services,102,EL,ELECTIONS,NON TWBC ELECTIONS,RENTS/HIRE OF PREMISES,2200,POLICE COMM ELECTION 160505,CS0396,2016/05/10 23:00:00+00,2016/05/10 23:00:00+00,146480,480,Revenue,St Mark's C E Primary School,May,2016,440
Tunbridge Wells Borough Council,Cultural and Related Services,104,PK,PARKS,PARKS & GROUNDS,GROUND MAINT.infrastructure,2063,-,-,2016/05/05 23:00:00+00,2016/05/10 23:00:00+00,146407,473,Revenue,D S Restoration,May,2016,441
Tunbridge Wells Borough Council,Central Services,102,FM,FACILITIES MANAGEMENT,TOWN HALL,EQUIPMENT PURCHASE/MTCE,3000,-,-,2016/04/24 23:00:00+00,2016/05/10 23:00:00+00,145752,445,Revenue,EVAQ8 LIMITED,May,2016,442
Tunbridge Wells Borough Council,Highways and Transport Services,107,PA,PARKING,PARKING ADMIN & ENFORCEMENT,AGENCY STAFF,100,-,-,2016/05/05 23:00:00+00,2016/05/10 23:00:00+00,146227,442.149993896484,Revenue,Robson Newman Ltd,May,2016,443
Tunbridge Wells Borough Council,Highways and Transport Services,107,PA,PARKING,PARKING ADMIN & ENFORCEMENT,AGENCY STAFF,100,-,-,2016/05/08 23:00:00+00,2016/05/10 23:00:00+00,146463,442.149993896484,Revenue,Robson Newman Ltd,May,2016,444
Tunbridge Wells Borough Council,Environmental and regulatory services ,105,LG,LEGAL SERVICES,LICENSING,PROMOTION,3450,-,-,2016/05/10 23:00:00+00,2016/05/10 23:00:00+00,143522,400,Revenue,Archant KOS Media (Archant Community media),May,2016,445
Tunbridge Wells Borough Council,Planning Services,110,DS,Sundry Customer,COMMUNITY & GRANTS,GRANTS,3750,THE QUEEN'S 90TH BIRTHDAY,EV0145,2016/05/08 23:00:00+00,2016/05/10 23:00:00+00,146260,400,Revenue,This data has been redacted under the Data Protection Act,May,2016,446
Tunbridge Wells Borough Council,Environmental and regulatory services ,105,PS,PROPERTY SERVICES,NORTH FARM DEPOT,FIRE & SECURITY COSTS,2080,-,-,2016/05/08 23:00:00+00,2016/05/10 23:00:00+00,146193,383.339996337891,Revenue,Emprise Services plc,May,2016,447
Tunbridge Wells Borough Council,Central Services,102,PS,PROPERTY SERVICES,BUILDING SERVICES,BOOKS & PUBLICATIONS,3190,-,-,2016/05/10 23:00:00+00,2016/05/10 23:00:00+00,146386,380,Revenue,RICS,May,2016,448
Tunbridge Wells Borough Council,Planning Services,110,DS,Sundry Customer,COMMUNITY & GRANTS,GRANTS,3750,THE QUEEN'S 90TH BIRTHDAY,EV0145,2016/05/08 23:00:00+00,2016/05/10 23:00:00+00,146261,375,Revenue,This data has been redacted under the Data Protection Act,May,2016,449
Tunbridge Wells Borough Council,Cultural and Related Services,104,PK,PARKS,DUNORLAN PARK,Horticulture,2061,-,-,2016/05/08 23:00:00+00,2016/05/10 23:00:00+00,146462,370.899993896484,Revenue,Palmstead Nurseries Limited,May,2016,450
Tunbridge Wells Borough Council,Cultural and Related Services,104,PK,PARKS,PARKS & GROUNDS,GROUND MAINT.infrastructure,2063,-,-,2016/05/15 23:00:00+00,2016/05/17 23:00:00+00,146687,1125,Revenue,D S Restoration,May,2016,451
Tunbridge Wells Borough Council,Central Services,102,PS,PROPERTY SERVICES,BUILDING SERVICES,PROPERTY CONSULTANTS,3290,-,-,2016/05/16 23:00:00+00,2016/05/17 23:00:00+00,146638,1053,Revenue,Hazle McCormack Young LLP,May,2016,452
Tunbridge Wells Borough Council,Central Services,102,FI,FINANCE,ACCOUNTANCY,COUNSEL FEES,3261,-,-,2016/05/17 23:00:00+00,2016/05/17 23:00:00+00,146689,1000,Revenue,Mishcon de Reya,May,2016,453
Tunbridge Wells Borough Council,Cultural and Related Services,104,MU,MUSEUM,MUSEUM & ART GALLERY,EXHIBITION FEES,3400,-,-,2016/05/16 23:00:00+00,2016/05/17 23:00:00+00,146791,1000,Revenue,This data has been redacted under the Data Protection Act,May,2016,454
Tunbridge Wells Borough Council,Cultural and Related Services,104,PS,PROPERTY SERVICES,TUNBRIDGE WELLS SPORTS CENTRE,PLANNED MAINTENANCE BUILDINGS,2000,PROPERTY NON CONTRACT,PH0605,2016/05/17 23:00:00+00,2016/05/17 23:00:00+00,144702,965,Revenue,SITESEAL (SE) LTD,May,2016,455
Tunbridge Wells Borough Council,Cultural and Related Services,104,PS,PROPERTY SERVICES,TUNBRIDGE WELLS SPORTS CENTRE,PLANNED MAINTENANCE BUILDINGS,2000,PROPERTY NON CONTRACT,PH0605,2016/05/17 23:00:00+00,2016/05/17 23:00:00+00,146712,965,Revenue,SITESEAL (SE) LTD,May,2016,456
Tunbridge Wells Borough Council,Environmental and regulatory services ,105,LI,LICENSING,LICENSING,COGS-NON FOOD,3080,VEHICLE LICENSING - PH,EV0421,2016/05/15 23:00:00+00,2016/05/17 23:00:00+00,146625,950,Revenue,Tunbridge Wells MOT Centre Ltd,May,2016,457
Tunbridge Wells Borough Council,Planning Services,110,FI,FINANCE,DEVELOPMENT PROGRAMME,LEGAL FEES,3260,MASTERPLAN CIVIC COMPLEX,PH0709,2016/05/15 23:00:00+00,2016/05/17 23:00:00+00,146251,940,Revenue,G-B LEGAL LIMITED,May,2016,458
Tunbridge Wells Borough Council,Cultural and Related Services,104,AB,ASSEMBLY HALL BAR,ASSEMBLY HALL IMPROVEMENTS,"CONSTRUCTION, RENOVATION, ETC",8311,-,-,2016/05/17 23:00:00+00,2016/05/17 23:00:00+00,146632,880,Capital,STYLE MY HOME LTD,May,2016,459
Tunbridge Wells Borough Council,Highways and Transport Services,107,PA,PARKING,PARKING ADMIN & ENFORCEMENT,AGENCY STAFF,100,-,-,2016/05/15 23:00:00+00,2016/05/17 23:00:00+00,146646,833.489990234375,Revenue,Unity Recruitment Ltd,May,2016,460
Tunbridge Wells Borough Council,Highways and Transport Services,107,PA,PARKING,CRESCENT ROAD CAR PARK,RESPONSIVE REPAIRS BUILDINGS,2020,-,-,2016/05/17 23:00:00+00,2016/05/17 23:00:00+00,146798,784.419982910156,Revenue,Jackson Lift Services Limited,May,2016,461
Tunbridge Wells Borough Council,Highways and Transport Services,107,PA,PARKING,PARKING ADMIN & ENFORCEMENT,AGENCY STAFF,100,-,-,2016/05/17 23:00:00+00,2016/05/17 23:00:00+00,146796,715.580017089844,Revenue,Unity Recruitment Ltd,May,2016,462
Tunbridge Wells Borough Council,Housing Services,108,HP,HOUSING (PRIVATE SECTOR),DISABLED FACILITIES GRANTS,CAPITAL GRANTS PAYABLE,8355,-,-,2016/05/17 23:00:00+00,2016/05/17 23:00:00+00,146647,689.159973144531,Capital,Family Mosaic Housing,May,2016,463
Tunbridge Wells Borough Council,Cultural and Related Services,104,AB,ASSEMBLY HALL BAR,A-HALL FRONT OF HOUSE,COGS - DRINK,3091,-,-,2016/05/16 23:00:00+00,2016/05/17 23:00:00+00,145893,679.900024414063,Revenue,H T White & Co Ltd,May,2016,464
Tunbridge Wells Borough Council,Central Services,102,PS,PROPERTY SERVICES,BUILDING SERVICES,AGENCY STAFF,100,-,-,2016/05/16 23:00:00+00,2016/05/17 23:00:00+00,146640,675.75,Revenue,Hays Montrose,May,2016,465
Tunbridge Wells Borough Council,Central Services,102,PS,PROPERTY SERVICES,BUILDING SERVICES,AGENCY STAFF,100,-,-,2016/05/16 23:00:00+00,2016/05/17 23:00:00+00,146734,666.739990234375,Revenue,Hays Montrose,May,2016,466
Tunbridge Wells Borough Council,Cultural and Related Services,104,PK,PARKS,GROSVENOR AND HILBERT PARK,"CONSTRUCTION, RENOVATION, ETC",8311,-,-,2016/05/16 23:00:00+00,2016/05/17 23:00:00+00,146692,660,Capital,HUNTLEY CARTWRIGHT,May,2016,467
Tunbridge Wells Borough Council,Central Services,102,GW,GATEWAY CUSTOMER SERVICES,GATEWAY,AGENCY STAFF,20,CALL CENTRE,EV0341,2016/05/15 23:00:00+00,2016/05/17 23:00:00+00,146218,603,Revenue,Badenoch & Clark,May,2016,468
Tunbridge Wells Borough Council,Cultural and Related Services,104,PK,PARKS,PARKS & GROUNDS,Grounds Maint. Sodexo Contract,2054,-,-,2016/05/16 23:00:00+00,2016/05/17 23:00:00+00,145159,600,Revenue,Sodexo Ltd,May,2016,469
Tunbridge Wells Borough Council,Central Services,102,FM,FACILITIES MANAGEMENT,CATERING,EQUIPMENT - FLAVIA SUPPLIES,3002,-,-,2016/05/16 23:00:00+00,2016/05/17 23:00:00+00,146762,583.859985351563,Revenue,Cherrybean Ltd,May,2016,470
Tunbridge Wells Borough Council,Central Services,102,FM,FACILITIES MANAGEMENT,TOWN HALL,WINDOW CLEANING,2540,-,-,2016/05/17 23:00:00+00,2016/05/17 23:00:00+00,146811,580,Revenue,An Eye for Detail Cleaning Services,May,2016,471
Tunbridge Wells Borough Council,Housing Services,108,HP,HOUSING (PRIVATE SECTOR),DISABLED FACILITIES GRANTS,CAPITAL GRANTS PAYABLE,8355,-,-,2016/05/17 23:00:00+00,2016/05/17 23:00:00+00,146671,565.650024414063,Capital,Family Mosaic Housing,May,2016,472
Tunbridge Wells Borough Council,Central Services,102,GW,GATEWAY CUSTOMER SERVICES,GATEWAY,AGENCY STAFF,20,CALL CENTRE,EV0341,2016/05/15 23:00:00+00,2016/05/17 23:00:00+00,146392,552.75,Revenue,Badenoch & Clark,May,2016,473
Tunbridge Wells Borough Council,Environmental and regulatory services ,105,PS,PROPERTY SERVICES,NORTH FARM DEPOT,RESPONSIVE REPAIRS BUILDINGS,2020,PROPERTY CONTRACTS,PH0600,2016/05/16 23:00:00+00,2016/05/17 23:00:00+00,146771,538.719970703125,Revenue,Millwood Servicing Ltd,May,2016,474
Tunbridge Wells Borough Council,Cultural and Related Services,104,PK,PARKS,GROSVENOR AND HILBERT PARK,"CONSTRUCTION, RENOVATION, ETC",8311,-,-,2016/05/16 23:00:00+00,2016/05/17 23:00:00+00,146691,507.350006103516,Capital,D S Restoration,May,2016,475
Tunbridge Wells Borough Council,Housing Services,108,HO,HOUSING,BED & BREAKFAST COSTS,RENTS/HIRE OF PREMISES,2200,-,-,2016/05/17 23:00:00+00,2016/05/17 23:00:00+00,146631,495,Revenue,LESSHOMELESS LIMITED,May,2016,476
Tunbridge Wells Borough Council,Central Services,102,FM,FACILITIES MANAGEMENT,TOWN HALL,EQUIPMENT PURCHASE/MTCE,3000,-,-,2016/05/17 23:00:00+00,2016/05/17 23:00:00+00,145754,488.309997558594,Revenue,Travis Perkins Trading Co Ltd,May,2016,477
Tunbridge Wells Borough Council,Cultural and Related Services,104,AM,ASSEMBLY HALL MARKETING,A-HALL COUNCIL SHOWS,PROMOTION,3450,160701-09 SAVE THE LAST DANCE,A16G02,2016/05/15 23:00:00+00,2016/05/17 23:00:00+00,146624,480,Revenue,S G Media Publications Ltd,May,2016,478
Tunbridge Wells Borough Council,Cultural and Related Services,104,PK,PARKS,PARKS & GROUNDS,Horticulture,2061,BRITAIN IN BLOOM,PL0395,2016/05/16 23:00:00+00,2016/05/17 23:00:00+00,146716,455.480010986328,Revenue,Baginton Nurseries Ltd,May,2016,479
Tunbridge Wells Borough Council,Cultural and Related Services,104,PS,PROPERTY SERVICES,SHARED AMENITY MAINTENANCE,FOOTPATHS,2062,-,-,2016/05/15 23:00:00+00,2016/05/17 23:00:00+00,146618,436.190002441406,Revenue,D R M Rowswell,May,2016,480
Tunbridge Wells Borough Council,Cultural and Related Services,104,PK,PARKS,PARKS & GROUNDS,Horticulture,2061,-,-,2016/05/16 23:00:00+00,2016/05/17 23:00:00+00,145889,431.25,Revenue,Glendale Horticulture Ltd,May,2016,481
Tunbridge Wells Borough Council,Cultural and Related Services,104,AB,ASSEMBLY HALL BAR,A-HALL FRONT OF HOUSE,COGS - ICE CREAMS,3093,-,-,2016/05/15 23:00:00+00,2016/05/17 23:00:00+00,146630,422.540008544922,Revenue,Taywell Ice Creams Limited,May,2016,482
Tunbridge Wells Borough Council,Housing Services,108,HO,HOUSING,BED & BREAKFAST COSTS,RENTS/HIRE OF PREMISES,2200,-,-,2016/05/17 23:00:00+00,2016/05/17 23:00:00+00,146621,420,Revenue,This data has been redacted under the Data Protection Act,May,2016,483
Tunbridge Wells Borough Council,Housing Services,108,HO,HOUSING,BED & BREAKFAST COSTS,RENTS/HIRE OF PREMISES,2200,-,-,2016/05/17 23:00:00+00,2016/05/17 23:00:00+00,146724,420,Revenue,This data has been redacted under the Data Protection Act,May,2016,484
Tunbridge Wells Borough Council,Planning Services,110,SH,SHERWOOD,SHERWOOD COMMUNITY PILOT,PROJECTS & INITIATIVES,3910,-,-,2016/05/15 23:00:00+00,2016/05/17 23:00:00+00,146761,400,Revenue,Working Futures Partnership,May,2016,485
Tunbridge Wells Borough Council,Central Services,102,GW,GATEWAY CUSTOMER SERVICES,GATEWAY,AGENCY STAFF,20,CALL CENTRE,EV0341,2016/05/15 23:00:00+00,2016/05/17 23:00:00+00,146393,385.25,Revenue,Badenoch & Clark,May,2016,486
Tunbridge Wells Borough Council,Cultural and Related Services,104,AB,ASSEMBLY HALL BAR,A-HALL FRONT OF HOUSE,COGS - DRINK,3091,-,-,2016/05/16 23:00:00+00,2016/05/17 23:00:00+00,146402,381.440002441406,Revenue,H T White & Co Ltd,May,2016,487
Tunbridge Wells Borough Council,Planning Services,110,ED,ECONOMIC DEVELOPMENT,ECONOMIC DEVELOPMENT,PROJECTS & INITIATIVES,3910,-,-,2016/05/16 23:00:00+00,2016/05/17 23:00:00+00,146777,365,Revenue,SOUTH EAST WATER LTD,May,2016,488
Tunbridge Wells Borough Council,Housing Services,108,HO,HOUSING,BED & BREAKFAST COSTS,RENTS/HIRE OF PREMISES,2200,-,-,2016/05/17 23:00:00+00,2016/05/17 23:00:00+00,146757,360,Revenue,Grapevine Estates Ltd,May,2016,489
Tunbridge Wells Borough Council,Highways and Transport Services,107,PA,PARKING,PARKING ADMIN & ENFORCEMENT,AGENCY STAFF,100,-,-,2016/05/15 23:00:00+00,2016/05/17 23:00:00+00,146754,358.5,Revenue,Robson Newman Ltd,May,2016,490
Tunbridge Wells Borough Council,Housing Services,108,HO,HOUSING,BED & BREAKFAST COSTS,RENTS/HIRE OF PREMISES,2200,-,-,2016/05/17 23:00:00+00,2016/05/17 23:00:00+00,146723,350,Revenue,This data has been redacted under the Data Protection Act,May,2016,491
Tunbridge Wells Borough Council,Highways and Transport Services,107,PA,PARKING,PARKING ADMIN & ENFORCEMENT,PRINTING - PCNs & RESDTS PRMTS,3152,-,-,2016/05/15 23:00:00+00,2016/05/17 23:00:00+00,146756,350,Revenue,Liberty Printers (AR and RF Reddin) Limited,May,2016,492
Tunbridge Wells Borough Council,Environmental and regulatory services ,105,CS,CLIENT SERVICES (DEPOT),STREET SWEEPING,EXTERNAL CONTRACT PAYMENTS,3220,-,-,2016/05/15 23:00:00+00,2016/05/17 23:00:00+00,146677,346.220001220703,Revenue,Cory Environmental Municipal Services Ltd,May,2016,493
Tunbridge Wells Borough Council,Central Services,102,PU,PUBLICATIONS,PERFORMANCE MANAGEMENT,PRINTING,3150,-,-,2016/05/16 23:00:00+00,2016/05/17 23:00:00+00,146752,334.399993896484,Revenue,Corporate Document Services Limited,May,2016,494
Tunbridge Wells Borough Council,Cultural and Related Services,104,PS,PROPERTY SERVICES,CULTURAL HUB,PROJECTS & INITIATIVES,3910,-,-,2016/05/16 23:00:00+00,2016/05/17 23:00:00+00,146774,330,Revenue,Hays Montrose,May,2016,495
Tunbridge Wells Borough Council,Cultural and Related Services,104,AH,ASSEMBLY HALL,A-HALL COUNCIL SHOWS,PROMOTION,3450,160327 LETS HANG ON,A16C08,2016/05/16 23:00:00+00,2016/05/17 23:00:00+00,146780,329.369995117188,Revenue,Riviera Entertainments Ltd,May,2016,496
Tunbridge Wells Borough Council,Central Services,102,FI,FINANCE,COUNCIL TAXPAYERS ACCOUNT,CASH CHQ & E-PAYMENTS,8620,-,-,2016/05/17 23:00:00+00,2016/05/17 23:00:00+00,146832,318,Revenue,Hastings Borough Council,May,2016,497
Tunbridge Wells Borough Council,Housing Services,108,HO,HOUSING,BED & BREAKFAST COSTS,RENTS/HIRE OF PREMISES,2200,-,-,2016/05/17 23:00:00+00,2016/05/17 23:00:00+00,146758,280,Revenue,Grapevine Estates Ltd,May,2016,498
Tunbridge Wells Borough Council,Housing Services,108,HO,HOUSING,BED & BREAKFAST COSTS,RENTS/HIRE OF PREMISES,2200,-,-,2016/05/17 23:00:00+00,2016/05/17 23:00:00+00,146759,280,Revenue,Grapevine Estates Ltd,May,2016,499
Tunbridge Wells Borough Council,Cultural and Related Services,104,PK,PARKS,PARKS & GROUNDS,GROUND MAINT.infrastructure,2063,-,-,2016/05/15 23:00:00+00,2016/05/17 23:00:00+00,146690,270,Revenue,D S Restoration,May,2016,500
Tunbridge Wells Borough Council,Cultural and Related Services,104,PK,PARKS,GROSVENOR AND HILBERT PARK,"CONSTRUCTION, RENOVATION, ETC",8311,-,-,2016/05/05 23:00:00+00,2016/05/10 23:00:00+00,146378,370.410003662109,Capital,Community First Partnership Ltd,May,2016,501
Tunbridge Wells Borough Council,Cultural and Related Services,104,PK,PARKS,PARKS & GROUNDS,GROUND MAINT.infrastructure,2063,-,-,2016/05/05 23:00:00+00,2016/05/10 23:00:00+00,146403,370,Revenue,D S Restoration,May,2016,502
Tunbridge Wells Borough Council,Central Services,102,EL,ELECTIONS,NON TWBC ELECTIONS,RENTS/HIRE OF PREMISES,2200,POLICE COMM ELECTION 160505,CS0396,2016/05/10 23:00:00+00,2016/05/10 23:00:00+00,146483,360,Revenue,Matfield Village Hall,May,2016,503
Tunbridge Wells Borough Council,Environmental and regulatory services ,105,LI,LICENSING,LICENSING,COGS-NON FOOD,3080,VEHICLE LICENSING - PH,EV0421,2016/05/10 23:00:00+00,2016/05/10 23:00:00+00,146435,345,Revenue,This data has been redacted under the Data Protection Act,May,2016,504
Tunbridge Wells Borough Council,Housing Services,108,HO,HOUSING,BED & BREAKFAST COSTS,RENTS/HIRE OF PREMISES,2200,-,-,2016/05/05 23:00:00+00,2016/05/10 23:00:00+00,146444,342,Revenue,Spa Caffe Ltd,May,2016,505
Tunbridge Wells Borough Council,Central Services,102,PS,PROPERTY SERVICES,BUILDING SERVICES,BOOKS & PUBLICATIONS,3190,-,-,2016/05/08 23:00:00+00,2016/05/10 23:00:00+00,146370,339,Revenue,Sweet & Maxwell Ltd,May,2016,506
Tunbridge Wells Borough Council,Cultural and Related Services,104,HO,HOUSING,CULTURAL HUB,PROJECTS & INITIATIVES,3910,-,-,2016/05/08 23:00:00+00,2016/05/10 23:00:00+00,146471,330,Revenue,Hays Montrose,May,2016,507
Tunbridge Wells Borough Council,Cultural and Related Services,104,PK,PARKS,PARKS & GROUNDS,GROUND MAINT.infrastructure,2063,-,-,2016/05/05 23:00:00+00,2016/05/10 23:00:00+00,146405,325,Revenue,D S Restoration,May,2016,508
Tunbridge Wells Borough Council,Central Services,102,EL,ELECTIONS,NON TWBC ELECTIONS,RENTS/HIRE OF PREMISES,2200,POLICE COMM ELECTION 160505,CS0396,2016/05/10 23:00:00+00,2016/05/10 23:00:00+00,146479,320,Revenue,St Luke's Church PCC,May,2016,509
Tunbridge Wells Borough Council,Cultural and Related Services,104,PK,PARKS,DUNORLAN PARK,Horticulture,2061,-,-,2016/05/09 23:00:00+00,2016/05/10 23:00:00+00,146171,309.959991455078,Revenue,Palmstead Nurseries Ltd,May,2016,510
Tunbridge Wells Borough Council,Central Services,102,PU,PUBLICATIONS,NON TWBC ELECTIONS,STATIONERY,3160,EUROPEAN UNION 160623,CS0398,2016/05/09 23:00:00+00,2016/05/10 23:00:00+00,145733,289.799987792969,Revenue,Graphics Direct Ltd,May,2016,511
Tunbridge Wells Borough Council,Planning Services,110,DS,Sundry Customer,COMMUNITY & GRANTS,GRANTS,3750,THE QUEEN'S 90TH BIRTHDAY,EV0145,2016/05/08 23:00:00+00,2016/05/10 23:00:00+00,146450,270,Revenue,THE AVENUES RESIDENTS ASSOCIATION,May,2016,512
Tunbridge Wells Borough Council,Cultural and Related Services,104,PK,PARKS,PARKS & GROUNDS,Horticulture,2061,-,-,2016/05/05 23:00:00+00,2016/05/10 23:00:00+00,146437,258,Revenue,Treework,May,2016,513
Tunbridge Wells Borough Council,Central Services,102,EL,ELECTIONS,NON TWBC ELECTIONS,PRINTING,3150,POLICE COMM ELECTION 160505,CS0396,2016/05/10 23:00:00+00,2016/05/10 23:00:00+00,146421,251,Revenue,Document Technology Limited,May,2016,514
Tunbridge Wells Borough Council,Central Services,102,EL,ELECTIONS,NON TWBC ELECTIONS,PRINTING,3150,POLICE COMM ELECTION 160505,CS0396,2016/05/10 23:00:00+00,2016/05/10 23:00:00+00,146422,251,Revenue,Document Technology Limited,May,2016,515
Tunbridge Wells Borough Council,Central Services,102,EL,ELECTIONS,BOROUGH ELECTIONS,RENTS/HIRE OF PREMISES,2200,-,-,2016/05/10 23:00:00+00,2016/05/10 23:00:00+00,145848,250,Revenue,British Red Cross Society,May,2016,516
Tunbridge Wells Borough Council,Planning Services,110,PS,PROPERTY SERVICES,DEVELOPMENT PROGRAMME,PROPERTY CONSULTANTS,3290,NEW THEATRE CIVIC COMPLEX,PH0717,2016/05/15 23:00:00+00,2016/05/17 23:00:00+00,146731,66350,Revenue,GVA Grimley Ltd,May,2016,517
Tunbridge Wells Borough Council,Central Services,102,FI,FINANCE,I T SERVICE,IT SOFTWARE,3590,SOFTWARE MAINTENANCE,EV0328,2016/05/17 23:00:00+00,2016/05/17 23:00:00+00,144782,53731.76171875,Revenue,Maidstone Borough Council,May,2016,518
Tunbridge Wells Borough Council,Planning Services,110,PS,PROPERTY SERVICES,DEVELOPMENT PROGRAMME,PROPERTY CONSULTANTS,3290,MPA CAR PARK CIVIC COMPLEX,PH0701,2016/05/15 23:00:00+00,2016/05/17 23:00:00+00,146729,49500,Revenue,GVA Grimley Ltd,May,2016,519
Tunbridge Wells Borough Council,Planning Services,110,PS,PROPERTY SERVICES,DEVELOPMENT PROGRAMME,PROPERTY CONSULTANTS,3290,MASTERPLAN CIVIC COMPLEX,PH0709,2016/05/15 23:00:00+00,2016/05/17 23:00:00+00,146727,35750,Revenue,GVA Grimley Ltd,May,2016,520
Tunbridge Wells Borough Council,Central Services,102,FI,FINANCE,S106 -USEABLE RECEIPTS,CREDITORS,9009,old orchard sandhurst 10/01638,RV0736,2016/05/17 23:00:00+00,2016/05/17 23:00:00+00,146784,19602,Capital,Sandhurst Parish Council,May,2016,521
Tunbridge Wells Borough Council,Planning Services,110,PS,PROPERTY SERVICES,DEVELOPMENT PROGRAMME,PROPERTY CONSULTANTS,3290,CAR PARKING CIVIC COMPLEX,PH0718,2016/05/15 23:00:00+00,2016/05/17 23:00:00+00,146732,17500,Revenue,GVA Grimley Ltd,May,2016,522
Tunbridge Wells Borough Council,Environmental and regulatory services ,105,CU,COMMUNITY SAFTY UNIT,CCTV,EXTERNAL CONTRACT PAYMENTS,3220,-,-,2016/05/17 23:00:00+00,2016/05/17 23:00:00+00,146622,16302.8095703125,Revenue,OCS Group UK Limited t/a Cannon,May,2016,523
Tunbridge Wells Borough Council,Cultural and Related Services ,104,FI,FINANCE,CAPITAL G&C RESERVE S106,EARMARKED RESERVE,9700,"Burnt Farmhouse, 10/03231",RV0771,2016/05/17 23:00:00+00,2016/05/17 23:00:00+00,146783,14067.419921875,Capital,Sandhurst Parish Council,May,2016,524
Tunbridge Wells Borough Council,Central Services,102,FI,FINANCE,STAFF CAR LOANS,LOANS - UNSECURED,8530,-,-,2016/05/17 23:00:00+00,2016/05/17 23:00:00+00,146781,9041.490234375,Revenue,4 FRONT CAR SALES LTD,May,2016,525
Tunbridge Wells Borough Council,Housing Services,108,HP,HOUSING (PRIVATE SECTOR),PRIVATE SECTOR HOUSING,GRANTS,3750,-,-,2016/05/16 23:00:00+00,2016/05/17 23:00:00+00,146644,8489.66015625,Revenue,Family Mosaic Housing,May,2016,526
Tunbridge Wells Borough Council,Planning Services,110,HE,HEALTHY COMMUNITIES,COMMUNITY & GRANTS,GRANTS,3750,-,-,2016/05/15 23:00:00+00,2016/05/17 23:00:00+00,146654,7500,Revenue,This data has been redacted under the Data Protection Act,May,2016,527
Tunbridge Wells Borough Council,Central Services,102,GI,GIS,I T SERVICE,IT SOFTWARE,3590,-,-,2016/05/16 23:00:00+00,2016/05/17 23:00:00+00,146702,6570,Revenue,ESRI(UK) Ltd,May,2016,528
Tunbridge Wells Borough Council,Planning Services,110,FI,FINANCE,HERITAGE PARTNER GRANTS,"CONSTRUCTION, RENOVATION, ETC",8311,-,-,2016/05/17 23:00:00+00,2016/05/17 23:00:00+00,146782,5290,Capital,SITE SEAL WATERPROOFING LTD,May,2016,529
Tunbridge Wells Borough Council,Central Services,102,GW,GATEWAY CUSTOMER SERVICES,GATEWAY,TELEPHONE COSTS,3510,CALL CENTRE,EV0341,2016/05/15 23:00:00+00,2016/05/17 23:00:00+00,146430,4945.47021484375,Revenue,Daisy Telecoms Ltd,May,2016,530
Tunbridge Wells Borough Council,Central Services,102,FI,FINANCE,LLOYDS CREDIT CARD CREDITOR,CREDITORS,9009,-,-,2016/05/17 23:00:00+00,2016/05/17 23:00:00+00,146829,4468.509765625,Revenue,Lloyds TSB,May,2016,531
Tunbridge Wells Borough Council,Planning Services,110,HE,HEALTHY COMMUNITIES,COMMUNITY & GRANTS,GRANTS,3750,-,-,2016/05/15 23:00:00+00,2016/05/17 23:00:00+00,146769,4000,Revenue,TUNBRIDGE WELLS SHOPMOBILITY,May,2016,532
Tunbridge Wells Borough Council,Cultural and Related Services,104,PK,PARKS,GROSVENOR AND HILBERT PARK,"CONSTRUCTION, RENOVATION, ETC",8311,-,-,2016/05/16 23:00:00+00,2016/05/17 23:00:00+00,146258,3640.5,Capital,Fitzpatrick Woolmer Design & Publishing,May,2016,533
Tunbridge Wells Borough Council,Central Services,102,PS,PROPERTY SERVICES,TOWN HALL,RESPONSIVE REPAIRS BUILDINGS,2020,PROPERTY CONTRACTS,PH0600,2016/05/16 23:00:00+00,2016/05/17 23:00:00+00,146770,2755.27001953125,Revenue,Millwood Servicing Ltd,May,2016,534
Tunbridge Wells Borough Council,Highways and Transport Services,107,PS,PROPERTY SERVICES,GREAT HALL CAR PARK,PLANNED MAINTENANCE BUILDINGS,2000,-,-,2016/05/16 23:00:00+00,2016/05/17 23:00:00+00,146696,2188.64990234375,Revenue,Ian Williams Ltd,May,2016,535
Tunbridge Wells Borough Council,Central Services,102,PS,PROPERTY SERVICES,BUILDING SERVICES,AGENCY STAFF,100,-,-,2016/05/15 23:00:00+00,2016/05/17 23:00:00+00,146656,1968.68005371094,Revenue,Hays Montrose,May,2016,536
Tunbridge Wells Borough Council,Housing Services,108,FI,FINANCE,RENT DEPOSIT SCHEME,DEBTORS,8510,-,-,2016/05/17 23:00:00+00,2016/05/17 23:00:00+00,146793,1950,Revenue,This data has been redacted under the Data Protection Act,May,2016,537
Tunbridge Wells Borough Council,Central Services,102,PS,PROPERTY SERVICES,BUILDING SERVICES,AGENCY STAFF,100,-,-,2016/05/16 23:00:00+00,2016/05/17 23:00:00+00,146655,1780,Revenue,Hays Montrose,May,2016,538
Tunbridge Wells Borough Council,Central Services,102,GI,GIS,I T SERVICE,IT SOFTWARE,3590,-,-,2016/05/15 23:00:00+00,2016/05/17 23:00:00+00,146423,1750,Revenue,Mobifi Messaging Ltd,May,2016,539
Tunbridge Wells Borough Council,Central Services,102,FI,FINANCE,MOBILE PHONE CREDITOR,CREDITORS,9009,-,-,2016/05/15 23:00:00+00,2016/05/17 23:00:00+00,146639,1583.42004394531,Revenue,O2 UK Limited,May,2016,540
Tunbridge Wells Borough Council,Environmental and regulatory services ,105,IT,INFORMATION & COMMUNICATIONS TECHNOLOGY,FOOD & COMMERCIAL,EQUIPMENT PURCHASE/MTCE,3000,-,-,2016/05/16 23:00:00+00,2016/05/17 23:00:00+00,146206,1534,Revenue,ACS Systems UK Ltd,May,2016,541
Tunbridge Wells Borough Council,Central Services,102,PS,PROPERTY SERVICES,BUILDING SERVICES,AGENCY STAFF,100,-,-,2016/05/16 23:00:00+00,2016/05/17 23:00:00+00,146772,1513,Revenue,Hays Montrose,May,2016,542
Tunbridge Wells Borough Council,Highways and Transport Services,107,PA,PARKING,TORRINGTON CAR PARK,FIRE & SECURITY COSTS,2080,-,-,2016/05/16 23:00:00+00,2016/05/17 23:00:00+00,146705,1500,Revenue,RIGHT GUARD SECURITY UK LTD,May,2016,543
Tunbridge Wells Borough Council,Central Services,102,IT,INFORMATION & COMMUNICATIONS TECHNOLOGY,I T SERVICE,IT SOFTWARE,3590,-,-,2016/05/15 23:00:00+00,2016/05/17 23:00:00+00,146667,1495,Revenue,ROL Solutions Ltd,May,2016,544
Tunbridge Wells Borough Council,Central Services,102,PS,PROPERTY SERVICES,BUILDING SERVICES,AGENCY STAFF,100,-,-,2016/05/16 23:00:00+00,2016/05/17 23:00:00+00,146773,1482.73999023438,Revenue,Hays Montrose,May,2016,545
Tunbridge Wells Borough Council,Cultural and Related Services,104,PK,PARKS,PARKS & GROUNDS,Horticulture,2061,-,-,2016/05/16 23:00:00+00,2016/05/17 23:00:00+00,145890,1433.30004882813,Revenue,Glendale Horticulture Ltd,May,2016,546
Tunbridge Wells Borough Council,Cultural and Related Services,104,PK,PARKS,PARKS & GROUNDS,GROUND MAINT NON CONTRACT,2060,PLAY AREAS,PL0399,2016/05/16 23:00:00+00,2016/05/17 23:00:00+00,146611,1314.90002441406,Revenue,TMA BARK SUPPLIES LTD,May,2016,547
Tunbridge Wells Borough Council,Central Services,102,PS,PROPERTY SERVICES,BUILDING SERVICES,AGENCY STAFF,100,-,-,2016/05/16 23:00:00+00,2016/05/17 23:00:00+00,146775,1275.23999023438,Revenue,Hays Montrose,May,2016,548
Tunbridge Wells Borough Council,Central Services,102,PS,PROPERTY SERVICES,BUILDING SERVICES,AGENCY STAFF,100,-,-,2016/05/16 23:00:00+00,2016/05/17 23:00:00+00,146657,1201.21997070313,Revenue,Hays Montrose,May,2016,549
Tunbridge Wells Borough Council,Environmental and regulatory services ,105,CR,CREMATORIUM,CREMATORIUM,Medical Fees,3340,-,-,2016/05/17 23:00:00+00,2016/05/17 23:00:00+00,146628,1125.5,Revenue,This data has been redacted under the Data Protection Act,May,2016,550
Tunbridge Wells Borough Council,Central Services,102,GW,GATEWAY CUSTOMER SERVICES,GATEWAY,OTHER EMOLUMENTS,70,CALL CENTRE,EV0341,2016/05/30 23:00:00+00,2016/05/31 23:00:00+00,147302,2500,Revenue,MEDWAY PUBLIC SERVICES LTD,June,2016,551
Tunbridge Wells Borough Council,Housing Services,108,HO,HOUSING,BED & BREAKFAST COSTS,RENTS/HIRE OF PREMISES,2200,-,-,2016/05/03 23:00:00+00,2016/05/03 23:00:00+00,146221,490,Revenue,This data has been redacted under the Data Protection Act,May,2016,552
Tunbridge Wells Borough Council,Cultural and Related Services,104,AH,ASSEMBLY HALL,A-HALL COUNCIL SHOWS,SHOW FEES,3380,160406 TAP FACTORY,A16D06,2016/05/03 23:00:00+00,2016/05/03 23:00:00+00,145907,3395.34008789063,Revenue,Tap Factory Productions Ltd,May,2016,553
Tunbridge Wells Borough Council,Central Services,102,RB,REVS & BENS,REVS & BENS ADMINISTRATION,CONSULTANTS FEES,3292,-,-,2016/05/23 23:00:00+00,2016/05/24 23:00:00+00,147044,624,Revenue,Inform CPI Limited,May,2016,554
Tunbridge Wells Borough Council,Cultural and Related Services,104,PK,PARKS,GROSVENOR AND HILBERT PARK,"CONSTRUCTION, RENOVATION, ETC",8311,-,-,2016/05/24 23:00:00+00,2016/05/24 23:00:00+00,146801,595,Capital,RIGHT GUARD SECURITY UK LTD,May,2016,555
Tunbridge Wells Borough Council,Central Services,102,FM,FACILITIES MANAGEMENT,TOWN HALL,FIRE & SECURITY COSTS,2080,-,-,2016/05/19 23:00:00+00,2016/05/24 23:00:00+00,147005,593.950012207031,Revenue,Digital ID Limited,May,2016,556
Tunbridge Wells Borough Council,Cultural and Related Services,104,AB,ASSEMBLY HALL BAR,A-HALL FRONT OF HOUSE,COGS - CONFECTIONERY,3094,-,-,2016/05/24 23:00:00+00,2016/05/24 23:00:00+00,145859,571.640014648438,Revenue,Palmer & Harvey McLane Ltd,May,2016,557
Tunbridge Wells Borough Council,Housing Services,108,TN,TN2 CENTRE,TN2 COMMUNITY CENTRE,TELEPHONE COSTS,3510,-,-,2016/05/17 23:00:00+00,2016/05/24 23:00:00+00,146990,557.840026855469,Revenue,British Telecommunications plc,May,2016,558
Tunbridge Wells Borough Council,Highways and Transport Services,107,PA,PARKING,PARKING REGULATION,SIGNING & LINING WORKS,3920,-,-,2016/05/24 23:00:00+00,2016/05/24 23:00:00+00,147141,509.850006103516,Revenue,Local World Limited,May,2016,559
Tunbridge Wells Borough Council,Cultural and Related Services,104,PU,PUBLICATIONS,DUNORLAN PARK,PROMOTION,3450,-,-,2016/05/19 23:00:00+00,2016/05/24 23:00:00+00,146751,470.799987792969,Revenue,Corporate Document Services Limited,May,2016,560
Tunbridge Wells Borough Council,Planning Services,110,PL,PLANNING,PLANNING POLICY,PLANNING CONSULTANT FEES,3270,LOCAL DEVELOPMENT FRAMEWORK,EV0575,2016/05/24 23:00:00+00,2016/05/24 23:00:00+00,146962,463.5,Revenue,Local World Limited,May,2016,561
Tunbridge Wells Borough Council,Central Services,102,FI,FINANCE,SALARY SACRIFICES,LOANS - UNSECURED,8530,COMPUTER SALARY SACRIFICE,CSS000,2016/05/24 23:00:00+00,2016/05/24 23:00:00+00,145265,456.720001220703,Revenue,CDW Limited,May,2016,562
Tunbridge Wells Borough Council,Central Services,102,AM,ASSEMBLY HALL MARKETING,I T SERVICE,IT SOFTWARE,3590,SOFTWARE MAINTENANCE,EV0328,2016/05/24 23:00:00+00,2016/05/24 23:00:00+00,146984,450,Revenue,TINCAN LIMITED,May,2016,563
Tunbridge Wells Borough Council,Environmental and regulatory services ,105,CR,CREMATORIUM,CREMATORIUM,SUBS TO ORGANISATIONS,3730,-,-,2016/05/17 23:00:00+00,2016/05/24 23:00:00+00,146812,445,Revenue,ICCM,May,2016,564
Tunbridge Wells Borough Council,Central Services,102,PL,PLANNING,I T SERVICE,PHOTOCOPYING EXPENSES,3180,-,-,2016/05/24 23:00:00+00,2016/05/24 23:00:00+00,146996,434.720001220703,Revenue,Canon UK Ltd,May,2016,565
Tunbridge Wells Borough Council,Central Services,102,PS,PROPERTY SERVICES,BUILDING SERVICES,AGENCY STAFF,100,-,-,2016/05/17 23:00:00+00,2016/05/24 23:00:00+00,147032,423.959991455078,Revenue,Hays Montrose,May,2016,566
Tunbridge Wells Borough Council,Housing Services,108,HO,HOUSING,BED & BREAKFAST COSTS,RENTS/HIRE OF PREMISES,2200,-,-,2016/05/24 23:00:00+00,2016/05/24 23:00:00+00,147010,420,Revenue,This data has been redacted under the Data Protection Act,May,2016,567
Tunbridge Wells Borough Council,Planning Services,110,HE,HEALTHY COMMUNITIES,COMMUNITY & GRANTS,GRANTS,3750,THE QUEEN'S 90TH BIRTHDAY,EV0145,2016/05/23 23:00:00+00,2016/05/24 23:00:00+00,147046,400,Revenue,Southborough Town Council,May,2016,568
Tunbridge Wells Borough Council,Planning Services,110,HE,HEALTHY COMMUNITIES,COMMUNITY & GRANTS,GRANTS,3750,THE QUEEN'S 90TH BIRTHDAY,EV0145,2016/05/23 23:00:00+00,2016/05/24 23:00:00+00,147049,400,Revenue,Lamberhurst Parish Council,May,2016,569
Tunbridge Wells Borough Council,Planning Services,110,HE,HEALTHY COMMUNITIES,COMMUNITY & GRANTS,GRANTS,3750,THE QUEEN'S 90TH BIRTHDAY,EV0145,2016/05/23 23:00:00+00,2016/05/24 23:00:00+00,147057,382.950012207031,Revenue,Speldhurst Parish Council,May,2016,570
Tunbridge Wells Borough Council,Planning Services,110,HE,HEALTHY COMMUNITIES,COMMUNITY & GRANTS,GRANTS,3750,THE QUEEN'S 90TH BIRTHDAY,EV0145,2016/05/23 23:00:00+00,2016/05/24 23:00:00+00,147055,380,Revenue,Cranbrook & Sissinghurst Parish Council,May,2016,571
Tunbridge Wells Borough Council,Cultural and Related Services,104,AH,ASSEMBLY HALL,A-HALL TECH OPS,TRADE REFUSE CHARGES,2520,-,-,2016/05/24 23:00:00+00,2016/05/24 23:00:00+00,146719,378.700012207031,Revenue,Veolia ES (UK) Ltd,May,2016,572
Tunbridge Wells Borough Council,Central Services,102,FM,FACILITIES MANAGEMENT,TOWN HALL,MISC INSURANCE,3850,-,-,2016/05/24 23:00:00+00,2016/05/24 23:00:00+00,146373,378.100006103516,Revenue,Wave Advertising Ltd,May,2016,573
Tunbridge Wells Borough Council,Housing Services,108,HO,HOUSING,BED & BREAKFAST COSTS,RENTS/HIRE OF PREMISES,2200,-,-,2016/05/24 23:00:00+00,2016/05/24 23:00:00+00,147009,350,Revenue,This data has been redacted under the Data Protection Act,May,2016,574
Tunbridge Wells Borough Council,Central Services,102,SC,LEO,STAFF WELFARE,OTHER FEES,3330,Social Society Club,EV1006,2016/05/23 23:00:00+00,2016/05/24 23:00:00+00,147043,345,Revenue,ACE INFLATABLES,May,2016,575
Tunbridge Wells Borough Council,Central Services,102,CO,COMMUNICATIONS,COMMUNICATIONS AND ENGAGEMENT,EQUIPMENT PURCHASE/MTCE,3000,-,-,2016/05/30 23:00:00+00,2016/05/31 23:00:00+00,147290,2475,Revenue,Access Intelligence Media and Communications,June,2016,576
Tunbridge Wells Borough Council,Central Services,102,FI,FINANCE,CHIEF EXECUTIVE,SUBS TO ORGANISATIONS,3730,-,-,2016/05/23 23:00:00+00,2016/05/24 23:00:00+00,147007,330,Revenue,District Councils Network,May,2016,577
Tunbridge Wells Borough Council,Environmental and regulatory services ,105,CR,CREMATORIUM,CREMATORIUM,GROUNDS MAINT CONTRACTS,2050,-,-,2016/05/17 23:00:00+00,2016/05/24 23:00:00+00,146706,320,Revenue,D C Jordan,May,2016,578
Tunbridge Wells Borough Council,Cultural and Related Services,104,MU,MUSEUM,MUSEUM & ART GALLERY,EXHIBITION FEES,3400,-,-,2016/05/23 23:00:00+00,2016/05/24 23:00:00+00,146454,306,Revenue,This data has been redacted under the Data Protection Act,May,2016,579
Tunbridge Wells Borough Council,Planning Services,110,FI,FINANCE,DEVELOPMENT PROGRAMME,LEGAL FEES,3260,MASTERPLAN CIVIC COMPLEX,PH0709,2016/05/17 23:00:00+00,2016/05/24 23:00:00+00,146779,300,Revenue,G-B LEGAL LIMITED,May,2016,580
Tunbridge Wells Borough Council,Housing Services,108,HP,HOUSING (PRIVATE SECTOR),CINDERHILL WOOD CARAVAN SITE,ELECTRICITY,2140,-,-,2016/05/24 23:00:00+00,2016/05/24 23:00:00+00,147062,298.670013427734,Revenue,Kent County Council (KCS),May,2016,581
Tunbridge Wells Borough Council,Housing Services,108,TN,TN2 CENTRE,TN2 COMMUNITY CENTRE,GAS,2120,-,-,2016/05/17 23:00:00+00,2016/05/24 23:00:00+00,146967,284.609985351563,Revenue,Kent County Council (KCS),May,2016,582
Tunbridge Wells Borough Council,Cultural and Related Services,104,PU,PUBLICATIONS,MUSEUM & ART GALLERY,PRINTING,3150,-,-,2016/05/24 23:00:00+00,2016/05/24 23:00:00+00,146740,272.799987792969,Revenue,Corporate Document Services Limited,May,2016,583
Tunbridge Wells Borough Council,Cultural and Related Services,104,AH,ASSEMBLY HALL,A-HALL TECH OPS,EQUIPMENT PURCHASE/MTCE,3000,-,-,2016/05/24 23:00:00+00,2016/05/24 23:00:00+00,147099,255.820007324219,Revenue,Trade UK,May,2016,584
Tunbridge Wells Borough Council,Central Services,102,IT,INFORMATION & COMMUNICATIONS TECHNOLOGY,I T SERVICE,COMPUTER HARDWARE,3580,HARDWARE REPLACEMENT,EV0324,2016/05/19 23:00:00+00,2016/05/24 23:00:00+00,146252,254.850006103516,Revenue,CCS Media Limited,May,2016,585
Tunbridge Wells Borough Council,Central Services,102,PU,PUBLICATIONS,BUILDING ADMINISTRATION,PRINTING,3150,-,-,2016/05/24 23:00:00+00,2016/05/24 23:00:00+00,146747,254.100006103516,Revenue,Corporate Document Services Limited,May,2016,586
Tunbridge Wells Borough Council,Central Services,102,EL,ELECTIONS,NON TWBC ELECTIONS,RENTS/HIRE OF PREMISES,2200,EUROPEAN UNION 160623,CS0398,2016/05/17 23:00:00+00,2016/05/24 23:00:00+00,146808,250,Revenue,British Red Cross Society,May,2016,587
Tunbridge Wells Borough Council,Central Services,102,HR,HUMAN RESOURCES,I T SERVICE,IT SOFTWARE,3590,-,-,2016/05/24 23:00:00+00,2016/05/24 23:00:00+00,147027,250,Revenue,IML Interactive UK Ltd,May,2016,588
Tunbridge Wells Borough Council,Cultural and Related Services,104,PK,PARKS,PARKS & GROUNDS,Grounds Maint. Sodexo Contract,2054,-,-,2016/05/30 23:00:00+00,2016/05/31 23:00:00+00,147132,69062.078125,Revenue,Sodexo Ltd,June,2016,589
Tunbridge Wells Borough Council,Central Services,102,FM,FACILITIES MANAGEMENT,TOWN HALL,CONTRACT CLEANING,2510,-,-,2016/05/30 23:00:00+00,2016/05/31 23:00:00+00,146663,14791.8095703125,Revenue,CORDANT CLEANING LTD,June,2016,590
Tunbridge Wells Borough Council,Housing Services,108,FI,FINANCE,PROPERTY,RENTS,5620,RESIDENTIAL PROPER,PH0205,2016/05/24 23:00:00+00,2016/05/31 23:00:00+00,146981,14451.33984375,Revenue,Tunbridge Wells Property Holdings Ltd,June,2016,591
Tunbridge Wells Borough Council,Housing Services,108,CS,CLIENT SERVICES (DEPOT),PROPERTY,PLANNED MAINTENANCE BUILDINGS,2000,PROPERTY CONTRACTS,PH0600,2016/05/31 23:00:00+00,2016/05/31 23:00:00+00,146660,13269.3798828125,Revenue,Millwood Servicing Ltd,June,2016,592
Tunbridge Wells Borough Council,Housing Services,108,HP,HOUSING (PRIVATE SECTOR),DISABLED FACILITIES GRANTS,CAPITAL GRANTS PAYABLE,8355,-,-,2016/05/30 23:00:00+00,2016/05/31 23:00:00+00,147299,10456.91015625,Capital,LIFESTYLE (KENT) LTD,June,2016,593
Tunbridge Wells Borough Council,Environmental and regulatory services ,105,CU,COMMUNITY SAFTY UNIT,CCTV,EXTERNAL CONTRACT PAYMENTS,3220,-,-,2016/05/30 23:00:00+00,2016/05/31 23:00:00+00,146979,9308.0595703125,Revenue,OCS Group UK Limited t/a Cannon,June,2016,594
Tunbridge Wells Borough Council,Cultural and Related Services,104,PK,PARKS,PARKS & GROUNDS,Grounds Maint. Sodexo Contract,2054,-,-,2016/05/25 23:00:00+00,2016/05/31 23:00:00+00,147131,7874.93017578125,Revenue,Sodexo Ltd,June,2016,595
Tunbridge Wells Borough Council,Housing Services,108,HP,HOUSING (PRIVATE SECTOR),DISABLED FACILITIES GRANTS,CAPITAL GRANTS PAYABLE,8355,-,-,2016/05/30 23:00:00+00,2016/05/31 23:00:00+00,147315,5507.64990234375,Capital,Acorn Maintenance Services,June,2016,596
Tunbridge Wells Borough Council,Highways and Transport Services,107,FI,FINANCE,PARKING ADMIN & ENFORCEMENT,EXTERNAL CONTRACT PAYMENTS,3220,-,-,2016/05/30 23:00:00+00,2016/05/31 23:00:00+00,147287,5048.33984375,Revenue,Contract Security Services Ltd,June,2016,597
Tunbridge Wells Borough Council,Housing Services,108,HP,HOUSING (PRIVATE SECTOR),DISABLED FACILITIES GRANTS,CAPITAL GRANTS PAYABLE,8355,-,-,2016/05/30 23:00:00+00,2016/05/31 23:00:00+00,147152,4528.93994140625,Capital,Town and Country Housing Group,June,2016,598
Tunbridge Wells Borough Council,Central Services,102,FM,FACILITIES MANAGEMENT,TOWN HALL,GAS,2120,-,-,2016/05/30 23:00:00+00,2016/05/31 23:00:00+00,147054,4471.7998046875,Revenue,Kent County Council (KCS),June,2016,599
Tunbridge Wells Borough Council,Housing Services,108,HP,HOUSING (PRIVATE SECTOR),DISABLED FACILITIES GRANTS,CAPITAL GRANTS PAYABLE,8355,-,-,2016/05/30 23:00:00+00,2016/05/31 23:00:00+00,147327,4092.40991210938,Capital,Trinity Construction Services Ltd,June,2016,600
Tunbridge Wells Borough Council,Central Services,102,FM,FACILITIES MANAGEMENT,TOWN HALL,GAS,2120,-,-,2016/05/30 23:00:00+00,2016/05/31 23:00:00+00,147058,3639.7099609375,Revenue,Kent County Council (KCS),June,2016,601
Tunbridge Wells Borough Council,Central Services,102,FM,FACILITIES MANAGEMENT,POSTAL CHARGES ACCOUNT,CASH TRANSFERS,9100,-,-,2016/05/30 23:00:00+00,2016/05/31 23:00:00+00,147086,3591.71997070313,Revenue,Royal Mail Group plc,June,2016,602
Tunbridge Wells Borough Council,Housing Services,108,DS,Sundry Customer,RENT DEPOSIT SCHEME,DEBTORS,8510,-,-,2016/05/30 23:00:00+00,2016/05/31 23:00:00+00,147340,3390,Revenue,JORDAN ESTATES LTD T/A LLOYD MARTIN,June,2016,603
Tunbridge Wells Borough Council,Environmental and regulatory services ,105,CU,COMMUNITY SAFTY UNIT,COMMUNITY SAFETY,PROJECTS & INITIATIVES,3910,-,-,2016/05/30 23:00:00+00,2016/05/31 23:00:00+00,147136,3200,Revenue,YOUNG PEOPLE BUS SERVICES,June,2016,604
Tunbridge Wells Borough Council,Highways and Transport Services,107,PA,PARKING,PARKING ADMIN & ENFORCEMENT,EXTERNAL TRAINING,204,-,-,2016/05/02 23:00:00+00,2016/05/03 23:00:00+00,146092,3284.5,Revenue,Parking Associates Ltd,May,2016,605
Tunbridge Wells Borough Council,Cultural and Related Services,104,PK,PARKS,PARKS & GROUNDS,GROUND MAINT NON CONTRACT,2060,PLAY AREAS,PL0399,2016/05/02 23:00:00+00,2016/05/03 23:00:00+00,146178,480.600006103516,Revenue,HAGS-SMP LTD,May,2016,606
Tunbridge Wells Borough Council,Housing Services,108,HP,HOUSING (PRIVATE SECTOR),DISABLED FACILITIES GRANTS,CAPITAL GRANTS PAYABLE,8355,-,-,2016/05/17 23:00:00+00,2016/05/17 23:00:00+00,146645,255.360000610352,Capital,Family Mosaic Housing,May,2016,607
Tunbridge Wells Borough Council,Cultural and Related Services,104,AH,ASSEMBLY HALL,A-HALL COUNCIL SHOWS,SHOW FEES,3380,160421 SOUL LEGENDS,A16D05,2016/05/03 23:00:00+00,2016/05/03 23:00:00+00,146124,3074.71997070313,Revenue,Entertainers Show Providers Ltd,May,2016,608
Tunbridge Wells Borough Council,Housing Services,108,HO,HOUSING,PROPERTIES ON LOAN,RENTS/HIRE OF PREMISES,2200,-,-,2016/05/03 23:00:00+00,2016/05/03 23:00:00+00,146083,479.279998779297,Revenue,Town and Country Housing Group,May,2016,609
Tunbridge Wells Borough Council,Planning Services,110,PL,PLANNING,PLANNING MANAGEMENT & SUPPORT,MEMBER DEVELOPMENT,203,-,-,2016/05/30 23:00:00+00,2016/05/31 23:00:00+00,146420,2376.5,Revenue,Wave Advertising Ltd,June,2016,610
Tunbridge Wells Borough Council,Planning Services,110,FI,FINANCE,KCC - PLANNING CONTRIBUTIONS,CREDITORS,9009,HOLLYSHAW H/HURST TW/14/501820,RV0798,2016/05/30 23:00:00+00,2016/05/31 23:00:00+00,147143,2216.18994140625,Revenue,Kent County Council,June,2016,611
Tunbridge Wells Borough Council,Cultural and Related Services,104,FM,FACILITIES MANAGEMENT,A-HALL TECH OPS,CONTRACT CLEANING,2510,-,-,2016/05/30 23:00:00+00,2016/05/31 23:00:00+00,146813,2162.13989257813,Revenue,CORDANT CLEANING LTD,June,2016,612
Tunbridge Wells Borough Council,Central Services,102,FM,FACILITIES MANAGEMENT,POSTAL CHARGES ACCOUNT,CASH TRANSFERS,9100,-,-,2016/05/30 23:00:00+00,2016/05/31 23:00:00+00,146672,2076.07006835938,Revenue,Royal Mail Group plc,June,2016,613
Tunbridge Wells Borough Council,Central Services,102,PS,PROPERTY SERVICES,BUILDING SERVICES,AGENCY STAFF,100,-,-,2016/05/31 23:00:00+00,2016/05/31 23:00:00+00,147318,2018.52001953125,Revenue,Hays Montrose,June,2016,614
Tunbridge Wells Borough Council,Environmental and regulatory services ,105,CU,COMMUNITY SAFTY UNIT,COMMUNITY SAFETY,PROJECTS & INITIATIVES,3910,-,-,2016/05/30 23:00:00+00,2016/05/31 23:00:00+00,147076,2000,Revenue,Domestic Abuse Volunteer Support Services,June,2016,615
Tunbridge Wells Borough Council,Environmental and regulatory services ,105,CU,COMMUNITY SAFTY UNIT,COMMUNITY SAFETY,PROJECTS & INITIATIVES,3910,COMM.SAFETY PARTNE,EV0088,2016/05/30 23:00:00+00,2016/05/31 23:00:00+00,147078,2000,Revenue,Domestic Abuse Volunteer Support Services,June,2016,616
Tunbridge Wells Borough Council,Housing Services,108,HO,HOUSING,BED & BREAKFAST COSTS,RENTS/HIRE OF PREMISES,2200,-,-,2016/05/30 23:00:00+00,2016/05/31 23:00:00+00,146442,1710,Revenue,Spa Caffe Ltd,June,2016,617
Tunbridge Wells Borough Council,Housing Services,108,HO,HOUSING,RENT DEPOSIT SCHEME,DEBTORS,8510,-,-,2016/05/30 23:00:00+00,2016/05/31 23:00:00+00,147341,1698,Revenue,BRETTSLETTS LIMITED,June,2016,618
Tunbridge Wells Borough Council,Central Services,102,FM,FACILITIES MANAGEMENT,POSTAL CHARGES ACCOUNT,CASH TRANSFERS,9100,-,-,2016/05/30 23:00:00+00,2016/05/31 23:00:00+00,147015,1594.34997558594,Revenue,Royal Mail Group plc,June,2016,619
Tunbridge Wells Borough Council,Central Services,102,PL,PLANNING,TOWN HALL,FURNITURE COSTS,3020,PROPERTY ACCOMMODATION,PH0602,2016/05/25 23:00:00+00,2016/05/31 23:00:00+00,146642,1570,Revenue,Kent County Council (KCS),June,2016,620
Tunbridge Wells Borough Council,Planning Services,110,PS,PROPERTY SERVICES,JOHN STREET CAR PARK,"CONSTRUCTION, RENOVATION, ETC",8311,-,-,2016/05/30 23:00:00+00,2016/05/31 23:00:00+00,147167,1500,Capital,CHP Surveyors Ltd,June,2016,621
Tunbridge Wells Borough Council,Environmental and regulatory services ,105,CS,CLIENT SERVICES (DEPOT),NORTH FARM DEPOT,ELECTRICITY,2140,-,-,2016/05/30 23:00:00+00,2016/05/31 23:00:00+00,146986,1208.26000976563,Revenue,Kent County Council (KCS),June,2016,622
Tunbridge Wells Borough Council,Cultural and Related Services,104,PK,PARKS,GROSVENOR AND HILBERT PARK,"CONSTRUCTION, RENOVATION, ETC",8311,-,-,2016/05/25 23:00:00+00,2016/05/31 23:00:00+00,147129,1109.5,Capital,Sodexo Ltd,June,2016,623
Tunbridge Wells Borough Council,Planning Services,110,PL,PLANNING,PLANNING MANAGEMENT & SUPPORT,EXTERNAL TRAINING,204,-,-,2016/05/30 23:00:00+00,2016/05/31 23:00:00+00,147337,1075,Revenue,Trevor Roberts Associates Ltd,June,2016,624
Tunbridge Wells Borough Council,Environmental and regulatory services ,105,HE,HEALTHY COMMUNITIES,CHOOSING HEALTH,PROJECTS & INITIATIVES,3910,CHSG HEALTH HEALTHY LIVING,EV0950,2016/05/17 23:00:00+00,2016/05/31 23:00:00+00,143001,1062,Revenue,Sevenoaks District Council,June,2016,625
Tunbridge Wells Borough Council,Cultural and Related Services,104,AB,ASSEMBLY HALL BAR,A-HALL FRONT OF HOUSE,COGS - DRINK,3091,-,-,2016/05/25 23:00:00+00,2016/05/31 23:00:00+00,146958,1050.85998535156,Revenue,H T White & Co Ltd,June,2016,626
Tunbridge Wells Borough Council,Cultural and Related Services,104,PK,PARKS,PARKS & GROUNDS,GROUND MAINT.infrastructure,2063,-,-,2016/05/30 23:00:00+00,2016/05/31 23:00:00+00,147298,998,Revenue,Streetmaster (South Wales) Ltd,June,2016,627
Tunbridge Wells Borough Council,Cultural and Related Services,104,PK,PARKS,PARKS & GROUNDS,GROUND MAINT NON CONTRACT,2060,PLAY AREAS,PL0399,2016/05/30 23:00:00+00,2016/05/31 23:00:00+00,147133,981.239990234375,Revenue,Sodexo Ltd,June,2016,628
Tunbridge Wells Borough Council,Highways and Transport Services,107,PA,PARKING,PARKING ADMIN & ENFORCEMENT,AGENCY STAFF,100,-,-,2016/05/30 23:00:00+00,2016/05/31 23:00:00+00,147313,858.690002441406,Revenue,Unity Recruitment Ltd,June,2016,629
Tunbridge Wells Borough Council,Housing Services,108,HO,HOUSING,RENT DEPOSIT SCHEME,DEBTORS,8510,-,-,2016/05/30 23:00:00+00,2016/05/31 23:00:00+00,147339,847.5,Revenue,Jordan Estates Ltd,June,2016,630
Tunbridge Wells Borough Council,Central Services,102,GW,GATEWAY CUSTOMER SERVICES,GATEWAY,ELECTRICITY,2140,GATEWAY,EV0340,2016/05/30 23:00:00+00,2016/05/31 23:00:00+00,146735,831.809997558594,Revenue,Kent County Council (KCS),June,2016,631
Tunbridge Wells Borough Council,Planning Services,110,FI,FINANCE,KCC - PLANNING CONTRIBUTIONS,CREDITORS,9009,HOLLYSHAW H/HURST TW/14/501820,RV0798,2016/05/30 23:00:00+00,2016/05/31 23:00:00+00,147149,680.549987792969,Revenue,Kent County Council,June,2016,632
Tunbridge Wells Borough Council,Housing Services,108,HP,HOUSING (PRIVATE SECTOR),DISABLED FACILITIES GRANTS,CAPITAL GRANTS PAYABLE,8355,-,-,2016/05/30 23:00:00+00,2016/05/31 23:00:00+00,147169,666.919982910156,Capital,Family Mosaic Housing,June,2016,633
Tunbridge Wells Borough Council,Planning Services,110,FM,FACILITIES MANAGEMENT,9-10 CALVERLEY TERRACE,ELECTRICITY,2140,-,-,2016/05/30 23:00:00+00,2016/05/31 23:00:00+00,147120,631.469970703125,Revenue,Southern Electric,June,2016,634
Tunbridge Wells Borough Council,Central Services,102,GW,GATEWAY CUSTOMER SERVICES,GATEWAY,AGENCY STAFF,20,CALL CENTRE,EV0341,2016/05/30 23:00:00+00,2016/05/31 23:00:00+00,147017,628.130004882813,Revenue,Badenoch & Clark,June,2016,635
Tunbridge Wells Borough Council,Central Services,102,FM,FACILITIES MANAGEMENT,TOWN HALL,FURNITURE COSTS,3020,PROPERTY ACCOMMODATION,PH0602,2016/05/30 23:00:00+00,2016/05/31 23:00:00+00,146637,590,Revenue,Kent County Council (KCS),June,2016,636
Tunbridge Wells Borough Council,Central Services,102,FM,FACILITIES MANAGEMENT,TOWN HALL,TRADE REFUSE CHARGES,2520,-,-,2016/05/30 23:00:00+00,2016/05/31 23:00:00+00,146710,565.130004882813,Revenue,Veolia ES (UK) Ltd,June,2016,637
Tunbridge Wells Borough Council,Planning Services,110,FI,FINANCE,KCC - PLANNING CONTRIBUTIONS,CREDITORS,9009,HOLLYSHAW H/HURST TW/14/501820,RV0798,2016/05/30 23:00:00+00,2016/05/31 23:00:00+00,147148,564.340026855469,Revenue,Kent County Council,June,2016,638
Tunbridge Wells Borough Council,Environmental and regulatory services ,105,PK,PARKS,CREMATORIUM,GROUNDS MAINT CONTRACTS,2050,-,-,2016/05/30 23:00:00+00,2016/05/31 23:00:00+00,147157,531.739990234375,Revenue,D S Restoration,June,2016,639
Tunbridge Wells Borough Council,Cultural and Related Services,104,MU,MUSEUM,MUSEUM & ART GALLERY,EVENTS,3420,-,-,2016/05/30 23:00:00+00,2016/05/31 23:00:00+00,147303,515.190002441406,Revenue,This data has been redacted under the Data Protection Act,June,2016,640
Tunbridge Wells Borough Council,Cultural and Related Services,104,PK,PARKS,DUNORLAN PARK,GROUND MAINT.infrastructure,2063,-,-,2016/05/30 23:00:00+00,2016/05/31 23:00:00+00,147297,510,Revenue,Streetmaster (South Wales) Ltd,June,2016,641
Tunbridge Wells Borough Council,Cultural and Related Services,104,CC,CAMDEN CENTRE,CAMDEN CENTRE,ELECTRICITY,2140,-,-,2016/05/30 23:00:00+00,2016/05/31 23:00:00+00,146985,502.739990234375,Revenue,Kent County Council (KCS),June,2016,642
Tunbridge Wells Borough Council,Housing Services,108,HP,HOUSING (PRIVATE SECTOR),DISABLED FACILITIES GRANTS,CAPITAL GRANTS PAYABLE,8355,-,-,2016/05/30 23:00:00+00,2016/05/31 23:00:00+00,147168,497.089996337891,Capital,Family Mosaic Housing,June,2016,643
Tunbridge Wells Borough Council,Cultural and Related Services,104,PK,PARKS,DUNORLAN PARK,GROUND MAINT.infrastructure,2063,-,-,2016/05/30 23:00:00+00,2016/05/31 23:00:00+00,147156,496.799987792969,Revenue,D S Restoration,June,2016,644
Tunbridge Wells Borough Council,Central Services,102,PL,PLANNING,TOWN HALL,FURNITURE COSTS,3020,PROPERTY ACCOMMODATION,PH0602,2016/05/30 23:00:00+00,2016/05/31 23:00:00+00,146641,492,Revenue,Kent County Council (KCS),June,2016,645
Tunbridge Wells Borough Council,Central Services,102,GW,GATEWAY CUSTOMER SERVICES,GATEWAY,AGENCY STAFF,20,CALL CENTRE,EV0341,2016/05/30 23:00:00+00,2016/05/31 23:00:00+00,147008,485.75,Revenue,Badenoch & Clark,June,2016,646
Tunbridge Wells Borough Council,Cultural and Related Services,104,PK,PARKS,PARKS & GROUNDS,GROUND MAINT.infrastructure,2063,-,-,2016/05/30 23:00:00+00,2016/05/31 23:00:00+00,147154,475,Revenue,D S Restoration,June,2016,647
Tunbridge Wells Borough Council,Environmental and regulatory services ,105,FM,FACILITIES MANAGEMENT,NORTH FARM DEPOT,GAS,2120,-,-,2016/05/30 23:00:00+00,2016/05/31 23:00:00+00,146741,444.720001220703,Revenue,Kent County Council (KCS),June,2016,648
Tunbridge Wells Borough Council,Planning Services,110,DS,Sundry Customer,COMMUNITY & GRANTS,GRANTS,3750,THE QUEEN'S 90TH BIRTHDAY,EV0145,2016/05/30 23:00:00+00,2016/05/31 23:00:00+00,147331,400,Revenue,This data has been redacted under the Data Protection Act,June,2016,649
Tunbridge Wells Borough Council,Cultural and Related Services,104,PK,PARKS,PARKS & GROUNDS,GROUND MAINT.infrastructure,2063,-,-,2016/05/30 23:00:00+00,2016/05/31 23:00:00+00,147158,396,Revenue,D S Restoration,June,2016,650
Tunbridge Wells Borough Council,Central Services,102,GW,GATEWAY CUSTOMER SERVICES,GATEWAY,AGENCY STAFF,20,CALL CENTRE,EV0341,2016/05/30 23:00:00+00,2016/05/31 23:00:00+00,146680,376.880004882813,Revenue,Badenoch & Clark,June,2016,651
Tunbridge Wells Borough Council,Planning Services,110,FI,FINANCE,DEVELOPMENT MANAGEMENT,CAR CLUB EXPENSES,1470,-,-,2016/05/31 23:00:00+00,2016/05/31 23:00:00+00,146949,368.019989013672,Revenue,Co-wheels Car Club,June,2016,652
Tunbridge Wells Borough Council,Cultural and Related Services,104,AB,ASSEMBLY HALL BAR,A-HALL FRONT OF HOUSE,COGS - DRINK,3091,-,-,2016/05/30 23:00:00+00,2016/05/31 23:00:00+00,147128,347.760009765625,Revenue,H T White & Co Ltd,June,2016,653
Tunbridge Wells Borough Council,Cultural and Related Services,104,HO,HOUSING,CULTURAL HUB,PROJECTS & INITIATIVES,3910,-,-,2016/05/30 23:00:00+00,2016/05/31 23:00:00+00,147317,330,Revenue,Hays Montrose,June,2016,654
Tunbridge Wells Borough Council,Cultural and Related Services,104,PU,PUBLICATIONS,MUSEUM & ART GALLERY,PRINTING,3150,-,-,2016/05/30 23:00:00+00,2016/05/31 23:00:00+00,146750,319,Revenue,Corporate Document Services Limited,June,2016,655
Tunbridge Wells Borough Council,Environmental and regulatory services ,105,FI,FINANCE,CLEANER BOROUGH,FUEL & OIL,1010,-,-,2016/05/31 23:00:00+00,2016/05/31 23:00:00+00,146432,316.540008544922,Revenue,Fuel Card Services Ltd,June,2016,656
Tunbridge Wells Borough Council,Central Services,102,CE,CHIEF EXECUTIVE,CHIEF EXECUTIVE,CONFERENCES/SEMINARS,205,-,-,2016/05/25 23:00:00+00,2016/05/31 23:00:00+00,147089,315,Revenue,Solution Business Space Ltd,June,2016,657
Tunbridge Wells Borough Council,Housing Services,108,HO,HOUSING,PROPERTIES ON LOAN,RENTS/HIRE OF PREMISES,2200,-,-,2016/05/03 23:00:00+00,2016/05/03 23:00:00+00,146079,475.470001220703,Revenue,Town and Country Housing Group,May,2016,658
Tunbridge Wells Borough Council,Housing Services,108,HO,HOUSING,HOUSING NEEDS SERVICE,SUBS TO ORGANISATIONS,3730,-,-,2016/04/27 23:00:00+00,2016/05/03 23:00:00+00,146088,2916.669921875,Revenue,Ashford Borough Council,May,2016,659
Tunbridge Wells Borough Council,Planning Services,110,DS,Sundry Customer,COMMUNITY & GRANTS,GRANTS,3750,THE QUEEN'S 90TH BIRTHDAY,EV0145,2016/05/17 23:00:00+00,2016/05/17 23:00:00+00,146787,250,Revenue,This data has been redacted under the Data Protection Act,May,2016,660
Tunbridge Wells Borough Council,Housing Services,108,FI,FINANCE,RENT DEPOSIT SCHEME,DEBTORS,8510,-,-,2016/05/23 23:00:00+00,2016/05/23 23:00:00+00,147068,1142.30004882813,Revenue,Bracketts,May,2016,661
Tunbridge Wells Borough Council,Cultural and related services,104,FI,FINANCE,CULTURAL HUB,CAPITAL FEES EXTERNAL,8315,-,-,2016/05/23 23:00:00+00,2016/05/24 23:00:00+00,146116,490000,Capital,Kent County Council,May,2016,662
Tunbridge Wells Borough Council,Environmental and regulatory services ,105,CS,CLIENT SERVICES (DEPOT),REFUSE COLLECTION SERVICES,EXTERNAL CONTRACT PAYMENTS,3220,-,-,2016/05/24 23:00:00+00,2016/05/24 23:00:00+00,147082,147550.1875,Revenue,Cory Environmental Municipal Services Ltd,May,2016,663
Tunbridge Wells Borough Council,Environmental and regulatory services ,105,CS,CLIENT SERVICES (DEPOT),STREET SWEEPING,EXTERNAL CONTRACT PAYMENTS,3220,-,-,2016/05/24 23:00:00+00,2016/05/24 23:00:00+00,147083,91342.53125,Revenue,Cory Environmental Municipal Services Ltd,May,2016,664
Tunbridge Wells Borough Council,Central Services,102,FI,FINANCE,REVS & BENS ADMINISTRATION,IT SOFTWARE,3590,-,-,2016/05/24 23:00:00+00,2016/05/24 23:00:00+00,147079,72044.0703125,Revenue,Maidstone Borough Council,May,2016,665
Tunbridge Wells Borough Council,Environmental and regulatory services ,105,PS,PROPERTY SERVICES,CREMATORIUM,PLANNED MAINTENANCE BUILDINGS,2000,PROPERTY CONTRACTS,PH0600,2016/05/17 23:00:00+00,2016/05/24 23:00:00+00,146976,37954.7890625,Revenue,DCB (Kent) Ltd,May,2016,666
Tunbridge Wells Borough Council,Cultural and Related Services,104,PK,PARKS,GROSVENOR AND HILBERT PARK,"CONSTRUCTION, RENOVATION, ETC",8311,-,-,2016/05/23 23:00:00+00,2016/05/24 23:00:00+00,147028,31408,Capital,Blakedown Landscapes (SE) Ltd,May,2016,667
Tunbridge Wells Borough Council,Cultural and Related Services,104,PK,PARKS,GROSVENOR AND HILBERT PARK,"CONSTRUCTION, RENOVATION, ETC",8311,-,-,2016/05/24 23:00:00+00,2016/05/24 23:00:00+00,147090,31408,Capital,Blakedown Landscapes (SE) Ltd,May,2016,668
Tunbridge Wells Borough Council,Environmental and regulatory services ,105,CR,CREMATORIUM,CREMATORIUM,MAINT/SERVICING PLANT,2030,-,-,2016/05/24 23:00:00+00,2016/05/24 23:00:00+00,146458,14823.0703125,Revenue,Facultatieve Technologies Ltd,May,2016,669
Tunbridge Wells Borough Council,Cultural and related services,104,AH,ASSEMBLY HALL,ASSEMBLY HALL GRID UPGRADE,FURNITURE AND EQUIPMENT,8326,-,-,2016/05/19 23:00:00+00,2016/05/24 23:00:00+00,146989,10748.400390625,Capital,Hoist UK Ltd,May,2016,670
Tunbridge Wells Borough Council,Cultural and Related Services,104,AH,ASSEMBLY HALL,A-HALL COUNCIL SHOWS,SHOW FEES,3380,160422 JULIAN CLARY,A16D03,2016/05/24 23:00:00+00,2016/05/24 23:00:00+00,146952,9958.0400390625,Revenue,Mick Perrin Worldwide Ltd,May,2016,671
Tunbridge Wells Borough Council,Central Services,102,FI,FINANCE,BUILDING SERVICES,PROPERTY CONSULTANTS,3290,-,-,2016/05/24 23:00:00+00,2016/05/24 23:00:00+00,146790,9802.5,Revenue,GL HEARN LIMITED,May,2016,672
Tunbridge Wells Borough Council,Housing Services,108,HP,HOUSING (PRIVATE SECTOR),DISABLED FACILITIES GRANTS,CAPITAL GRANTS PAYABLE,8355,-,-,2016/05/23 23:00:00+00,2016/05/24 23:00:00+00,146649,5693.009765625,Capital,Excel Interior Refurbishment Ltd,May,2016,673
Tunbridge Wells Borough Council,Central Services,102,HR,HUMAN RESOURCES,HUMAN RESOURCES,AGENCY STAFF,100,-,-,2016/05/24 23:00:00+00,2016/05/24 23:00:00+00,146688,5600,Revenue,Reed Specialist Recruitment Ltd,May,2016,674
Tunbridge Wells Borough Council,Highways and Transport Services,107,PA,PARKING,SURFACE CAR PARKS,SERVICE CHARGES,2240,MOUNT PLEASANT,PT0118,2016/05/17 23:00:00+00,2016/05/24 23:00:00+00,146991,4122.35009765625,Revenue,AXA PPP Healthcare Limited,May,2016,675
Tunbridge Wells Borough Council,Central Services,102,FM,FACILITIES MANAGEMENT,TOWN HALL,EQUIPMENT PURCHASE/MTCE,3000,FACILITIES TEAM WORKS,PH0604,2016/05/23 23:00:00+00,2016/05/24 23:00:00+00,147012,4033,Revenue,BritishBins Ltd,May,2016,676
Tunbridge Wells Borough Council,Central Services,102,FM,FACILITIES MANAGEMENT,POSTAL CHARGES ACCOUNT,CASH TRANSFERS,9100,-,-,2016/05/24 23:00:00+00,2016/05/24 23:00:00+00,146788,3065.51000976563,Revenue,Royal Mail Group plc,May,2016,677
Tunbridge Wells Borough Council,Central Services,102,EL,ELECTIONS,NON TWBC ELECTIONS,RENTS/HIRE OF PREMISES,2200,POLICE COMM ELECTION 160505,CS0396,2016/05/24 23:00:00+00,2016/05/24 23:00:00+00,146434,2750,Revenue,Hendley Partnership,May,2016,678
Tunbridge Wells Borough Council,Planning Services,110,HE,HEALTHY COMMUNITIES,COMMUNITY & GRANTS,GRANTS,3750,-,-,2016/05/23 23:00:00+00,2016/05/24 23:00:00+00,147061,2750,Revenue,Number One Community Trust,May,2016,679
Tunbridge Wells Borough Council,Highways and Transport Services,107,PA,PARKING,TORRINGTON CAR PARK,ELECTRICITY,2140,-,-,2016/05/24 23:00:00+00,2016/05/24 23:00:00+00,147059,2722.4599609375,Revenue,Kent County Council (KCS),May,2016,680
Tunbridge Wells Borough Council,Central Services,102,ED,ECONOMIC DEVELOPMENT,I T SERVICE,IT SOFTWARE,3590,SOFTWARE PURCHASE,EV0327,2016/05/23 23:00:00+00,2016/05/24 23:00:00+00,146668,2022,Revenue,New Mind Internet Consultancy Limited,May,2016,681
Tunbridge Wells Borough Council,Environmental and regulatory services ,105,CR,CREMATORIUM,CREMATORIUM,Medical Fees,3340,-,-,2016/05/22 23:00:00+00,2016/05/24 23:00:00+00,146627,1891.59997558594,Revenue,This data has been redacted under the Data Protection Act,May,2016,682
Tunbridge Wells Borough Council,Central Services,102,IT,INFORMATION & COMMUNICATIONS TECHNOLOGY,I T SERVICE,COMPUTER HARDWARE,3580,-,-,2016/05/19 23:00:00+00,2016/05/24 23:00:00+00,146259,1847.73999023438,Revenue,Pervasive Networks Ltd,May,2016,683
Tunbridge Wells Borough Council,Central Services,102,PS,PROPERTY SERVICES,BUILDING SERVICES,AGENCY STAFF,100,-,-,2016/05/17 23:00:00+00,2016/05/24 23:00:00+00,147030,1844.07995605469,Revenue,Hays Montrose,May,2016,684
Tunbridge Wells Borough Council,Environmental and regulatory services ,105,SH,SHERWOOD,CLEANER BOROUGH,OTHER FEES,3330,SHERWOOD KINGDOM,EV0467,2016/05/17 23:00:00+00,2016/05/24 23:00:00+00,146786,1800,Revenue,Kingdom Security Limited,May,2016,685
Tunbridge Wells Borough Council,Cultural and Related Services,104,PK,PARKS,PARKS & GROUNDS,GROUND MAINT NON CONTRACT,2060,-,-,2016/05/24 23:00:00+00,2016/05/24 23:00:00+00,145158,1778.48999023438,Revenue,Sodexo Ltd,May,2016,686
Tunbridge Wells Borough Council,Environmental and regulatory services ,105,CR,CREMATORIUM,CREMATORIUM,GAS/CREMATORS,2121,-,-,2016/05/17 23:00:00+00,2016/05/24 23:00:00+00,146748,1667.68994140625,Revenue,Kent County Council (KCS),May,2016,687
Tunbridge Wells Borough Council,Central Services,102,PS,PROPERTY SERVICES,BUILDING SERVICES,AGENCY STAFF,100,-,-,2016/05/17 23:00:00+00,2016/05/24 23:00:00+00,147029,1513,Revenue,Hays Montrose,May,2016,688
Tunbridge Wells Borough Council,Environmental and regulatory services ,105,EH,ENVIRONMENTAL HEALTH,FOOTWAY LIGHTING-TW & RUSTHALL,STREET LIGHTING MTCE CONTRACT,2035,-,-,2016/05/23 23:00:00+00,2016/05/24 23:00:00+00,146983,1443.14001464844,Revenue,PSR LIGHTING & SIGNS LTD,May,2016,689
Tunbridge Wells Borough Council,Environmental and regulatory services ,105,CR,CREMATORIUM,CREMATORIUM,ELECTRICITY,2140,-,-,2016/05/17 23:00:00+00,2016/05/24 23:00:00+00,146736,1426.65002441406,Revenue,Kent County Council (KCS),May,2016,690
Tunbridge Wells Borough Council,Planning Services,110,PL,PLANNING,DEVELOPMENT MANAGEMENT,PLANNING CONSULTANT FEES,3270,-,-,2016/05/17 23:00:00+00,2016/05/24 23:00:00+00,146272,1225,Revenue,Rural Planning Limited,May,2016,691
Tunbridge Wells Borough Council,Planning Services,110,ED,ECONOMIC DEVELOPMENT,ECONOMIC DEVELOPMENT,SUBS TO ORGANISATIONS,3730,-,-,2016/05/24 23:00:00+00,2016/05/24 23:00:00+00,147067,1100,Revenue,Visit Kent Limited,May,2016,692
Tunbridge Wells Borough Council,Planning Services,110,ED,ECONOMIC DEVELOPMENT,ECONOMIC DEVELOPMENT,PROJECTS & INITIATIVES,3910,-,-,2016/05/24 23:00:00+00,2016/05/24 23:00:00+00,146134,1060,Revenue,DHA PLANNING LTD,May,2016,693
Tunbridge Wells Borough Council,Environmental and regulatory services ,105,CR,CREMATORIUM,CREMATORIUM,Medical Fees,3340,-,-,2016/05/22 23:00:00+00,2016/05/24 23:00:00+00,146629,1058.59997558594,Revenue,This data has been redacted under the Data Protection Act,May,2016,694
Tunbridge Wells Borough Council,Environmental and regulatory services ,105,CU,COMMUNITY SAFTY UNIT,COMMUNITY SAFETY,PROJECTS & INITIATIVES,3910,-,-,2016/05/24 23:00:00+00,2016/05/24 23:00:00+00,147075,1000,Revenue,PROJECT SALUS CIC,May,2016,695
Tunbridge Wells Borough Council,Central Services,102,HR,HUMAN RESOURCES,TOWN HALL,FURNITURE COSTS,3020,PROPERTY ACCOMMODATION,PH0602,2016/05/24 23:00:00+00,2016/05/24 23:00:00+00,145106,991.369995117188,Revenue,Posturite (UK) Ltd,May,2016,696
Tunbridge Wells Borough Council,Housing Services,108,HO,HOUSING,HOUSING NEEDS SERVICE,HOMELESSNESS EXPENSES,3912,SYRIAN REFUGEES,EV0587,2016/05/24 23:00:00+00,2016/05/24 23:00:00+00,147081,967,Revenue,This data has been redacted under the Data Protection Act,May,2016,697
Tunbridge Wells Borough Council,Central Services,102,HR,HUMAN RESOURCES,HUMAN RESOURCES,SUBS TO ORGANISATIONS,3730,-,-,2016/05/24 23:00:00+00,2016/05/24 23:00:00+00,147034,949.159973144531,Revenue,Solace Group,May,2016,698
Tunbridge Wells Borough Council,Central Services,102,HR,HUMAN RESOURCES,HUMAN RESOURCES,EXTERNAL TRAINING,204,-,-,2016/05/24 23:00:00+00,2016/05/24 23:00:00+00,147065,900,Revenue,Maidstone Borough Council,May,2016,699
Tunbridge Wells Borough Council,Highways and Transport Services,107,PA,PARKING,PARKING ADMIN & ENFORCEMENT,AGENCY STAFF,100,-,-,2016/05/17 23:00:00+00,2016/05/24 23:00:00+00,147023,858.690002441406,Revenue,Unity Recruitment Ltd,May,2016,700
Tunbridge Wells Borough Council,Housing Services,108,HP,HOUSING (PRIVATE SECTOR),CINDERHILL WOOD CARAVAN SITE,WATER SUPPLY,2300,-,-,2016/05/24 23:00:00+00,2016/05/24 23:00:00+00,147087,819.809997558594,Revenue,South East Water Plc,May,2016,701
Tunbridge Wells Borough Council,Highways and Transport Services,107,PA,PARKING,CRESCENT ROAD CAR PARK,CONTRACT CLEANING,2510,-,-,2016/05/17 23:00:00+00,2016/05/24 23:00:00+00,146968,800,Revenue,W B Stanley,May,2016,702
Tunbridge Wells Borough Council,Central Services,102,PS,PROPERTY SERVICES,BUILDING SERVICES,AGENCY STAFF,100,-,-,2016/05/17 23:00:00+00,2016/05/24 23:00:00+00,146982,720.799987792969,Revenue,Hays Montrose,May,2016,703
Tunbridge Wells Borough Council,Environmental and regulatory services ,105,CS,CLIENT SERVICES (DEPOT),CLEANER BOROUGH,VEHICLE REPAIRS & SUNDRIES,1040,-,-,2016/05/19 23:00:00+00,2016/05/24 23:00:00+00,147019,699.690002441406,Revenue,Acclaim Handling Ltd,May,2016,704
Tunbridge Wells Borough Council,Planning Services,110,PU,PUBLICATIONS,ECONOMIC DEVELOPMENT,PRINTING,3150,-,-,2016/05/19 23:00:00+00,2016/05/24 23:00:00+00,146746,679.799987792969,Revenue,Corporate Document Services Limited,May,2016,705
Tunbridge Wells Borough Council,Cultural and Related Services,104,PS,PROPERTY SERVICES,CULTURAL HUB,PROJECTS & INITIATIVES,3910,-,-,2016/05/17 23:00:00+00,2016/05/24 23:00:00+00,147031,660,Revenue,Hays Montrose,May,2016,706
Tunbridge Wells Borough Council,Central Services,102,FM,FACILITIES MANAGEMENT,TOWN HALL,GROUND MAINT NON CONTRACT,2060,-,-,2016/05/24 23:00:00+00,2016/05/24 23:00:00+00,147112,640,Revenue,Complete Weed Control (Kent),May,2016,707
Tunbridge Wells Borough Council,Environmental and regulatory services ,105,CR,CREMATORIUM,CREMATORIUM,GROUNDS MAINT CONTRACTS,2050,-,-,2016/05/17 23:00:00+00,2016/05/24 23:00:00+00,146713,633.070007324219,Revenue,Veolia ES (UK) Ltd,May,2016,708
Tunbridge Wells Borough Council,Cultural and Related Services,104,PK,PARKS,PARKS & GROUNDS,Horticulture,2061,-,-,2016/05/02 23:00:00+00,2016/05/03 23:00:00+00,146132,475,Revenue,Treework,May,2016,709
Tunbridge Wells Borough Council,Housing Services,108,PS,PROPERTY SERVICES,PROPERTY,RESPONSIVE REPAIRS BUILDINGS,2020,-,-,2016/05/03 23:00:00+00,2016/05/03 23:00:00+00,145745,460,Revenue,Treework,May,2016,710
Tunbridge Wells Borough Council,Housing Services,108,HO,HOUSING,PROPERTIES ON LOAN,RENTS/HIRE OF PREMISES,2200,-,-,2016/05/03 23:00:00+00,2016/05/03 23:00:00+00,146080,459.679992675781,Revenue,Town and Country Housing Group,May,2016,711
Tunbridge Wells Borough Council,Cultural and Related Services,104,AB,ASSEMBLY HALL BAR,A-HALL FRONT OF HOUSE,COGS - DRINK,3091,-,-,2016/04/27 23:00:00+00,2016/05/03 23:00:00+00,145894,451.029998779297,Revenue,H T White & Co Ltd,May,2016,712
Tunbridge Wells Borough Council,Housing Services,108,HO,HOUSING,PROPERTIES ON LOAN,RENTS/HIRE OF PREMISES,2200,-,-,2016/05/03 23:00:00+00,2016/05/03 23:00:00+00,146081,443.279998779297,Revenue,Town and Country Housing Group,May,2016,713
Tunbridge Wells Borough Council,Housing Services,108,HO,HOUSING,PROPERTIES ON LOAN,RENTS/HIRE OF PREMISES,2200,-,-,2016/05/03 23:00:00+00,2016/05/03 23:00:00+00,146082,438.959991455078,Revenue,Town and Country Housing Group,May,2016,714
Tunbridge Wells Borough Council,Environmental and regulatory services ,105,CS,CLIENT SERVICES (DEPOT),NORTH FARM DEPOT,GAS,2120,-,-,2016/05/02 23:00:00+00,2016/05/03 23:00:00+00,145746,434.579986572266,Revenue,Kent County Council (KCS),May,2016,715
Tunbridge Wells Borough Council,Housing Services,108,HO,HOUSING,BED & BREAKFAST COSTS,RENTS/HIRE OF PREMISES,2200,-,-,2016/05/03 23:00:00+00,2016/05/03 23:00:00+00,146220,420,Revenue,This data has been redacted under the Data Protection Act,May,2016,716
Tunbridge Wells Borough Council,Central Services,102,ST,STATIONERY ORDERS,ACCOUNTANCY,PHOTOCOPYING EXPENSES,3180,PHOTOCOPYING PAPER,EV0312,2016/05/02 23:00:00+00,2016/05/03 23:00:00+00,146138,406.959991455078,Revenue,Premier Paper Group Ltd,May,2016,717
Tunbridge Wells Borough Council,Housing Services,108,HO,HOUSING,PROPERTIES ON LOAN,RENTS/HIRE OF PREMISES,2200,-,-,2016/05/03 23:00:00+00,2016/05/03 23:00:00+00,146085,404.679992675781,Revenue,Town and Country Housing Group,May,2016,718
Tunbridge Wells Borough Council,Central Services,102,FM,FACILITIES MANAGEMENT,TOWN HALL,EQUIPMENT PURCHASE/MTCE,3000,-,-,2016/05/02 23:00:00+00,2016/05/03 23:00:00+00,146210,399.679992675781,Revenue,Trade UK,May,2016,719
Tunbridge Wells Borough Council,Cultural and Related Services,104,PK,PARKS,PARKS & GROUNDS,Horticulture,2061,-,-,2016/05/02 23:00:00+00,2016/05/03 23:00:00+00,146131,380,Revenue,Treework,May,2016,720
Tunbridge Wells Borough Council,Housing Services,108,HO,HOUSING,PROPERTIES ON LOAN,RENTS/HIRE OF PREMISES,2200,-,-,2016/05/03 23:00:00+00,2016/05/03 23:00:00+00,146084,376.559997558594,Revenue,Town and Country Housing Group,May,2016,721
Tunbridge Wells Borough Council,Environmental and regulatory services ,105,FM,FACILITIES MANAGEMENT,NORTH FARM DEPOT,EQUIPMENT PURCHASE/MTCE,3000,-,-,2016/05/02 23:00:00+00,2016/05/03 23:00:00+00,145844,375,Revenue,Swale Shutter and Door Services Limited,May,2016,722
Tunbridge Wells Borough Council,Housing Services,108,HO,HOUSING,PROPERTIES ON LOAN,RENTS/HIRE OF PREMISES,2200,-,-,2016/05/03 23:00:00+00,2016/05/03 23:00:00+00,146086,362.239990234375,Revenue,Town and Country Housing Group,May,2016,723
Tunbridge Wells Borough Council,Environmental and regulatory services ,105,PS,PROPERTY SERVICES,PUBLIC CONVENIENCES,ELECTRICITY,2140,-,-,2016/05/02 23:00:00+00,2016/05/03 23:00:00+00,146164,360.649993896484,Revenue,EDF Energy,May,2016,724
Tunbridge Wells Borough Council,Cultural and Related Services,104,HO,HOUSING,MUSEUM & ART GALLERY,PROJECTS & INITIATIVES,3910,-,-,2016/05/02 23:00:00+00,2016/05/03 23:00:00+00,146141,330,Revenue,Hays Montrose,May,2016,725
Tunbridge Wells Borough Council,Central Services,102,FM,FACILITIES MANAGEMENT,TOWN HALL,EQUIPMENT PURCHASE/MTCE,3000,PROPERTY RECEPTION,PH0601,2016/05/02 23:00:00+00,2016/05/03 23:00:00+00,144868,329,Revenue,CPC,May,2016,726
Tunbridge Wells Borough Council,Cultural and Related Services,104,AB,ASSEMBLY HALL BAR,EVENTS,LICENCES (INC PRS/PPL),3390,-,-,2016/05/02 23:00:00+00,2016/05/03 23:00:00+00,145813,320,Revenue,Sevenoaks District Council,May,2016,727
Tunbridge Wells Borough Council,Environmental and regulatory services ,105,HE,HEALTHY COMMUNITIES,CHOOSING HEALTH,PROJECTS & INITIATIVES,3910,CHSG HEALTH MENTAL HEALTH COHE,EV0952,2016/05/03 23:00:00+00,2016/05/03 23:00:00+00,145261,291.200012207031,Revenue,Fusion Lifestyle,May,2016,728
Tunbridge Wells Borough Council,Environmental and regulatory services ,105,FI,FINANCE,CLEANER BOROUGH,FUEL & OIL,1010,-,-,2016/05/02 23:00:00+00,2016/05/03 23:00:00+00,145743,290.309997558594,Revenue,Fuel Card Services Ltd,May,2016,729
Tunbridge Wells Borough Council,Environmental and regulatory services ,105,CS,CLIENT SERVICES (DEPOT),CLEANER BOROUGH,OTHER FEES,3330,-,-,2016/05/02 23:00:00+00,2016/05/03 23:00:00+00,146148,283.200012207031,Revenue,B & J Parr,May,2016,730
Tunbridge Wells Borough Council,Environmental and regulatory services ,105,EN,ENVIRONMENT & STREET SCENE,LAND DRAINAGE,PRECEPTS & LEVIES,3900,-,-,2016/05/10 23:00:00+00,2016/05/10 23:00:00+00,146244,41834.640625,Revenue,This data has been redacted under the Data Protection Act,May,2016,731
Tunbridge Wells Borough Council,Highways and Transport Services,107,PK,PARKS,DUNORLAN CAR PARK,"CONSTRUCTION, RENOVATION, ETC",8311,-,-,2016/05/08 23:00:00+00,2016/05/10 23:00:00+00,146448,29291,Capital,Sturgeons (Civil Engineering) Ltd,May,2016,732
Tunbridge Wells Borough Council,Central Services,102,FM,FACILITIES MANAGEMENT,SHREDDING MACHINE,FURNITURE AND EQUIPMENT,8326,-,-,2016/05/05 23:00:00+00,2016/05/10 23:00:00+00,146216,23370.009765625,Capital,HSM (UK) Ltd,May,2016,733
Tunbridge Wells Borough Council,Cultural and Related Services,104,PS,PROPERTY SERVICES,ASSEMBLY HALL IMPROVEMENTS,"CONSTRUCTION, RENOVATION, ETC",8311,-,-,2016/05/10 23:00:00+00,2016/05/10 23:00:00+00,146388,18574.80078125,Capital,G M Monk Ltd,May,2016,734
Tunbridge Wells Borough Council,Cultural and Related Services,104,PS,PROPERTY SERVICES,ASSEMBLY HALL IMPROVEMENTS,"CONSTRUCTION, RENOVATION, ETC",8311,-,-,2016/05/10 23:00:00+00,2016/05/10 23:00:00+00,146381,13466.9296875,Capital,G M Monk Ltd,May,2016,735
Tunbridge Wells Borough Council,Environmental and regulatory services ,105,EN,ENVIRONMENT & STREET SCENE,LICENSING,PARTNERSHIP AGREEMENT,202,-,-,2016/05/10 23:00:00+00,2016/05/10 23:00:00+00,146424,10349,Revenue,Sevenoaks District Council,May,2016,736
Tunbridge Wells Borough Council,Cultural and Related Services,104,AH,ASSEMBLY HALL,A-HALL COUNCIL SHOWS,SHOW FEES,3380,160418 LULU,A16D12,2016/05/10 23:00:00+00,2016/05/10 23:00:00+00,146431,9664.1796875,Revenue,Neil O'Brien Entertainment,May,2016,737
Tunbridge Wells Borough Council,Central Services,102,EL,ELECTIONS,ELECTORAL REGISTRATION,POSTAGE,3500,-,-,2016/05/10 23:00:00+00,2016/05/10 23:00:00+00,146266,7263.83984375,Revenue,Royal Mail Group plc,May,2016,738
Tunbridge Wells Borough Council,Cultural and Related Services,104,AH,ASSEMBLY HALL,A-HALL COUNCIL SHOWS,SHOW FEES,3380,160419 PASHA KOVALEV,A16D09,2016/05/10 23:00:00+00,2016/05/10 23:00:00+00,146455,6750,Revenue,Entertainment Trade Mgt (Agencies) Ltd,May,2016,739
Tunbridge Wells Borough Council,Cultural and Related Services,104,PS,PROPERTY SERVICES,ASSEMBLY HALL IMPROVEMENTS,"CONSTRUCTION, RENOVATION, ETC",8311,-,-,2016/05/10 23:00:00+00,2016/05/10 23:00:00+00,146380,6422.85009765625,Capital,G M Monk Ltd,May,2016,740
Tunbridge Wells Borough Council,Central Services,102,FI,FINANCE,CORPORATE COSTS,TREASURY MANAGEMENT FEES,3333,-,-,2016/05/05 23:00:00+00,2016/05/10 23:00:00+00,146428,6267,Revenue,CAPITA TREASURY SOLUTIONS LTD,May,2016,741
Tunbridge Wells Borough Council,Highways and Transport Services,107,FI,FINANCE,PARKING ADMIN & ENFORCEMENT,EXTERNAL CONTRACT PAYMENTS,3220,-,-,2016/05/08 23:00:00+00,2016/05/10 23:00:00+00,146078,6219.75,Revenue,Contract Security Services Ltd,May,2016,742
Tunbridge Wells Borough Council,Central Services,102,PS,PROPERTY SERVICES,BUILDING SERVICES,PROPERTY CONSULTANTS,3290,-,-,2016/05/08 23:00:00+00,2016/05/10 23:00:00+00,146441,5000,Revenue,Carter Jonas LLP,May,2016,743
Tunbridge Wells Borough Council,Central Services,102,PS,PROPERTY SERVICES,BUILDING SERVICES,IT SOFTWARE,3590,-,-,2016/05/08 23:00:00+00,2016/05/10 23:00:00+00,146427,4700,Revenue,Argus Software (UK) Ltd,May,2016,744
Tunbridge Wells Borough Council,Cultural and Related Services,104,PK,PARKS,WEALD SPORTS CENTRE,RESPONSIVE REPAIRS BUILDINGS,2020,-,-,2016/05/08 23:00:00+00,2016/05/10 23:00:00+00,146270,4688,Revenue,Fusion Lifestyle,May,2016,745
Tunbridge Wells Borough Council,Housing Services,108,HP,HOUSING (PRIVATE SECTOR),DISABLED FACILITIES GRANTS,CAPITAL GRANTS PAYABLE,8355,-,-,2016/05/08 23:00:00+00,2016/05/10 23:00:00+00,146433,4663.7900390625,Capital,Excel Interior Refurbishment Ltd,May,2016,746
Tunbridge Wells Borough Council,Cultural and Related Services,104,PS,PROPERTY SERVICES,ASSEMBLY HALL IMPROVEMENTS,"CONSTRUCTION, RENOVATION, ETC",8311,-,-,2016/05/10 23:00:00+00,2016/05/10 23:00:00+00,146390,4498.77001953125,Capital,G M Monk Ltd,May,2016,747
Tunbridge Wells Borough Council,Cultural and Related Services,104,AH,ASSEMBLY HALL,A-HALL COUNCIL SHOWS,SHOW FEES,3380,160420 SABA DOUGLAS HAMILTON,A16D11,2016/05/10 23:00:00+00,2016/05/10 23:00:00+00,146465,4466.77978515625,Revenue,Jo Sarsby Personal Management,May,2016,748
Tunbridge Wells Borough Council,Cultural and Related Services,104,PS,PROPERTY SERVICES,TUNBRIDGE WELLS SPORTS CENTRE,PLANNED MAINTENANCE BUILDINGS,2000,PROPERTY NON CONTRACT,PH0605,2016/05/10 23:00:00+00,2016/05/10 23:00:00+00,146439,4000,Revenue,Fairs & Green (MS) Ltd,May,2016,749
Tunbridge Wells Borough Council,Cultural and Related Services,104,PK,PARKS,GROSVENOR AND HILBERT PARK,"CONSTRUCTION, RENOVATION, ETC",8311,-,-,2016/05/09 23:00:00+00,2016/05/10 23:00:00+00,146257,3902,Capital,Fitzpatrick Woolmer Design & Publishing,May,2016,750
Tunbridge Wells Borough Council,Housing Services,108,HO,HOUSING,RENT DEPOSIT SCHEME,DEBTORS,8510,-,-,2016/05/10 23:00:00+00,2016/05/10 23:00:00+00,146473,3600,Revenue,KNIGHT PROPERTIES,May,2016,751
Tunbridge Wells Borough Council,Environmental and regulatory services ,105,EH,ENVIRONMENTAL HEALTH,SUSTAINABILITY,EQUIPMENT PURCHASE/MTCE,3000,AIR QUALITY ASSESS,EV0412,2016/05/09 23:00:00+00,2016/05/10 23:00:00+00,146262,2675,Revenue,Enviro Technology Services Plc,May,2016,752
Tunbridge Wells Borough Council,Central Services,102,FI,FINANCE,CHILDCARE VOUCHERS SCHEME,CREDITORS,9009,-,-,2016/05/10 23:00:00+00,2016/05/10 23:00:00+00,146470,2286.89990234375,Revenue,Fideliti Ltd,May,2016,753
Tunbridge Wells Borough Council,Cultural and Related Services,104,AH,ASSEMBLY HALL,WEST END THEATRE TOKENS CRED,CREDITORS,9009,-,-,2016/05/08 23:00:00+00,2016/05/10 23:00:00+00,146438,1907.59997558594,Revenue,West End Theatre Managers Ltd,May,2016,754
Tunbridge Wells Borough Council,Central Services,102,FM,FACILITIES MANAGEMENT,POSTAL CHARGES ACCOUNT,CASH TRANSFERS,9100,-,-,2016/05/02 23:00:00+00,2016/05/03 23:00:00+00,145874,2879.4599609375,Revenue,Royal Mail Group plc,May,2016,755
Tunbridge Wells Borough Council,Environmental and regulatory services ,105,CS,CLIENT SERVICES (DEPOT),REFUSE COLLECTION SERVICES,SPECIAL COLLECTIONS,3244,-,-,2016/05/02 23:00:00+00,2016/05/03 23:00:00+00,145584,2762.52001953125,Revenue,Cory Environmental Municipal Services Ltd,May,2016,756
Tunbridge Wells Borough Council,Environmental and regulatory services ,105,CS,CLIENT SERVICES (DEPOT),NORTH FARM DEPOT,FIRE & SECURITY COSTS,2080,-,-,2016/05/02 23:00:00+00,2016/05/03 23:00:00+00,145078,2735,Revenue,Emprise Services plc,May,2016,757
Tunbridge Wells Borough Council,Central Services,102,FM,FACILITIES MANAGEMENT,POSTAL CHARGES ACCOUNT,CASH TRANSFERS,9100,-,-,2016/05/03 23:00:00+00,2016/05/03 23:00:00+00,146207,2442.8701171875,Revenue,Royal Mail Group plc,May,2016,758
Tunbridge Wells Borough Council,Planning Services,110,EH,ENVIRONMENTAL HEALTH,COMMUNITY & GRANTS,GRANTS,3750,-,-,2016/05/02 23:00:00+00,2016/05/03 23:00:00+00,146077,2250,Revenue,PADDOCK WOOD COMMUNITY ADVICE CENTRE,May,2016,759
Tunbridge Wells Borough Council,Housing Services,108,HP,HOUSING (PRIVATE SECTOR),DISABLED FACILITIES GRANTS,CAPITAL GRANTS PAYABLE,8355,-,-,2016/05/02 23:00:00+00,2016/05/03 23:00:00+00,146155,2245,Capital,Ascendit Lifts Ltd,May,2016,760
Tunbridge Wells Borough Council,Environmental and regulatory services ,105,CS,CLIENT SERVICES (DEPOT),REFUSE COLLECTION SERVICES,RECYCLING EXPENSES-CARDBOARD,3241,-,-,2016/05/02 23:00:00+00,2016/05/03 23:00:00+00,145888,2146.69995117188,Revenue,Biffa Waste Services Ltd,May,2016,761
Tunbridge Wells Borough Council,Housing Services,108,HO,HOUSING,HOUSING NEEDS SERVICE,PROJECTS & INITIATIVES,3910,-,-,2016/05/03 23:00:00+00,2016/05/03 23:00:00+00,146153,2000,Revenue,Nourish Community Foodbank Ltd,May,2016,762
Tunbridge Wells Borough Council,Central Services,102,PS,PROPERTY SERVICES,BUILDING SERVICES,AGENCY STAFF,100,-,-,2016/05/02 23:00:00+00,2016/05/03 23:00:00+00,146140,1993.59997558594,Revenue,Hays Montrose,May,2016,763
Tunbridge Wells Borough Council,Cultural and Related Services,104,FM,FACILITIES MANAGEMENT,A-HALL TECH OPS,CONTRACT CLEANING,2510,-,-,2016/05/02 23:00:00+00,2016/05/03 23:00:00+00,145418,1966.16003417969,Revenue,CORDANT CLEANING LTD,May,2016,764
Tunbridge Wells Borough Council,Cultural and Related Services,104,AH,ASSEMBLY HALL,A-HALL COUNCIL SHOWS,SHOW FEES,3380,160417 3 COMICS,A16D08,2016/05/03 23:00:00+00,2016/05/03 23:00:00+00,146118,1929,Revenue,RIP Productions LTD,May,2016,765
Tunbridge Wells Borough Council,Central Services,102,PS,PROPERTY SERVICES,BUILDING SERVICES,AGENCY STAFF,100,-,-,2016/05/02 23:00:00+00,2016/05/03 23:00:00+00,145807,1918.83996582031,Revenue,Hays Montrose,May,2016,766
Tunbridge Wells Borough Council,Central Services,102,PS,PROPERTY SERVICES,BUILDING SERVICES,AGENCY STAFF,100,-,-,2016/05/02 23:00:00+00,2016/05/03 23:00:00+00,146139,1780,Revenue,Hays Montrose,May,2016,767
Tunbridge Wells Borough Council,Cultural and Related Services,104,PK,PARKS,DUNORLAN PARK,Horticulture,2061,-,-,2016/05/02 23:00:00+00,2016/05/03 23:00:00+00,146129,1680,Revenue,Treework,May,2016,768
Tunbridge Wells Borough Council,Environmental and regulatory services ,105,EH,ENVIRONMENTAL HEALTH,FOOTWAY LIGHTING-TW & RUSTHALL,STREET LIGHTING MTCE CONTRACT,2035,-,-,2016/05/03 23:00:00+00,2016/05/03 23:00:00+00,145896,1678,Revenue,PSR LIGHTING & SIGNS LTD,May,2016,769
Tunbridge Wells Borough Council,Environmental and regulatory services ,105,PK,PARKS,CREMATORIUM,GROUNDS MAINT CONTRACTS,2050,-,-,2016/04/28 23:00:00+00,2016/05/03 23:00:00+00,146062,1499.09997558594,Revenue,Palmstead Nurseries Ltd,May,2016,770
Tunbridge Wells Borough Council,Central Services,102,PS,PROPERTY SERVICES,BUILDING SERVICES,AGENCY STAFF,100,-,-,2016/05/02 23:00:00+00,2016/05/03 23:00:00+00,145808,1468.5,Revenue,Hays Montrose,May,2016,771
Tunbridge Wells Borough Council,Environmental and regulatory services ,105,CS,CLIENT SERVICES (DEPOT),CLEANER BOROUGH,OTHER FEES,3330,SHERWOOD KINGDOM,EV0467,2016/05/02 23:00:00+00,2016/05/03 23:00:00+00,145528,1288,Revenue,Kingdom Security Limited,May,2016,772
Tunbridge Wells Borough Council,Environmental and regulatory services ,105,CS,CLIENT SERVICES (DEPOT),NORTH FARM DEPOT,ELECTRICITY,2140,-,-,2016/05/02 23:00:00+00,2016/05/03 23:00:00+00,145544,1278.98999023438,Revenue,Kent County Council (KCS),May,2016,773
Tunbridge Wells Borough Council,Cultural and Related Services,104,PK,PARKS,PARKS & GROUNDS,Horticulture,2061,BRITAIN IN BLOOM,PL0395,2016/05/02 23:00:00+00,2016/05/03 23:00:00+00,146133,1258.5,Revenue,JAMI Q'S (WREXHAM) LTD,May,2016,774
Tunbridge Wells Borough Council,Central Services,102,PS,PROPERTY SERVICES,BUILDING SERVICES,AGENCY STAFF,100,-,-,2016/05/02 23:00:00+00,2016/05/03 23:00:00+00,145760,1236.55004882813,Revenue,Hays Montrose,May,2016,775
Tunbridge Wells Borough Council,Central Services,102,PS,PROPERTY SERVICES,BUILDING SERVICES,AGENCY STAFF,100,-,-,2016/05/02 23:00:00+00,2016/05/03 23:00:00+00,146142,1218.89001464844,Revenue,Hays Montrose,May,2016,776
Tunbridge Wells Borough Council,Central Services,102,FM,FACILITIES MANAGEMENT,TOWN HALL,VEHICLE REPAIRS & SUNDRIES,1040,-,-,2016/05/02 23:00:00+00,2016/05/03 23:00:00+00,146117,1140,Revenue,Weddle & Co Ltd,May,2016,777
Tunbridge Wells Borough Council,Environmental and regulatory services ,105,CR,CREMATORIUM,CREMATORIUM,COGS - PLAQUES,3082,-,-,2016/05/02 23:00:00+00,2016/05/03 23:00:00+00,146055,1046,Revenue,Falon Nameplates Limited,May,2016,778
Tunbridge Wells Borough Council,Central Services,102,ST,STATIONERY ORDERS,ACCOUNTANCY,PHOTOCOPYING EXPENSES,3180,PHOTOCOPYING BULK PAPER,EV0314,2016/04/28 23:00:00+00,2016/05/03 23:00:00+00,146093,958,Revenue,Premier Paper Group Ltd,May,2016,779
Tunbridge Wells Borough Council,Planning Services,110,AM,ASSEMBLY HALL MARKETING,ECONOMIC DEVELOPMENT,PROJECTS & INITIATIVES,3910,RETAILERS CHRISTMAS CAMPAIGN,EV0250,2016/05/02 23:00:00+00,2016/05/03 23:00:00+00,145786,900,Revenue,JCDecaux UK Ltd - Street Furniture,May,2016,780
Tunbridge Wells Borough Council,Cultural and Related Services,104,PK,PARKS,GROSVENOR AND HILBERT PARK,"CONSTRUCTION, RENOVATION, ETC",8311,-,-,2016/04/28 23:00:00+00,2016/05/03 23:00:00+00,146089,900,Capital,SUSSEX WILDLIFE TRUST,May,2016,781
Tunbridge Wells Borough Council,Cultural and Related Services,104,PK,PARKS,PARKS & GROUNDS,Horticulture,2061,-,-,2016/05/02 23:00:00+00,2016/05/03 23:00:00+00,146130,890,Revenue,Treework,May,2016,782
Tunbridge Wells Borough Council,Environmental and regulatory services ,105,FM,FACILITIES MANAGEMENT,NORTH FARM DEPOT,MAINT/SERVICING PLANT,2030,PROPERTY CONTRACTS,PH0600,2016/05/02 23:00:00+00,2016/05/03 23:00:00+00,145816,850,Revenue,Harcon Services Limited,May,2016,783
Tunbridge Wells Borough Council,Housing Services,108,HO,HOUSING,BED & BREAKFAST COSTS,RENTS/HIRE OF PREMISES,2200,-,-,2016/05/03 23:00:00+00,2016/05/03 23:00:00+00,146096,788.570007324219,Revenue,This data has been redacted under the Data Protection Act,May,2016,784
Tunbridge Wells Borough Council,Environmental and regulatory services ,105,CS,CLIENT SERVICES (DEPOT),NORTH FARM DEPOT,WATER SUPPLY,2300,-,-,2016/05/02 23:00:00+00,2016/05/03 23:00:00+00,145732,768.340026855469,Revenue,South East Water Plc,May,2016,785
Tunbridge Wells Borough Council,Environmental and regulatory services ,105,CS,CLIENT SERVICES (DEPOT),NORTH FARM DEPOT,WATER SUPPLY,2300,-,-,2016/05/02 23:00:00+00,2016/05/03 23:00:00+00,145785,768.340026855469,Revenue,South East Water Plc,May,2016,786
Tunbridge Wells Borough Council,Cultural and Related Services,104,PK,PARKS,DUNORLAN PARK,Horticulture,2061,-,-,2016/04/28 23:00:00+00,2016/05/03 23:00:00+00,146061,723.349975585938,Revenue,Palmstead Nurseries Ltd,May,2016,787
Tunbridge Wells Borough Council,Planning Services,110,LG,LEGAL SERVICES,DEVELOPMENT PROGRAMME,SEARCH FEES,3332,SPORTS FACILITIES,PH0720,2016/05/02 23:00:00+00,2016/05/03 23:00:00+00,145072,721.380004882813,Revenue,SearchFlow Ltd,May,2016,788
Tunbridge Wells Borough Council,Cultural and Related Services,104,PK,PARKS,PARKS & GROUNDS,GROUND MAINT NON CONTRACT,2060,-,-,2016/05/02 23:00:00+00,2016/05/03 23:00:00+00,146149,712,Revenue,AMENITY HORTICULTURAL SERVICES LTD,May,2016,789
Tunbridge Wells Borough Council,Central Services,102,PS,PROPERTY SERVICES,BUILDING SERVICES,AGENCY STAFF,100,-,-,2016/05/02 23:00:00+00,2016/05/03 23:00:00+00,145759,675.75,Revenue,Hays Montrose,May,2016,790
Tunbridge Wells Borough Council,Central Services,102,PS,PROPERTY SERVICES,BUILDING SERVICES,AGENCY STAFF,100,-,-,2016/05/02 23:00:00+00,2016/05/03 23:00:00+00,146091,675.75,Revenue,Hays Montrose,May,2016,791
Tunbridge Wells Borough Council,Housing Services,108,HP,HOUSING (PRIVATE SECTOR),RENT DEPOSIT SCHEME,DEBTORS,8510,-,-,2016/05/03 23:00:00+00,2016/05/03 23:00:00+00,146154,650,Revenue,Madeleine Rose Estate Agent,May,2016,792
Tunbridge Wells Borough Council,Environmental and regulatory services ,105,CS,CLIENT SERVICES (DEPOT),NORTH FARM DEPOT,GAS,2120,-,-,2016/05/02 23:00:00+00,2016/05/03 23:00:00+00,145750,628.75,Revenue,Kent County Council (KCS),May,2016,793
Tunbridge Wells Borough Council,Housing Services,108,HO,HOUSING,BED & BREAKFAST COSTS,RENTS/HIRE OF PREMISES,2200,-,-,2016/05/03 23:00:00+00,2016/05/03 23:00:00+00,146095,628.570007324219,Revenue,This data has been redacted under the Data Protection Act,May,2016,794
Tunbridge Wells Borough Council,Cultural and Related Services,104,PK,PARKS,GROSVENOR AND HILBERT PARK,"CONSTRUCTION, RENOVATION, ETC",8311,-,-,2016/05/03 23:00:00+00,2016/05/03 23:00:00+00,144840,600,Capital,Applause Rural Touring Ltd,May,2016,795
Tunbridge Wells Borough Council,Cultural and Related Services,104,AH,ASSEMBLY HALL,A-HALL COUNCIL SHOWS,COGS-SHOW RIDERS,3095,160519 JOOL HOLLAND,A16E05,2016/05/03 23:00:00+00,2016/05/03 23:00:00+00,146137,580,Revenue,Helicon Mountain Ltd,May,2016,796
Tunbridge Wells Borough Council,Housing Services,108,HO,HOUSING,PROPERTIES ON LOAN,RENTS/HIRE OF PREMISES,2200,-,-,2016/05/03 23:00:00+00,2016/05/03 23:00:00+00,146087,535.52001953125,Revenue,Town and Country Housing Group,May,2016,797
Tunbridge Wells Borough Council,Planning Services,110,ED,ECONOMIC DEVELOPMENT,ECONOMIC DEVELOPMENT,PROMOTION,3450,-,-,2016/04/28 23:00:00+00,2016/05/03 23:00:00+00,144902,535,Revenue,This data has been redacted under the Data Protection Act,May,2016,798
Tunbridge Wells Borough Council,Cultural and Related Services,104,PS,PROPERTY SERVICES,ASSEMBLY HALL IMPROVEMENTS,"CONSTRUCTION, RENOVATION, ETC",8311,-,-,2016/05/02 23:00:00+00,2016/05/03 23:00:00+00,145789,500,Capital,Fire Four Ltd,May,2016,799
Tunbridge Wells Borough Council,Planning Services,110,HE,HEALTHY COMMUNITIES,COMMUNITY & GRANTS,PROJECTS & INITIATIVES,3910,SPORTS DEVELOPMENT,EV0296,2016/05/02 23:00:00+00,2016/05/03 23:00:00+00,146128,500,Revenue,KISIN LANGUAGE SERVICES,May,2016,800
Tunbridge Wells Borough Council,Central Services,102,FM,FACILITIES MANAGEMENT,GATEWAY,RESPONSIVE REPAIRS BUILDINGS,2020,PROPERTY CONTRACTS,PH0600,2016/06/20 23:00:00+00,2016/06/21 23:00:00+00,148087,375,Revenue,Spectrum Blinds Ltd,June,2016,801
Tunbridge Wells Borough Council,Housing Services,108,HO,HOUSING,BED & BREAKFAST COSTS,RENTS/HIRE OF PREMISES,2200,-,-,2016/06/01 23:00:00+00,2016/06/14 23:00:00+00,147805,570,Revenue,Spa Caffe Ltd,June,2016,802
Tunbridge Wells Borough Council,Planning Services,110,ED,ECONOMIC DEVELOPMENT,ECONOMIC DEVELOPMENT,PROMOTION,3450,-,-,2016/06/20 23:00:00+00,2016/06/21 23:00:00+00,148122,360,Revenue,MY TUNBRIDGE WELLS,June,2016,803
Tunbridge Wells Borough Council,Highways and Transport Services,107,PA,PARKING,GREAT HALL CAR PARK,ELECTRICITY,2140,-,-,2016/06/20 23:00:00+00,2016/06/21 23:00:00+00,148092,356.989990234375,Revenue,Kent County Council (KCS),June,2016,804
Tunbridge Wells Borough Council,Housing Services,108,HO,HOUSING,PROPERTIES ON LOAN,RENTS/HIRE OF PREMISES,2200,-,-,2016/06/01 23:00:00+00,2016/06/14 23:00:00+00,147834,535.52001953125,Revenue,Town and Country Housing Group,June,2016,805
Tunbridge Wells Borough Council,Housing Services,108,HO,HOUSING,BED & BREAKFAST COSTS,RENTS/HIRE OF PREMISES,2200,-,-,2016/06/21 23:00:00+00,2016/06/21 23:00:00+00,147898,350,Revenue,This data has been redacted under the Data Protection Act,June,2016,806
Tunbridge Wells Borough Council,Environmental and regulatory services ,105,HE,HEALTHY COMMUNITIES,CHOOSING HEALTH,PROJECTS & INITIATIVES,3910,CHSG HEALTH HEALTHY LIVING,EV0950,2016/06/14 23:00:00+00,2016/06/14 23:00:00+00,147765,531,Revenue,Sevenoaks District Council,June,2016,807
Tunbridge Wells Borough Council,Central Services,102,EL,ELECTIONS,NON TWBC ELECTIONS,RENTS/HIRE OF PREMISES,2200,POLICE COMM ELECTION 160505,CS0396,2016/06/20 23:00:00+00,2016/06/21 23:00:00+00,148073,350,Revenue,Southborough Methodist Church,June,2016,808
Tunbridge Wells Borough Council,Central Services,102,CE,CHIEF EXECUTIVE,DEMOCRATIC MANAGEMENT,CONFERENCES/SEMINARS,205,-,-,2016/06/13 23:00:00+00,2016/06/14 23:00:00+00,147114,495,Revenue,Local Government Association,June,2016,809
Tunbridge Wells Borough Council,Housing Services,108,HO,HOUSING,BED & BREAKFAST COSTS,RENTS/HIRE OF PREMISES,2200,-,-,2016/06/21 23:00:00+00,2016/06/21 23:00:00+00,148153,350,Revenue,This data has been redacted under the Data Protection Act,June,2016,810
Tunbridge Wells Borough Council,Housing Services,108,HO,HOUSING,BED & BREAKFAST COSTS,RENTS/HIRE OF PREMISES,2200,-,-,2016/06/01 23:00:00+00,2016/06/14 23:00:00+00,147824,487,Revenue,Grapevine Estates Ltd,June,2016,811
Tunbridge Wells Borough Council,Cultural and Related Services,104,PK,PARKS,PARKS & GROUNDS,Horticulture,2061,-,-,2016/06/15 23:00:00+00,2016/06/21 23:00:00+00,147860,337.910003662109,Revenue,Palmstead Nurseries Ltd,June,2016,812
Tunbridge Wells Borough Council,Cultural and Related Services,104,AM,ASSEMBLY HALL MARKETING,A-HALL COUNCIL SHOWS,PROMOTION,3450,160701-09 SAVE THE LAST DANCE,A16G02,2016/06/13 23:00:00+00,2016/06/14 23:00:00+00,147551,480,Revenue,S G Media Publications Ltd,June,2016,813
Tunbridge Wells Borough Council,Cultural and Related Services,104,HO,HOUSING,CULTURAL HUB,PROJECTS & INITIATIVES,3910,-,-,2016/06/20 23:00:00+00,2016/06/21 23:00:00+00,148118,330,Revenue,Hays Montrose,June,2016,814
Tunbridge Wells Borough Council,Housing Services,108,HO,HOUSING,PROPERTIES ON LOAN,RENTS/HIRE OF PREMISES,2200,-,-,2016/06/01 23:00:00+00,2016/06/14 23:00:00+00,147829,479.279998779297,Revenue,Town and Country Housing Group,June,2016,815
Tunbridge Wells Borough Council,Central Services,102,HR,HUMAN RESOURCES,TOWN HALL,FURNITURE COSTS,3020,PROPERTY ACCOMMODATION,PH0602,2016/06/20 23:00:00+00,2016/06/21 23:00:00+00,147532,324.619995117188,Revenue,Posturite (UK) Ltd,June,2016,816
Tunbridge Wells Borough Council,Central Services,102,EL,ELECTIONS,NON TWBC ELECTIONS,RENTS/HIRE OF PREMISES,2200,POLICE COMM ELECTION 160505,CS0396,2016/06/20 23:00:00+00,2016/06/21 23:00:00+00,147722,320,Revenue,Langton Green Charitable Trust,June,2016,817
Tunbridge Wells Borough Council,Central Services,102,PS,PROPERTY SERVICES,BUILDING SERVICES,AGENCY STAFF,100,-,-,2016/06/20 23:00:00+00,2016/06/21 23:00:00+00,147857,317.970001220703,Revenue,Hays Montrose,June,2016,818
Tunbridge Wells Borough Council,Housing Services,108,HO,HOUSING,BED & BREAKFAST COSTS,RENTS/HIRE OF PREMISES,2200,-,-,2016/06/21 23:00:00+00,2016/06/21 23:00:00+00,147935,308.570007324219,Revenue,This data has been redacted under the Data Protection Act,June,2016,819
Tunbridge Wells Borough Council,Central Services,102,EL,ELECTIONS,NON TWBC ELECTIONS,RENTS/HIRE OF PREMISES,2200,POLICE COMM ELECTION 160505,CS0396,2016/06/20 23:00:00+00,2016/06/21 23:00:00+00,147911,300,Revenue,Christ Church PCC,June,2016,820
Tunbridge Wells Borough Council,Housing Services,108,PS,PROPERTY SERVICES,PROPERTY,GAS,2120,-,-,2016/06/20 23:00:00+00,2016/06/21 23:00:00+00,147909,288.730010986328,Revenue,British Gas Business,June,2016,821
Tunbridge Wells Borough Council,Highways and Transport Services,107,PA,PARKING,PARKING ADMIN & ENFORCEMENT,UNIFORMS & PROTECTIVE CLOTHING,3100,-,-,2016/06/16 23:00:00+00,2016/06/21 23:00:00+00,147746,283.350006103516,Revenue,Keltic Clothing Ltd,June,2016,822
Tunbridge Wells Borough Council,Central Services,102,EL,ELECTIONS,NON TWBC ELECTIONS,PRINTING,3150,POLICE COMM ELECTION 160505,CS0396,2016/06/20 23:00:00+00,2016/06/21 23:00:00+00,147768,275.630004882813,Revenue,Shaw & Sons Ltd,June,2016,823
Tunbridge Wells Borough Council,Environmental and regulatory services ,105,CR,CREMATORIUM,TUNBRIDGE WELLS-CEMETERIES,GROUNDS MAINT CONTRACTS,2050,-,-,2016/06/20 23:00:00+00,2016/06/21 23:00:00+00,147870,275,Revenue,A Burslem & Son Ltd (Burslem Memorials),June,2016,824
Tunbridge Wells Borough Council,Central Services,102,EL,ELECTIONS,NON TWBC ELECTIONS,RENTS/HIRE OF PREMISES,2200,POLICE COMM ELECTION 160505,CS0396,2016/06/20 23:00:00+00,2016/06/21 23:00:00+00,147910,275,Revenue,Kilndown Village Hall,June,2016,825
Tunbridge Wells Borough Council,Cultural and Related Services,104,AB,ASSEMBLY HALL BAR,A-HALL FRONT OF HOUSE,COGS - ICE CREAMS,3093,-,-,2016/06/16 23:00:00+00,2016/06/21 23:00:00+00,148043,260.029998779297,Revenue,Taywell Ice Creams Limited,June,2016,826
Tunbridge Wells Borough Council,Central Services,102,SC,LEO,STAFF WELFARE,OTHER FEES,3330,Social Society Club,EV1006,2016/06/20 23:00:00+00,2016/06/21 23:00:00+00,147917,260,Revenue,A.Fuller Butchers,June,2016,827
Tunbridge Wells Borough Council,Central Services,102,GW,GATEWAY CUSTOMER SERVICES,GATEWAY,AGENCY STAFF,20,CALL CENTRE,EV0341,2016/06/20 23:00:00+00,2016/06/21 23:00:00+00,147783,259.630004882813,Revenue,Badenoch & Clark,June,2016,828
Tunbridge Wells Borough Council,Housing Services,108,HO,HOUSING,BED & BREAKFAST COSTS,RENTS/HIRE OF PREMISES,2200,-,-,2016/06/21 23:00:00+00,2016/06/21 23:00:00+00,147934,257.140014648438,Revenue,This data has been redacted under the Data Protection Act,June,2016,829
Tunbridge Wells Borough Council,Central Services,102,GW,GATEWAY CUSTOMER SERVICES,WEALD INFORMATION CENTRE,CLEANING SUPPLIES,2500,-,-,2016/06/20 23:00:00+00,2016/06/21 23:00:00+00,148090,256,Revenue,Cranbrook & Sissinghurst Parish Council,June,2016,830
